Organisation Name,Organisation Code,Effective Date,Directorate  Where Expenditure Incurred,Supplier Name,Payment Date,Transaction Number,Gross Amount,Purpose of Spend,Merchant Category,Card Transaction
WALSALL COUNCIL,http://opendatacommunities.org/id/metropolitan-district-council/walsall,31/03/2021,CHILDRENS SERVICES,GOOGLE GSUITE_CADMUSSCHO,01/01/2021,H59620210105AVNRIBTVI-1,8.28,ADMINISTRATIVE SUPPLIES-STATIONERY & GENERAL OFFICE SU,"COMPUTER PROGRAM, SYSTEM DESIGN",GPC
WALSALL COUNCIL,http://opendatacommunities.org/id/metropolitan-district-council/walsall,31/03/2021,RESOURCES & TRANSFORMATION,CHICKEN JOES LTD,01/01/2021,H59620210105DFRFBWESF-1,79.49,CATERING - SCHOOLS-FOOD & DRINK SUPPLIES,CATERERS,GPC
WALSALL COUNCIL,http://opendatacommunities.org/id/metropolitan-district-council/walsall,31/03/2021,CHILDRENS SERVICES,123 REG LTD,01/01/2021,H59620210105ETEVDHGRC-1,11.99,ADMINISTRATIVE SUPPLIES-STATIONERY & GENERAL OFFICE SU,DIRECT MARKETING CONTINUITY SUBSCRIPTION MERCHANTS,GPC
WALSALL COUNCIL,http://opendatacommunities.org/id/metropolitan-district-council/walsall,31/03/2021,CHILDRENS SERVICES,METRO WALSALL,01/01/2021,H59620210105LKKLXGLRV-1,76.00,BED & BREAKFAST PAYMENTS-HOTEL ACCOMMODATION-EMPLOYEES,"HOTELS, MOTELS, RESORTS",GPC
WALSALL COUNCIL,http://opendatacommunities.org/id/metropolitan-district-council/walsall,31/03/2021,CHILDRENS SERVICES,TRAINLINE,01/01/2021,H59620210105MWLPGHACM-1,-16.40,LOOKED AFTER CHILDRENS SOCIAL -OFFICERS & STAFF PUBLIC TRANSP,PASSENGER RAILWAYS,GPC
WALSALL COUNCIL,http://opendatacommunities.org/id/metropolitan-district-council/walsall,31/03/2021,ECONOMY & ENVIRONMENT,WETRANSFER,01/01/2021,H59620210105NITRSBELT-1,9.04,NAG - TEMPORARY EXHIBITIONS-POSTAGES & COURIER SERVICES,"COMPUTER PROGRAM, SYSTEM DESIGN",GPC
WALSALL COUNCIL,http://opendatacommunities.org/id/metropolitan-district-council/walsall,31/03/2021,RESOURCES & TRANSFORMATION,CHICKEN JOES LTD,01/01/2021,H59620210105PBORBBPPR-1,110.90,CATERING - SCHOOLS-FOOD & DRINK SUPPLIES,CATERERS,GPC
WALSALL COUNCIL,http://opendatacommunities.org/id/metropolitan-district-council/walsall,31/03/2021,RESOURCES & TRANSFORMATION,CHICKEN JOES LTD,01/01/2021,H59620210105VSYTUTATE-1,67.14,CATERING - SCHOOLS-FOOD & DRINK SUPPLIES,CATERERS,GPC
WALSALL COUNCIL,http://opendatacommunities.org/id/metropolitan-district-council/walsall,31/03/2021,ECONOMY & ENVIRONMENT,J2 EFAX PLUS SERVICE,01/01/2021,H59620210105WNUZMPNXH-1,19.20,REGISTRAR-COMPUTER EQUIPMENT,DIRECT MARKETING CONTINUITY SUBSCRIPTION MERCHANTS,GPC
WALSALL COUNCIL,http://opendatacommunities.org/id/metropolitan-district-council/walsall,31/03/2021,CHILDRENS SERVICES,WWW.GAME.CO.UK,02/01/2021,H59620210105DPUKGHIIB-1,6.99,REDRUTH ROAD-RESIDENTS PERSONAL EXPENSES-AL,"GAME, TOY, AND HOBBY SHOPS",GPC
WALSALL COUNCIL,http://opendatacommunities.org/id/metropolitan-district-council/walsall,31/03/2021,CHILDRENS SERVICES,ADOBE ACROPRO SUBS,02/01/2021,H59620210105DTZNNAQDO-1,15.17,E19-MATERIALS,COMPUTER SOFTWARE STORES,GPC
WALSALL COUNCIL,http://opendatacommunities.org/id/metropolitan-district-council/walsall,31/03/2021,CHILDRENS SERVICES,B&M 022 - WEDNESBURY,02/01/2021,H59620210105RGBQQELNY-1,5.77,ADOLESCENT SERVICE-OTHER EMPLOYEES FEES & EXPENSE,MISCELLANEOUS GENERAL MERCHANDISE,GPC
WALSALL COUNCIL,http://opendatacommunities.org/id/metropolitan-district-council/walsall,31/03/2021,CHILDRENS SERVICES,TESCO STORES 6161,02/01/2021,H59620210105YHSGWYATN-1,6.78,WALSALL CRISIS SUPPORT SCHEME-CRISIS SUPPORT PAYMENTS,GROCERY STORES AND SUPERMARKETS,GPC
WALSALL COUNCIL,http://opendatacommunities.org/id/metropolitan-district-council/walsall,31/03/2021,CHILDRENS SERVICES,TESCO STORES 6161,02/01/2021,H59620210105YHSGWYATN-2,6.99,WALSALL CRISIS SUPPORT SCHEME-CRISIS SUPPORT PAYMENTS,GROCERY STORES AND SUPERMARKETS,GPC
WALSALL COUNCIL,http://opendatacommunities.org/id/metropolitan-district-council/walsall,31/03/2021,CHILDRENS SERVICES,B&M 333 - AN BENTLEY BRID,03/01/2021,H59620210105DRKALXKWU-1,10.00,SPECIAL FACILITIES-MATERIALS,MISCELLANEOUS GENERAL MERCHANDISE,GPC
WALSALL COUNCIL,http://opendatacommunities.org/id/metropolitan-district-council/walsall,31/03/2021,CHILDRENS SERVICES,AMZNMKTPLACE,03/01/2021,H59620210105HVGRCUGVU-1,13.88,"43A HILTON ROAD, WILLENHALL-RESIDENTS PERSONAL EXPENSES-AL",MISCELLANEOUS AND SPECIALTY RETAIL STORES,GPC
WALSALL COUNCIL,http://opendatacommunities.org/id/metropolitan-district-council/walsall,31/03/2021,CHILDRENS SERVICES,METRO WALSALL,03/01/2021,H59620210105KMMBKICMQ-1,76.00,BED & BREAKFAST PAYMENTS-BED & BREAKFAST PAYMENTS,"HOTELS, MOTELS, RESORTS",GPC
WALSALL COUNCIL,http://opendatacommunities.org/id/metropolitan-district-council/walsall,31/03/2021,CHILDRENS SERVICES,HOME BARGAINS,03/01/2021,H59620210105PNNESYHGG-1,33.03,SPECIAL FACILITIES-MATERIALS,HARDWARE STORES,GPC
WALSALL COUNCIL,http://opendatacommunities.org/id/metropolitan-district-council/walsall,31/03/2021,RESOURCES & TRANSFORMATION,WP ENGINE,03/01/2021,H59620210105SJVQWWGST-1,255.86,APPLICATIONS-COMPUTER EQUIPMENT,"COMPUTER PROGRAM, SYSTEM DESIGN",GPC
WALSALL COUNCIL,http://opendatacommunities.org/id/metropolitan-district-council/walsall,31/03/2021,ECONOMY & ENVIRONMENT,GOOGLE ADS7617076158,03/01/2021,H59620210105TZEBOJDUW-1,42.78,OAK PARK-MATERIALS,ADVERTISING SERVICES,GPC
WALSALL COUNCIL,http://opendatacommunities.org/id/metropolitan-district-council/walsall,31/03/2021,ECONOMY & ENVIRONMENT,GOOGLE ADS7617076158,03/01/2021,H59620210105TZEBOJDUW-2,42.78,BLOXWICH LEISURE CENTRE-MATERIALS,ADVERTISING SERVICES,GPC
WALSALL COUNCIL,http://opendatacommunities.org/id/metropolitan-district-council/walsall,31/03/2021,ECONOMY & ENVIRONMENT,GOOGLE ADS7617076158,03/01/2021,H59620210105TZEBOJDUW-3,22.78,DARLASTON LEISURE CENTRE-MATERIALS,ADVERTISING SERVICES,GPC
WALSALL COUNCIL,http://opendatacommunities.org/id/metropolitan-district-council/walsall,31/03/2021,ECONOMY & ENVIRONMENT,GOOGLE ADS7617076158,03/01/2021,H59620210105TZEBOJDUW-4,22.79,WALSALL GALA CENTRE-MATERIALS,ADVERTISING SERVICES,GPC
WALSALL COUNCIL,http://opendatacommunities.org/id/metropolitan-district-council/walsall,31/03/2021,CHILDRENS SERVICES,AMZNMKTPLACE,03/01/2021,H59620210105UTMTULYJS-1,9.85,"43A HILTON ROAD, WILLENHALL-RESIDENTS PERSONAL EXPENSES-AL",MISCELLANEOUS AND SPECIALTY RETAIL STORES,GPC
WALSALL COUNCIL,http://opendatacommunities.org/id/metropolitan-district-council/walsall,31/03/2021,CHILDRENS SERVICES,W M MORRISONS.COM,03/01/2021,H59620210106XCUKHNBXN-1,18.42,BLUEBELLS-FOOD & DRINK SUPPLIES,GROCERY STORES AND SUPERMARKETS,GPC
WALSALL COUNCIL,http://opendatacommunities.org/id/metropolitan-district-council/walsall,31/03/2021,CHILDRENS SERVICES,W M MORRISONS.COM,03/01/2021,H59620210106XCUKHNBXN-2,76.58,BLUEBELLS-FOOD & DRINK SUPPLIES,GROCERY STORES AND SUPERMARKETS,GPC
WALSALL COUNCIL,http://opendatacommunities.org/id/metropolitan-district-council/walsall,31/03/2021,CHILDRENS SERVICES,WIX.COM*PREMIUM-PLAN,03/01/2021,H59620210108RSRCKAUNF-1,111.75,EDUCATION BUSINESS PARTNERSHIP-STATIONERY & GENERAL OFFICE SU,DIRECT MARKETING CONTINUITY SUBSCRIPTION MERCHANTS,GPC
WALSALL COUNCIL,http://opendatacommunities.org/id/metropolitan-district-council/walsall,31/03/2021,ECONOMY & ENVIRONMENT,FOREIGN EXCHANGE FEE,04/01/2021,H59620210105MXHWQVUPQ-1,0.25,NAG - TEMPORARY EXHIBITIONS-POSTAGES & COURIER SERVICES,,GPC
WALSALL COUNCIL,http://opendatacommunities.org/id/metropolitan-district-council/walsall,31/03/2021,RESOURCES & TRANSFORMATION,FOREIGN EXCHANGE FEE,04/01/2021,H59620210105SSLFHMGSY-1,7.04,APPLICATIONS-COMPUTER EQUIPMENT,,GPC
WALSALL COUNCIL,http://opendatacommunities.org/id/metropolitan-district-council/walsall,31/03/2021,CHILDRENS SERVICES,PAYPAL *PICAXESTORE,04/01/2021,H59620210106BHFITUKDX-1,84.55,DT & ART-MATERIALS,"SCHOOLS, BUSINESS AND SECRETARIAL",GPC
WALSALL COUNCIL,http://opendatacommunities.org/id/metropolitan-district-council/walsall,31/03/2021,CHILDRENS SERVICES,TRAVELODGE GB0000,04/01/2021,H59620210106BQMJGXBEV-1,24.99,ACCOMMODATION SERVICES MANAGEM-BED & BREAKFAST PAYMENTS,TRAVELODGE,GPC
WALSALL COUNCIL,http://opendatacommunities.org/id/metropolitan-district-council/walsall,31/03/2021,CHILDRENS SERVICES,TRAVELODGE GB0000,04/01/2021,H59620210106BQMJGXBEV-2,0.49,ACCOMMODATION SERVICES MANAGEM-PROFESSIONAL FEES & SERVICES,TRAVELODGE,GPC
WALSALL COUNCIL,http://opendatacommunities.org/id/metropolitan-district-council/walsall,31/03/2021,RESOURCES & TRANSFORMATION,SAINSBURYS S/MKT,04/01/2021,H59620210106BWFMXFTYT-1,11.50,CATERING - MANAGEMENT-FOOD & DRINK SUPPLIES,GROCERY STORES AND SUPERMARKETS,GPC
WALSALL COUNCIL,http://opendatacommunities.org/id/metropolitan-district-council/walsall,31/03/2021,ADULT SOCIAL CARE,AMAZON.CO.UK*MJ5UJ6BK4,04/01/2021,H59620210106BWFPUHHHO-1,54.90,EDUCATION MANAGEMENT - OUTBREA-PURCHASE OF FURNITURE & EQUIPM,OTHER DIRECT MARKETING-OTHER DIRECT MARKETERS,GPC
WALSALL COUNCIL,http://opendatacommunities.org/id/metropolitan-district-council/walsall,31/03/2021,CHILDRENS SERVICES,F2 MEDICAL SUPPLIES LTD,04/01/2021,H59620210106DGDTPXAEK-1,73.50,SPECIAL FACILITIES-MATERIALS,DENTAL/LABORATORY/MEDICAL EQUIPMENT & SUPPLIES,GPC
WALSALL COUNCIL,http://opendatacommunities.org/id/metropolitan-district-council/walsall,31/03/2021,CHILDRENS SERVICES,MUSTANG CLEANING SUPPLIES,04/01/2021,H59620210106DKRGZEEBY-1,256.20,LEIGHSWOOD PRIMARY SCHOOL-PERSONAL REQUISITES-MATERIALS,"SPECIALTY CLEANING, POLISHING, AND SANITATION",GPC
WALSALL COUNCIL,http://opendatacommunities.org/id/metropolitan-district-council/walsall,31/03/2021,CHILDRENS SERVICES,TESCO STORES 6161,04/01/2021,H59620210106DLSGSQVTI-1,7.17,WALSALL CRISIS SUPPORT SCHEME-CRISIS SUPPORT PAYMENTS,GROCERY STORES AND SUPERMARKETS,GPC
WALSALL COUNCIL,http://opendatacommunities.org/id/metropolitan-district-council/walsall,31/03/2021,CHILDRENS SERVICES,TESCO STORES 6161,04/01/2021,H59620210106DLSGSQVTI-2,7.83,WALSALL CRISIS SUPPORT SCHEME-CRISIS SUPPORT PAYMENTS,GROCERY STORES AND SUPERMARKETS,GPC
WALSALL COUNCIL,http://opendatacommunities.org/id/metropolitan-district-council/walsall,31/03/2021,CHILDRENS SERVICES,AMZNMKTPLACE AMAZON.CO.UK,04/01/2021,H59620210106ENKDSAHXF-1,37.42,ELMWOOD SCHOOL-OPERATIONAL MAINTENANCE,MISCELLANEOUS AND SPECIALTY RETAIL STORES,GPC
WALSALL COUNCIL,http://opendatacommunities.org/id/metropolitan-district-council/walsall,31/03/2021,CHILDRENS SERVICES,AMZNMKTPLACE,04/01/2021,H59620210106FGVOSUUJI-1,27.77,E19-MATERIALS,MISCELLANEOUS AND SPECIALTY RETAIL STORES,GPC
WALSALL COUNCIL,http://opendatacommunities.org/id/metropolitan-district-council/walsall,31/03/2021,CHILDRENS SERVICES,BT.COM BUSINESS BP,04/01/2021,H59620210106FUSNGMCUY-1,104.52,ADMINISTRATIVE SUPPLIES-LANDLINE PHONES,TELECOMMUNICATION SERVICES,GPC
WALSALL COUNCIL,http://opendatacommunities.org/id/metropolitan-district-council/walsall,31/03/2021,ADULT SOCIAL CARE,AMAZON.CO.UK*MJ6US6B64,04/01/2021,H59620210106GNOYMEMLL-1,54.90,EDUCATION MANAGEMENT - OUTBREA-PURCHASE OF FURNITURE & EQUIPM,OTHER DIRECT MARKETING-OTHER DIRECT MARKETERS,GPC
WALSALL COUNCIL,http://opendatacommunities.org/id/metropolitan-district-council/walsall,31/03/2021,CHILDRENS SERVICES,TESCO STORES 6161,04/01/2021,H59620210106HXLKTSVRM-1,10.00,WALSALL CRISIS SUPPORT SCHEME-MOBILE PHONES,GROCERY STORES AND SUPERMARKETS,GPC
WALSALL COUNCIL,http://opendatacommunities.org/id/metropolitan-district-council/walsall,31/03/2021,CHILDRENS SERVICES,TESCO STORES 6161,04/01/2021,H59620210106HXLKTSVRM-2,6.99,WALSALL CRISIS SUPPORT SCHEME-MOBILE PHONES,GROCERY STORES AND SUPERMARKETS,GPC
WALSALL COUNCIL,http://opendatacommunities.org/id/metropolitan-district-council/walsall,31/03/2021,CHILDRENS SERVICES,PAYPAL *PCW PAYPAL,04/01/2021,H59620210106HYFSXJRCS-1,489.00,ADMINISTRATIVE SUPPLIES-PURCHASE OF FURNITURE & EQUIPM,ELECTRONIC SALES,GPC
WALSALL COUNCIL,http://opendatacommunities.org/id/metropolitan-district-council/walsall,31/03/2021,CHILDRENS SERVICES,W M MORRISONS.COM,04/01/2021,H59620210106ITVOXWOWQ-1,25.98,PELSALL VILLAGE SCHOOL-FOOD & DRINK SUPPLIES,GROCERY STORES AND SUPERMARKETS,GPC
WALSALL COUNCIL,http://opendatacommunities.org/id/metropolitan-district-council/walsall,31/03/2021,CHILDRENS SERVICES,W M MORRISONS.COM,04/01/2021,H59620210106ITVOXWOWQ-2,46.02,PELSALL VILLAGE SCHOOL-FOOD & DRINK SUPPLIES,GROCERY STORES AND SUPERMARKETS,GPC
WALSALL COUNCIL,http://opendatacommunities.org/id/metropolitan-district-council/walsall,31/03/2021,CHILDRENS SERVICES,MIP*TESCO MOBILE TOPUP,04/01/2021,H59620210106IVMCLXUTX-1,30.00,PALFREY JUNIOR SCHOOL-MOBILE PHONES,TELECOMMUNICATION SERVICES,GPC
WALSALL COUNCIL,http://opendatacommunities.org/id/metropolitan-district-council/walsall,31/03/2021,CHILDRENS SERVICES,AMZNMKTPLACE,04/01/2021,H59620210106KSMNSHHZT-1,37.98,ICT LEARNING RESOURCES-MATERIALS,MISCELLANEOUS AND SPECIALTY RETAIL STORES,GPC
WALSALL COUNCIL,http://opendatacommunities.org/id/metropolitan-district-council/walsall,31/03/2021,RESOURCES & TRANSFORMATION,SP * ENERGYBULBS.CO.UK,04/01/2021,H59620210106LRGMXOVLX-1,135.80,CENTRAL OFFICE ACCOMMODATION-OPERATIONAL MAINTENANCE,COMPUTER SOFTWARE STORES,GPC
WALSALL COUNCIL,http://opendatacommunities.org/id/metropolitan-district-council/walsall,31/03/2021,CHILDRENS SERVICES,TESCO STORES 6161,04/01/2021,H59620210106LTEROAAFY-1,10.00,WALSALL CRISIS SUPPORT SCHEME-CRISIS SUPPORT PAYMENTS,GROCERY STORES AND SUPERMARKETS,GPC
WALSALL COUNCIL,http://opendatacommunities.org/id/metropolitan-district-council/walsall,31/03/2021,ECONOMY & ENVIRONMENT,WWW.LABELS4U.CO.UK,04/01/2021,H59620210106MEBUMNUHB-1,7.40,CEMETERIES CENTRAL ADMINISTRAT-MATERIALS,"OFFICE, SCHOOL SUPPLY, AND STATIONERY STORES",GPC
WALSALL COUNCIL,http://opendatacommunities.org/id/metropolitan-district-council/walsall,31/03/2021,CHILDRENS SERVICES,TESCO STORE 3351,04/01/2021,H59620210106MJQVZBXWR-1,11.98,ADOLESCENT SERVICE-FOOD & DRINK SUPPLIES,GROCERY STORES AND SUPERMARKETS,GPC
WALSALL COUNCIL,http://opendatacommunities.org/id/metropolitan-district-council/walsall,31/03/2021,CHILDRENS SERVICES,AMAZON.CO.UK*MJ0GW0BI4,04/01/2021,H59620210106MRQHDLQBQ-1,93.71,ADMINISTRATIVE SUPPLIES-MATERIALS,OTHER DIRECT MARKETING-OTHER DIRECT MARKETERS,GPC
WALSALL COUNCIL,http://opendatacommunities.org/id/metropolitan-district-council/walsall,31/03/2021,CHILDRENS SERVICES,ALDI 772 129,04/01/2021,H59620210106NSNSSXDIQ-1,3.17,"43A HILTON ROAD, WILLENHALL-FOOD & DRINK SUPPLIES",GROCERY STORES AND SUPERMARKETS,GPC
WALSALL COUNCIL,http://opendatacommunities.org/id/metropolitan-district-council/walsall,31/03/2021,CHILDRENS SERVICES,ALDI 772 129,04/01/2021,H59620210106NSNSSXDIQ-2,45.17,"43A HILTON ROAD, WILLENHALL-FOOD & DRINK SUPPLIES",GROCERY STORES AND SUPERMARKETS,GPC
WALSALL COUNCIL,http://opendatacommunities.org/id/metropolitan-district-council/walsall,31/03/2021,CHILDRENS SERVICES,MERCURE BARONS COURT HO,04/01/2021,H59620210106QGHRABCJW-1,233.00,BED & BREAKFAST PAYMENTS-BED & BREAKFAST PAYMENTS,"HOTELS, MOTELS, RESORTS",GPC
WALSALL COUNCIL,http://opendatacommunities.org/id/metropolitan-district-council/walsall,31/03/2021,CHILDRENS SERVICES,AMZNMKTPLACE,04/01/2021,H59620210106QMZECWBXG-1,25.99,REDRUTH ROAD-RESIDENTS PERSONAL EXPENSES-AL,MISCELLANEOUS AND SPECIALTY RETAIL STORES,GPC
WALSALL COUNCIL,http://opendatacommunities.org/id/metropolitan-district-council/walsall,31/03/2021,CHILDRENS SERVICES,METRO WALSALL,04/01/2021,H59620210106SAJTQSGGB-1,38.00,BED & BREAKFAST PAYMENTS-HOTEL ACCOMMODATION-EMPLOYEES,"HOTELS, MOTELS, RESORTS",GPC
WALSALL COUNCIL,http://opendatacommunities.org/id/metropolitan-district-council/walsall,31/03/2021,CHILDRENS SERVICES,ALDI 42 772,04/01/2021,H59620210106TMSCAHVCK-1,7.36,REDRUTH ROAD-FOOD & DRINK SUPPLIES,GROCERY STORES AND SUPERMARKETS,GPC
WALSALL COUNCIL,http://opendatacommunities.org/id/metropolitan-district-council/walsall,31/03/2021,CHILDRENS SERVICES,ALDI 42 772,04/01/2021,H59620210106TMSCAHVCK-2,99.64,REDRUTH ROAD-FOOD & DRINK SUPPLIES,GROCERY STORES AND SUPERMARKETS,GPC
WALSALL COUNCIL,http://opendatacommunities.org/id/metropolitan-district-council/walsall,31/03/2021,CHILDRENS SERVICES,ARGOS LTD,04/01/2021,H59620210106TYCXNLTSD-1,37.49,SAFEGUARDING & FAMILY SUPPORT-SECTION 1/17CHILD CARE ACT 198,DISCOUNT STORES,GPC
WALSALL COUNCIL,http://opendatacommunities.org/id/metropolitan-district-council/walsall,31/03/2021,ADULT SOCIAL CARE,AMAZON.CO.UK*MJ5FL3BG4,04/01/2021,H59620210106UJBCGKYNF-1,54.89,EDUCATION MANAGEMENT - OUTBREA-PURCHASE OF FURNITURE & EQUIPM,OTHER DIRECT MARKETING-OTHER DIRECT MARKETERS,GPC
WALSALL COUNCIL,http://opendatacommunities.org/id/metropolitan-district-council/walsall,31/03/2021,CHILDRENS SERVICES,HIE LICHFIELD,04/01/2021,H59620210106WKJFTSTYZ-1,138.67,BED & BREAKFAST PAYMENTS-HOTEL ACCOMMODATION-EMPLOYEES,HOLIDAY INNS,GPC
WALSALL COUNCIL,http://opendatacommunities.org/id/metropolitan-district-council/walsall,31/03/2021,ADULT SOCIAL CARE,AMAZON.CO.UK*MJ6UJ2BD4,04/01/2021,H59620210106WVPWNHLPH-1,54.90,EDUCATION MANAGEMENT - OUTBREA-PURCHASE OF FURNITURE & EQUIPM,OTHER DIRECT MARKETING-OTHER DIRECT MARKETERS,GPC
WALSALL COUNCIL,http://opendatacommunities.org/id/metropolitan-district-council/walsall,31/03/2021,RESOURCES & TRANSFORMATION,BLAKEMORE FOODSERVICE,04/01/2021,H59620210106XGOOVUIVU-1,899.60,CATERING - SCHOOLS-FOOD & DRINK SUPPLIES,CATERERS,GPC
WALSALL COUNCIL,http://opendatacommunities.org/id/metropolitan-district-council/walsall,31/03/2021,ADULT SOCIAL CARE,AMAZON.CO.UK*MJ2FX5BB4,04/01/2021,H59620210106XMMSQHBJV-1,54.90,EDUCATION MANAGEMENT - OUTBREA-PURCHASE OF FURNITURE & EQUIPM,OTHER DIRECT MARKETING-OTHER DIRECT MARKETERS,GPC
WALSALL COUNCIL,http://opendatacommunities.org/id/metropolitan-district-council/walsall,31/03/2021,CHILDRENS SERVICES,ARGOS LTD,04/01/2021,H59620210106YUAXQXQGM-1,37.49,SAFEGUARDING & FAMILY SUPPORT-SECTION 1/17CHILD CARE ACT 198,DISCOUNT STORES,GPC
WALSALL COUNCIL,http://opendatacommunities.org/id/metropolitan-district-council/walsall,31/03/2021,CHILDRENS SERVICES,PREMIER INN44533745,04/01/2021,H59620210107MVLWCGRTP-1,468.00,BED & BREAKFAST PAYMENTS-BED & BREAKFAST PAYMENTS,PREMIER INN,GPC
WALSALL COUNCIL,http://opendatacommunities.org/id/metropolitan-district-council/walsall,31/03/2021,RESOURCES & TRANSFORMATION,WWW.SCC.COM,04/01/2021,H59620210108IUAXVSXEV-1,4680.00,RECHARGEABLE EQUIPMENT-COMPUTER EQUIPMENT,"COMPUTERS, COMPUTER PERIPHERAL EQUIPMENT, SOFTWARE",GPC
WALSALL COUNCIL,http://opendatacommunities.org/id/metropolitan-district-council/walsall,31/03/2021,CHILDRENS SERVICES,NISA LOCAL,05/01/2021,H59620210107BAQCTWMHF-1,5.67,REDRUTH ROAD-FOOD & DRINK SUPPLIES,MISCELLANEOUS FOOD STORES & CONVENIENCE STORES,GPC
WALSALL COUNCIL,http://opendatacommunities.org/id/metropolitan-district-council/walsall,31/03/2021,RESOURCES & TRANSFORMATION,ARTHUR BRETT CATER,05/01/2021,H59620210107BGBHAINVM-1,38.45,CATERING - SCHOOLS-FOOD & DRINK SUPPLIES,MISCELLANEOUS FOOD STORES & CONVENIENCE STORES,GPC
WALSALL COUNCIL,http://opendatacommunities.org/id/metropolitan-district-council/walsall,31/03/2021,RESOURCES & TRANSFORMATION,NOBISCO LIMITED,05/01/2021,H59620210107BURTDJHVL-1,139.20,CATERING - MANAGEMENT-FOOD & DRINK SUPPLIES,OTHER INDUSTRIAL SUPPLIES,GPC
WALSALL COUNCIL,http://opendatacommunities.org/id/metropolitan-district-council/walsall,31/03/2021,RESOURCES & TRANSFORMATION,ARTHUR BRETT CATER,05/01/2021,H59620210107CBBKRROXT-1,93.78,CATERING - SCHOOLS-FOOD & DRINK SUPPLIES,MISCELLANEOUS FOOD STORES & CONVENIENCE STORES,GPC
WALSALL COUNCIL,http://opendatacommunities.org/id/metropolitan-district-council/walsall,31/03/2021,CHILDRENS SERVICES,AMZNMKTPLACE,05/01/2021,H59620210107CHTWBXRNX-1,3.99,BLUEBELLS-STATIONERY & GENERAL OFFICE SU,MISCELLANEOUS AND SPECIALTY RETAIL STORES,GPC
WALSALL COUNCIL,http://opendatacommunities.org/id/metropolitan-district-council/walsall,31/03/2021,RESOURCES & TRANSFORMATION,ARTHUR BRETT CATER,05/01/2021,H59620210107CWQUFERVI-1,42.88,CATERING - SCHOOLS-FOOD & DRINK SUPPLIES,MISCELLANEOUS FOOD STORES & CONVENIENCE STORES,GPC
WALSALL COUNCIL,http://opendatacommunities.org/id/metropolitan-district-council/walsall,31/03/2021,CHILDRENS SERVICES,ALDI 772 129,05/01/2021,H59620210107EBYFAMBOO-1,8.97,"43A HILTON ROAD, WILLENHALL-FOOD & DRINK SUPPLIES",GROCERY STORES AND SUPERMARKETS,GPC
WALSALL COUNCIL,http://opendatacommunities.org/id/metropolitan-district-council/walsall,31/03/2021,CHILDRENS SERVICES,ALDI 772 129,05/01/2021,H59620210107EBYFAMBOO-2,0.89,"43A HILTON ROAD, WILLENHALL-FOOD & DRINK SUPPLIES",GROCERY STORES AND SUPERMARKETS,GPC
WALSALL COUNCIL,http://opendatacommunities.org/id/metropolitan-district-council/walsall,31/03/2021,ADULT SOCIAL CARE,NOBISCO LIMITED,05/01/2021,H59620210107FLRWOSNLB-1,21.84,EDUCATION MANAGEMENT - OUTBREA-MEDICAL REQUISITES-MATERIALS,OTHER INDUSTRIAL SUPPLIES,GPC
WALSALL COUNCIL,http://opendatacommunities.org/id/metropolitan-district-council/walsall,31/03/2021,RESOURCES & TRANSFORMATION,NOBISCO LIMITED,05/01/2021,H59620210107FQVKNLSTO-1,55.27,CATERING - SCHOOLS-FOOD & DRINK SUPPLIES,OTHER INDUSTRIAL SUPPLIES,GPC
WALSALL COUNCIL,http://opendatacommunities.org/id/metropolitan-district-council/walsall,31/03/2021,RESOURCES & TRANSFORMATION,ARTHUR BRETT CATER,05/01/2021,H59620210107FUPKPOWDR-1,83.89,CATERING - SCHOOLS-FOOD & DRINK SUPPLIES,MISCELLANEOUS FOOD STORES & CONVENIENCE STORES,GPC
WALSALL COUNCIL,http://opendatacommunities.org/id/metropolitan-district-council/walsall,31/03/2021,ECONOMY & ENVIRONMENT,WWW.BANNERUK.COM,05/01/2021,H59620210107GGOXLKDDO-1,3.62,CEMETERIES CENTRAL ADMINISTRAT-MATERIALS,"STATIONERY, OFFICE SUPPLIES AND WRITING PAPER",GPC
WALSALL COUNCIL,http://opendatacommunities.org/id/metropolitan-district-council/walsall,31/03/2021,RESOURCES & TRANSFORMATION,ARTHUR BRETT CATER,05/01/2021,H59620210107HDTKULETC-1,96.48,CATERING - SCHOOLS-FOOD & DRINK SUPPLIES,MISCELLANEOUS FOOD STORES & CONVENIENCE STORES,GPC
WALSALL COUNCIL,http://opendatacommunities.org/id/metropolitan-district-council/walsall,31/03/2021,CHILDRENS SERVICES,AMAZON.CO.UK*MJ5RD5QP4,05/01/2021,H59620210107HNSINQTCT-1,37.98,WATLING STREET PRIMARY SCHOOL-PERSONAL REQUISITES-MATERIALS,OTHER DIRECT MARKETING-OTHER DIRECT MARKETERS,GPC
WALSALL COUNCIL,http://opendatacommunities.org/id/metropolitan-district-council/walsall,31/03/2021,ECONOMY & ENVIRONMENT,B & Q 1276,05/01/2021,H59620210107HXDLXZOWS-1,20.78,INFRASTRUCTURE MAINTENANCE-MATERIALS,HOME SUPPLY WAREHOUSE STORES,GPC
WALSALL COUNCIL,http://opendatacommunities.org/id/metropolitan-district-council/walsall,31/03/2021,RESOURCES & TRANSFORMATION,ARTHUR BRETT CATER,05/01/2021,H59620210107IBHYFVYGH-1,28.63,CATERING - SCHOOLS-FOOD & DRINK SUPPLIES,MISCELLANEOUS FOOD STORES & CONVENIENCE STORES,GPC
WALSALL COUNCIL,http://opendatacommunities.org/id/metropolitan-district-council/walsall,31/03/2021,RESOURCES & TRANSFORMATION,ARTHUR BRETT CATER,05/01/2021,H59620210107IHGKQBJZV-1,25.49,CATERING - SCHOOLS-FOOD & DRINK SUPPLIES,MISCELLANEOUS FOOD STORES & CONVENIENCE STORES,GPC
WALSALL COUNCIL,http://opendatacommunities.org/id/metropolitan-district-council/walsall,31/03/2021,RESOURCES & TRANSFORMATION,CHICKEN JOES LTD,05/01/2021,H59620210107ILRGHNVSW-1,-31.20,CATERING - SCHOOLS-FOOD & DRINK SUPPLIES,CATERERS,GPC
WALSALL COUNCIL,http://opendatacommunities.org/id/metropolitan-district-council/walsall,31/03/2021,RESOURCES & TRANSFORMATION,ARTHUR BRETT CATER,05/01/2021,H59620210107ISWKYVMWH-1,47.04,CATERING - SCHOOLS-FOOD & DRINK SUPPLIES,MISCELLANEOUS FOOD STORES & CONVENIENCE STORES,GPC
WALSALL COUNCIL,http://opendatacommunities.org/id/metropolitan-district-council/walsall,31/03/2021,RESOURCES & TRANSFORMATION,ARTHUR BRETT CATER,05/01/2021,H59620210107IWRKZPCJC-1,20.63,CATERING - SCHOOLS-FOOD & DRINK SUPPLIES,MISCELLANEOUS FOOD STORES & CONVENIENCE STORES,GPC
WALSALL COUNCIL,http://opendatacommunities.org/id/metropolitan-district-council/walsall,31/03/2021,RESOURCES & TRANSFORMATION,ARTHUR BRETT CATER,05/01/2021,H59620210107JAOKDUTBA-1,38.91,CATERING - SCHOOLS-FOOD & DRINK SUPPLIES,MISCELLANEOUS FOOD STORES & CONVENIENCE STORES,GPC
WALSALL COUNCIL,http://opendatacommunities.org/id/metropolitan-district-council/walsall,31/03/2021,RESOURCES & TRANSFORMATION,CHICKEN JOES LTD,05/01/2021,H59620210107JMWKIFNNL-1,-45.73,CATERING - SCHOOLS-FOOD & DRINK SUPPLIES,CATERERS,GPC
WALSALL COUNCIL,http://opendatacommunities.org/id/metropolitan-district-council/walsall,31/03/2021,RESOURCES & TRANSFORMATION,ARTHUR BRETT CATER,05/01/2021,H59620210107JOZGTXPIY-1,40.50,CATERING - SCHOOLS-FOOD & DRINK SUPPLIES,MISCELLANEOUS FOOD STORES & CONVENIENCE STORES,GPC
WALSALL COUNCIL,http://opendatacommunities.org/id/metropolitan-district-council/walsall,31/03/2021,CHILDRENS SERVICES,THETRAINLINE.COM,05/01/2021,H59620210107JWIBQAWQU-1,154.18,LOOKED AFTER CHILDRENS SOCIAL -OFFICERS & STAFF PUBLIC TRANSP,PASSENGER RAILWAYS,GPC
WALSALL COUNCIL,http://opendatacommunities.org/id/metropolitan-district-council/walsall,31/03/2021,RESOURCES & TRANSFORMATION,ARTHUR BRETT CATER,05/01/2021,H59620210107JYCKVKMNZ-1,68.05,CATERING - SCHOOLS-FOOD & DRINK SUPPLIES,MISCELLANEOUS FOOD STORES & CONVENIENCE STORES,GPC
WALSALL COUNCIL,http://opendatacommunities.org/id/metropolitan-district-council/walsall,31/03/2021,ADULT SOCIAL CARE,B&M 419 - HS REEDSWOOD,05/01/2021,H59620210107JYDOAZRZJ-1,28.00,EDUCATION MANAGEMENT - OUTBREA-PURCHASE OF FURNITURE & EQUIPM,MISCELLANEOUS GENERAL MERCHANDISE,GPC
WALSALL COUNCIL,http://opendatacommunities.org/id/metropolitan-district-council/walsall,31/03/2021,RESOURCES & TRANSFORMATION,ARTHUR BRETT CATER,05/01/2021,H59620210107KBYYJVQHA-1,59.90,CATERING - SCHOOLS-FOOD & DRINK SUPPLIES,MISCELLANEOUS FOOD STORES & CONVENIENCE STORES,GPC
WALSALL COUNCIL,http://opendatacommunities.org/id/metropolitan-district-council/walsall,31/03/2021,RESOURCES & TRANSFORMATION,ARTHUR BRETT CATER,05/01/2021,H59620210107KFMLOIVZE-1,11.87,CATERING - SCHOOLS-FOOD & DRINK SUPPLIES,MISCELLANEOUS FOOD STORES & CONVENIENCE STORES,GPC
WALSALL COUNCIL,http://opendatacommunities.org/id/metropolitan-district-council/walsall,31/03/2021,CHILDRENS SERVICES,ASDA SUPERSTORE,05/01/2021,H59620210107LKBZKLWON-1,2.74,"43A HILTON ROAD, WILLENHALL-FOOD & DRINK SUPPLIES",GROCERY STORES AND SUPERMARKETS,GPC
WALSALL COUNCIL,http://opendatacommunities.org/id/metropolitan-district-council/walsall,31/03/2021,CHILDRENS SERVICES,ASDA SUPERSTORE,05/01/2021,H59620210107LKBZKLWON-2,2.88,"43A HILTON ROAD, WILLENHALL-FOOD & DRINK SUPPLIES",GROCERY STORES AND SUPERMARKETS,GPC
WALSALL COUNCIL,http://opendatacommunities.org/id/metropolitan-district-council/walsall,31/03/2021,CHILDRENS SERVICES,ALDI 772 129,05/01/2021,H59620210107LKWCOOYMT-1,15.29,ACCOMMODATION SERVICES MANAGEM-CLEANING MATERIALS,GROCERY STORES AND SUPERMARKETS,GPC
WALSALL COUNCIL,http://opendatacommunities.org/id/metropolitan-district-council/walsall,31/03/2021,RESOURCES & TRANSFORMATION,ARTHUR BRETT CATER,05/01/2021,H59620210107LMCPRCDBI-1,37.75,CATERING - SCHOOLS-FOOD & DRINK SUPPLIES,MISCELLANEOUS FOOD STORES & CONVENIENCE STORES,GPC
WALSALL COUNCIL,http://opendatacommunities.org/id/metropolitan-district-council/walsall,31/03/2021,ADULT SOCIAL CARE,ARGOS LTD,05/01/2021,H59620210107LRBECFCPE-1,88.00,EDUCATION MANAGEMENT - OUTBREA-PURCHASE OF FURNITURE & EQUIPM,DISCOUNT STORES,GPC
WALSALL COUNCIL,http://opendatacommunities.org/id/metropolitan-district-council/walsall,31/03/2021,RESOURCES & TRANSFORMATION,ARTHUR BRETT CATER,05/01/2021,H59620210107MCRZMECKS-1,48.99,CATERING - SCHOOLS-FOOD & DRINK SUPPLIES,MISCELLANEOUS FOOD STORES & CONVENIENCE STORES,GPC
WALSALL COUNCIL,http://opendatacommunities.org/id/metropolitan-district-council/walsall,31/03/2021,ECONOMY & ENVIRONMENT,WWW.BANNERUK.COM,05/01/2021,H59620210107MDMWIDCHY-1,49.91,RESOURCE MANAGEMENT-MATERIALS,"STATIONERY, OFFICE SUPPLIES AND WRITING PAPER",GPC
WALSALL COUNCIL,http://opendatacommunities.org/id/metropolitan-district-council/walsall,31/03/2021,RESOURCES & TRANSFORMATION,ARTHUR BRETT CATER,05/01/2021,H59620210107MQTVHQKTP-1,18.92,CATERING - SCHOOLS-FOOD & DRINK SUPPLIES,MISCELLANEOUS FOOD STORES & CONVENIENCE STORES,GPC
WALSALL COUNCIL,http://opendatacommunities.org/id/metropolitan-district-council/walsall,31/03/2021,ECONOMY & ENVIRONMENT,SAFETY GLOVES,05/01/2021,H59620210107MSQCOKIAD-1,35.04,COUNTRYSIDE MANAGEMENT - OTHER-CLOTHING & LAUNDRY,DENTAL/LABORATORY/MEDICAL EQUIPMENT & SUPPLIES,GPC
WALSALL COUNCIL,http://opendatacommunities.org/id/metropolitan-district-council/walsall,31/03/2021,RESOURCES & TRANSFORMATION,ARTHUR BRETT CATER,05/01/2021,H59620210107MXLEAJDGA-1,82.69,CATERING - SCHOOLS-FOOD & DRINK SUPPLIES,MISCELLANEOUS FOOD STORES & CONVENIENCE STORES,GPC
WALSALL COUNCIL,http://opendatacommunities.org/id/metropolitan-district-council/walsall,31/03/2021,RESOURCES & TRANSFORMATION,ARTHUR BRETT CATER,05/01/2021,H59620210107OKHSJOLCN-1,39.43,CATERING - SCHOOLS-FOOD & DRINK SUPPLIES,MISCELLANEOUS FOOD STORES & CONVENIENCE STORES,GPC
WALSALL COUNCIL,http://opendatacommunities.org/id/metropolitan-district-council/walsall,31/03/2021,CHILDRENS SERVICES,POST OFFICE COUNTER,05/01/2021,H59620210107OTJGFTYJO-1,22.28,FAMILY PLACEMENTS-POSTAGES & COURIER SERVICES,POSTAL SERVICES - GOVERNMENT ONLY,GPC
WALSALL COUNCIL,http://opendatacommunities.org/id/metropolitan-district-council/walsall,31/03/2021,CHILDRENS SERVICES,MARTIN MCCOLL,05/01/2021,H59620210107OVNCDRCMI-1,2.25,ADOLESCENT SERVICE-STATIONERY & GENERAL OFFICE SU,MISCELLANEOUS FOOD STORES & CONVENIENCE STORES,GPC
WALSALL COUNCIL,http://opendatacommunities.org/id/metropolitan-district-council/walsall,31/03/2021,RESOURCES & TRANSFORMATION,CHICKEN JOES LTD,05/01/2021,H59620210107PAMZJHNTW-1,-79.30,CATERING - SCHOOLS-FOOD & DRINK SUPPLIES,CATERERS,GPC
WALSALL COUNCIL,http://opendatacommunities.org/id/metropolitan-district-council/walsall,31/03/2021,RESOURCES & TRANSFORMATION,ARTHUR BRETT CATER,05/01/2021,H59620210107QGLJNVXIX-1,55.29,CATERING - SCHOOLS-FOOD & DRINK SUPPLIES,MISCELLANEOUS FOOD STORES & CONVENIENCE STORES,GPC
WALSALL COUNCIL,http://opendatacommunities.org/id/metropolitan-district-council/walsall,31/03/2021,RESOURCES & TRANSFORMATION,ARTHUR BRETT CATER,05/01/2021,H59620210107QHPOVYWJU-1,50.96,CATERING - SCHOOLS-FOOD & DRINK SUPPLIES,MISCELLANEOUS FOOD STORES & CONVENIENCE STORES,GPC
WALSALL COUNCIL,http://opendatacommunities.org/id/metropolitan-district-council/walsall,31/03/2021,RESOURCES & TRANSFORMATION,ARTHUR BRETT CATER,05/01/2021,H59620210107QXHQTCLYT-1,33.29,CATERING - SCHOOLS-FOOD & DRINK SUPPLIES,MISCELLANEOUS FOOD STORES & CONVENIENCE STORES,GPC
WALSALL COUNCIL,http://opendatacommunities.org/id/metropolitan-district-council/walsall,31/03/2021,RESOURCES & TRANSFORMATION,ARTHUR BRETT CATER,05/01/2021,H59620210107RJKNOBDNH-1,45.95,CATERING - SCHOOLS-FOOD & DRINK SUPPLIES,MISCELLANEOUS FOOD STORES & CONVENIENCE STORES,GPC
WALSALL COUNCIL,http://opendatacommunities.org/id/metropolitan-district-council/walsall,31/03/2021,RESOURCES & TRANSFORMATION,ARTHUR BRETT CATER,05/01/2021,H59620210107RYVBFQRRB-1,85.00,CATERING - SCHOOLS-FOOD & DRINK SUPPLIES,MISCELLANEOUS FOOD STORES & CONVENIENCE STORES,GPC
WALSALL COUNCIL,http://opendatacommunities.org/id/metropolitan-district-council/walsall,31/03/2021,CHILDRENS SERVICES,BOOTS OPTICIANS,05/01/2021,H59620210107SAMFGVLDI-1,30.00,"43A HILTON ROAD, WILLENHALL-RESIDENTS PERSONAL EXPENSES-AL","OPTICIANS, OPTICAL GOODS, AND EYEGLASSES",GPC
WALSALL COUNCIL,http://opendatacommunities.org/id/metropolitan-district-council/walsall,31/03/2021,ECONOMY & ENVIRONMENT,L & S ENGINEERS LTD,05/01/2021,H59620210107SFPFKMHJE-1,136.76,STREET PRIDE MANAGEMENT-MATERIALS,HARDWARE STORES,GPC
WALSALL COUNCIL,http://opendatacommunities.org/id/metropolitan-district-council/walsall,31/03/2021,RESOURCES & TRANSFORMATION,WWW.SCC.COM,05/01/2021,H59620210107SIQELATBB-1,180.00,RECHARGEABLE EQUIPMENT-COMPUTER EQUIPMENT,"COMPUTERS, COMPUTER PERIPHERAL EQUIPMENT, SOFTWARE",GPC
WALSALL COUNCIL,http://opendatacommunities.org/id/metropolitan-district-council/walsall,31/03/2021,ECONOMY & ENVIRONMENT,POST OFFICE COUNTER,05/01/2021,H59620210107SWKDDOWFG-1,2.69,LEATHER MUSEUM-MATERIALS,POSTAL SERVICES - GOVERNMENT ONLY,GPC
WALSALL COUNCIL,http://opendatacommunities.org/id/metropolitan-district-council/walsall,31/03/2021,CHILDRENS SERVICES,WEST MIDLAND CARD,05/01/2021,H59620210107SWRTIELFV-1,3.00,TRANSITION AND LEAVING CARE PL-OFFICERS & STAFF PUBLIC TRANSP,BUS LINES,GPC
WALSALL COUNCIL,http://opendatacommunities.org/id/metropolitan-district-council/walsall,31/03/2021,RESOURCES & TRANSFORMATION,ARTHUR BRETT CATER,05/01/2021,H59620210107TAYZQQDWB-1,30.59,CATERING - SCHOOLS-FOOD & DRINK SUPPLIES,MISCELLANEOUS FOOD STORES & CONVENIENCE STORES,GPC
WALSALL COUNCIL,http://opendatacommunities.org/id/metropolitan-district-council/walsall,31/03/2021,RESOURCES & TRANSFORMATION,ARTHUR BRETT CATER,05/01/2021,H59620210107TPYTUTWDV-1,77.70,CATERING - SCHOOLS-FOOD & DRINK SUPPLIES,MISCELLANEOUS FOOD STORES & CONVENIENCE STORES,GPC
WALSALL COUNCIL,http://opendatacommunities.org/id/metropolitan-district-council/walsall,31/03/2021,RESOURCES & TRANSFORMATION,ARTHUR BRETT CATER,05/01/2021,H59620210107TWIEFSVTK-1,20.38,CATERING - SCHOOLS-FOOD & DRINK SUPPLIES,MISCELLANEOUS FOOD STORES & CONVENIENCE STORES,GPC
WALSALL COUNCIL,http://opendatacommunities.org/id/metropolitan-district-council/walsall,31/03/2021,CHILDRENS SERVICES,WHSMITH.CO.UK,05/01/2021,H59620210107VHMCRARRE-1,26.48,E19-MATERIALS,"OFFICE, SCHOOL SUPPLY, AND STATIONERY STORES",GPC
WALSALL COUNCIL,http://opendatacommunities.org/id/metropolitan-district-council/walsall,31/03/2021,RESOURCES & TRANSFORMATION,ARTHUR BRETT CATER,05/01/2021,H59620210107VTUSESSCI-1,38.35,CATERING - SCHOOLS-FOOD & DRINK SUPPLIES,MISCELLANEOUS FOOD STORES & CONVENIENCE STORES,GPC
WALSALL COUNCIL,http://opendatacommunities.org/id/metropolitan-district-council/walsall,31/03/2021,RESOURCES & TRANSFORMATION,NOBISCO LIMITED,05/01/2021,H59620210107VYAHYQMGM-1,71.66,CATERING - SCHOOLS-FOOD & DRINK SUPPLIES,OTHER INDUSTRIAL SUPPLIES,GPC
WALSALL COUNCIL,http://opendatacommunities.org/id/metropolitan-district-council/walsall,31/03/2021,ADULT SOCIAL CARE,AMAZON.CO.UK*MJ44U0844,05/01/2021,H59620210107WULLOCMDF-1,32.45,EDUCATION MANAGEMENT - OUTBREA-MEDICAL REQUISITES-MATERIALS,OTHER DIRECT MARKETING-OTHER DIRECT MARKETERS,GPC
WALSALL COUNCIL,http://opendatacommunities.org/id/metropolitan-district-council/walsall,31/03/2021,RESOURCES & TRANSFORMATION,ARTHUR BRETT CATER,05/01/2021,H59620210107XWUVBCPOJ-1,21.28,CATERING - SCHOOLS-FOOD & DRINK SUPPLIES,MISCELLANEOUS FOOD STORES & CONVENIENCE STORES,GPC
WALSALL COUNCIL,http://opendatacommunities.org/id/metropolitan-district-council/walsall,31/03/2021,ECONOMY & ENVIRONMENT,WWW.BANNERUK.COM,05/01/2021,H59620210107YAGCCJFQQ-1,1.73,CEMETERIES CENTRAL ADMINISTRAT-MATERIALS,"STATIONERY, OFFICE SUPPLIES AND WRITING PAPER",GPC
WALSALL COUNCIL,http://opendatacommunities.org/id/metropolitan-district-council/walsall,31/03/2021,RESOURCES & TRANSFORMATION,ARTHUR BRETT CATER,05/01/2021,H59620210107YFUKJYRBC-1,53.73,CATERING - SCHOOLS-FOOD & DRINK SUPPLIES,MISCELLANEOUS FOOD STORES & CONVENIENCE STORES,GPC
WALSALL COUNCIL,http://opendatacommunities.org/id/metropolitan-district-council/walsall,31/03/2021,RESOURCES & TRANSFORMATION,ARTHUR BRETT CATER,05/01/2021,H59620210107YQJILNULL-1,58.48,CATERING - SCHOOLS-FOOD & DRINK SUPPLIES,MISCELLANEOUS FOOD STORES & CONVENIENCE STORES,GPC
WALSALL COUNCIL,http://opendatacommunities.org/id/metropolitan-district-council/walsall,31/03/2021,RESOURCES & TRANSFORMATION,ARTHUR BRETT CATER,05/01/2021,H59620210107YZWUTFTOO-1,41.15,CATERING - SCHOOLS-FOOD & DRINK SUPPLIES,MISCELLANEOUS FOOD STORES & CONVENIENCE STORES,GPC
WALSALL COUNCIL,http://opendatacommunities.org/id/metropolitan-district-council/walsall,31/03/2021,ECONOMY & ENVIRONMENT,AMAZON.CO.UK*MJ1J92QG4 AM,05/01/2021,H59620210108CUZMLLNKF-1,21.48,AREA PARTNERSHIPS-STATIONERY & GENERAL OFFICE SU,MISCELLANEOUS AND SPECIALTY RETAIL STORES,GPC
WALSALL COUNCIL,http://opendatacommunities.org/id/metropolitan-district-council/walsall,31/03/2021,ECONOMY & ENVIRONMENT,TVLICENSING.CO.UK,05/01/2021,H59620210108NHVEONIKT-1,157.50,WALSALL ARENA AND ARTS CENTRE-FEES & LICENCES,"CONSULTING, MANAGEMENT, AND PR SERVICES",GPC
WALSALL COUNCIL,http://opendatacommunities.org/id/metropolitan-district-council/walsall,31/03/2021,RESOURCES & TRANSFORMATION,ARTHUR BRETT CATER,05/01/2021,H59620210213CIBHTWWOG-1,-85.00,CATERING - SCHOOLS-FOOD & DRINK SUPPLIES,MISCELLANEOUS FOOD STORES & CONVENIENCE STORES,GPC
WALSALL COUNCIL,http://opendatacommunities.org/id/metropolitan-district-council/walsall,31/03/2021,RESOURCES & TRANSFORMATION,ARTHUR BRETT CATER,05/01/2021,H59620210213CWOTPOJPI-1,-20.63,CATERING - SCHOOLS-FOOD & DRINK SUPPLIES,MISCELLANEOUS FOOD STORES & CONVENIENCE STORES,GPC
WALSALL COUNCIL,http://opendatacommunities.org/id/metropolitan-district-council/walsall,31/03/2021,RESOURCES & TRANSFORMATION,ARTHUR BRETT CATER,05/01/2021,H59620210213DAOYAAAHW-1,-41.15,CATERING - SCHOOLS-FOOD & DRINK SUPPLIES,MISCELLANEOUS FOOD STORES & CONVENIENCE STORES,GPC
WALSALL COUNCIL,http://opendatacommunities.org/id/metropolitan-district-council/walsall,31/03/2021,RESOURCES & TRANSFORMATION,ARTHUR BRETT CATER,05/01/2021,H59620210213EPSIPOHNU-1,-33.29,CATERING - SCHOOLS-FOOD & DRINK SUPPLIES,MISCELLANEOUS FOOD STORES & CONVENIENCE STORES,GPC
WALSALL COUNCIL,http://opendatacommunities.org/id/metropolitan-district-council/walsall,31/03/2021,RESOURCES & TRANSFORMATION,ARTHUR BRETT CATER,05/01/2021,H59620210213EVOPXRPWQ-1,-50.96,CATERING - SCHOOLS-FOOD & DRINK SUPPLIES,MISCELLANEOUS FOOD STORES & CONVENIENCE STORES,GPC
WALSALL COUNCIL,http://opendatacommunities.org/id/metropolitan-district-council/walsall,31/03/2021,RESOURCES & TRANSFORMATION,ARTHUR BRETT CATER,05/01/2021,H59620210213FIBQDSWIP-1,-55.29,CATERING - SCHOOLS-FOOD & DRINK SUPPLIES,MISCELLANEOUS FOOD STORES & CONVENIENCE STORES,GPC
WALSALL COUNCIL,http://opendatacommunities.org/id/metropolitan-district-council/walsall,31/03/2021,RESOURCES & TRANSFORMATION,ARTHUR BRETT CATER,05/01/2021,H59620210213GJOZRGETG-1,-38.91,CATERING - SCHOOLS-FOOD & DRINK SUPPLIES,MISCELLANEOUS FOOD STORES & CONVENIENCE STORES,GPC
WALSALL COUNCIL,http://opendatacommunities.org/id/metropolitan-district-council/walsall,31/03/2021,RESOURCES & TRANSFORMATION,ARTHUR BRETT CATER,05/01/2021,H59620210213IDMHLGKOD-1,-30.59,CATERING - SCHOOLS-FOOD & DRINK SUPPLIES,MISCELLANEOUS FOOD STORES & CONVENIENCE STORES,GPC
WALSALL COUNCIL,http://opendatacommunities.org/id/metropolitan-district-council/walsall,31/03/2021,RESOURCES & TRANSFORMATION,ARTHUR BRETT CATER,05/01/2021,H59620210213ISLHVRODV-1,-68.05,CATERING - SCHOOLS-FOOD & DRINK SUPPLIES,MISCELLANEOUS FOOD STORES & CONVENIENCE STORES,GPC
WALSALL COUNCIL,http://opendatacommunities.org/id/metropolitan-district-council/walsall,31/03/2021,RESOURCES & TRANSFORMATION,ARTHUR BRETT CATER,05/01/2021,H59620210213KGKMPKPCZ-1,-93.78,CATERING - SCHOOLS-FOOD & DRINK SUPPLIES,MISCELLANEOUS FOOD STORES & CONVENIENCE STORES,GPC
WALSALL COUNCIL,http://opendatacommunities.org/id/metropolitan-district-council/walsall,31/03/2021,RESOURCES & TRANSFORMATION,ARTHUR BRETT CATER,05/01/2021,H59620210213KGYPNMCIW-1,-40.50,CATERING - SCHOOLS-FOOD & DRINK SUPPLIES,MISCELLANEOUS FOOD STORES & CONVENIENCE STORES,GPC
WALSALL COUNCIL,http://opendatacommunities.org/id/metropolitan-district-council/walsall,31/03/2021,RESOURCES & TRANSFORMATION,ARTHUR BRETT CATER,05/01/2021,H59620210213KYYKEPYOI-1,-42.88,CATERING - SCHOOLS-FOOD & DRINK SUPPLIES,MISCELLANEOUS FOOD STORES & CONVENIENCE STORES,GPC
WALSALL COUNCIL,http://opendatacommunities.org/id/metropolitan-district-council/walsall,31/03/2021,RESOURCES & TRANSFORMATION,ARTHUR BRETT CATER,05/01/2021,H59620210213MVZOITEGN-1,-58.48,CATERING - SCHOOLS-FOOD & DRINK SUPPLIES,MISCELLANEOUS FOOD STORES & CONVENIENCE STORES,GPC
WALSALL COUNCIL,http://opendatacommunities.org/id/metropolitan-district-council/walsall,31/03/2021,RESOURCES & TRANSFORMATION,ARTHUR BRETT CATER,05/01/2021,H59620210213OFOLJAIFR-1,-21.28,CATERING - SCHOOLS-FOOD & DRINK SUPPLIES,MISCELLANEOUS FOOD STORES & CONVENIENCE STORES,GPC
WALSALL COUNCIL,http://opendatacommunities.org/id/metropolitan-district-council/walsall,31/03/2021,RESOURCES & TRANSFORMATION,ARTHUR BRETT CATER,05/01/2021,H59620210213OLKDVWFKS-1,-38.35,CATERING - SCHOOLS-FOOD & DRINK SUPPLIES,MISCELLANEOUS FOOD STORES & CONVENIENCE STORES,GPC
WALSALL COUNCIL,http://opendatacommunities.org/id/metropolitan-district-council/walsall,31/03/2021,RESOURCES & TRANSFORMATION,ARTHUR BRETT CATER,05/01/2021,H59620210213OVJUNWTGV-1,-38.45,CATERING - SCHOOLS-FOOD & DRINK SUPPLIES,MISCELLANEOUS FOOD STORES & CONVENIENCE STORES,GPC
WALSALL COUNCIL,http://opendatacommunities.org/id/metropolitan-district-council/walsall,31/03/2021,RESOURCES & TRANSFORMATION,ARTHUR BRETT CATER,05/01/2021,H59620210213PMRXFTWCK-1,-11.87,CATERING - SCHOOLS-FOOD & DRINK SUPPLIES,MISCELLANEOUS FOOD STORES & CONVENIENCE STORES,GPC
WALSALL COUNCIL,http://opendatacommunities.org/id/metropolitan-district-council/walsall,31/03/2021,RESOURCES & TRANSFORMATION,ARTHUR BRETT CATER,05/01/2021,H59620210213PSZNRPFPV-1,-45.95,CATERING - SCHOOLS-FOOD & DRINK SUPPLIES,MISCELLANEOUS FOOD STORES & CONVENIENCE STORES,GPC
WALSALL COUNCIL,http://opendatacommunities.org/id/metropolitan-district-council/walsall,31/03/2021,RESOURCES & TRANSFORMATION,ARTHUR BRETT CATER,05/01/2021,H59620210213QCHQHTTXG-1,-39.43,CATERING - SCHOOLS-FOOD & DRINK SUPPLIES,MISCELLANEOUS FOOD STORES & CONVENIENCE STORES,GPC
WALSALL COUNCIL,http://opendatacommunities.org/id/metropolitan-district-council/walsall,31/03/2021,RESOURCES & TRANSFORMATION,ARTHUR BRETT CATER,05/01/2021,H59620210213QUSIAFFNF-1,-18.92,CATERING - SCHOOLS-FOOD & DRINK SUPPLIES,MISCELLANEOUS FOOD STORES & CONVENIENCE STORES,GPC
WALSALL COUNCIL,http://opendatacommunities.org/id/metropolitan-district-council/walsall,31/03/2021,RESOURCES & TRANSFORMATION,ARTHUR BRETT CATER,05/01/2021,H59620210213SUJYALSHX-1,-77.70,CATERING - SCHOOLS-FOOD & DRINK SUPPLIES,MISCELLANEOUS FOOD STORES & CONVENIENCE STORES,GPC
WALSALL COUNCIL,http://opendatacommunities.org/id/metropolitan-district-council/walsall,31/03/2021,RESOURCES & TRANSFORMATION,ARTHUR BRETT CATER,05/01/2021,H59620210213SXYIBABLM-1,-53.73,CATERING - SCHOOLS-FOOD & DRINK SUPPLIES,MISCELLANEOUS FOOD STORES & CONVENIENCE STORES,GPC
WALSALL COUNCIL,http://opendatacommunities.org/id/metropolitan-district-council/walsall,31/03/2021,RESOURCES & TRANSFORMATION,ARTHUR BRETT CATER,05/01/2021,H59620210213UQKBSHTBN-1,-47.04,CATERING - SCHOOLS-FOOD & DRINK SUPPLIES,MISCELLANEOUS FOOD STORES & CONVENIENCE STORES,GPC
WALSALL COUNCIL,http://opendatacommunities.org/id/metropolitan-district-council/walsall,31/03/2021,RESOURCES & TRANSFORMATION,ARTHUR BRETT CATER,05/01/2021,H59620210213USBDDDWCC-1,-96.48,CATERING - SCHOOLS-FOOD & DRINK SUPPLIES,MISCELLANEOUS FOOD STORES & CONVENIENCE STORES,GPC
WALSALL COUNCIL,http://opendatacommunities.org/id/metropolitan-district-council/walsall,31/03/2021,RESOURCES & TRANSFORMATION,ARTHUR BRETT CATER,05/01/2021,H59620210213VDEFSFVFR-1,-82.69,CATERING - SCHOOLS-FOOD & DRINK SUPPLIES,MISCELLANEOUS FOOD STORES & CONVENIENCE STORES,GPC
WALSALL COUNCIL,http://opendatacommunities.org/id/metropolitan-district-council/walsall,31/03/2021,RESOURCES & TRANSFORMATION,ARTHUR BRETT CATER,05/01/2021,H59620210213WHXLVXLVQ-1,-37.75,CATERING - SCHOOLS-FOOD & DRINK SUPPLIES,MISCELLANEOUS FOOD STORES & CONVENIENCE STORES,GPC
WALSALL COUNCIL,http://opendatacommunities.org/id/metropolitan-district-council/walsall,31/03/2021,RESOURCES & TRANSFORMATION,ARTHUR BRETT CATER,05/01/2021,H59620210213WSTFPRFVF-1,-59.90,CATERING - SCHOOLS-FOOD & DRINK SUPPLIES,MISCELLANEOUS FOOD STORES & CONVENIENCE STORES,GPC
WALSALL COUNCIL,http://opendatacommunities.org/id/metropolitan-district-council/walsall,31/03/2021,RESOURCES & TRANSFORMATION,ARTHUR BRETT CATER,05/01/2021,H59620210213XRHBKICIJ-1,-20.38,CATERING - SCHOOLS-FOOD & DRINK SUPPLIES,MISCELLANEOUS FOOD STORES & CONVENIENCE STORES,GPC
WALSALL COUNCIL,http://opendatacommunities.org/id/metropolitan-district-council/walsall,31/03/2021,RESOURCES & TRANSFORMATION,ARTHUR BRETT CATER,05/01/2021,H59620210213XXHHEDYNP-1,-28.63,CATERING - SCHOOLS-FOOD & DRINK SUPPLIES,MISCELLANEOUS FOOD STORES & CONVENIENCE STORES,GPC
WALSALL COUNCIL,http://opendatacommunities.org/id/metropolitan-district-council/walsall,31/03/2021,RESOURCES & TRANSFORMATION,ARTHUR BRETT CATER,05/01/2021,H59620210213YCKXQOQXF-1,-48.99,CATERING - SCHOOLS-FOOD & DRINK SUPPLIES,MISCELLANEOUS FOOD STORES & CONVENIENCE STORES,GPC
WALSALL COUNCIL,http://opendatacommunities.org/id/metropolitan-district-council/walsall,31/03/2021,RESOURCES & TRANSFORMATION,ARTHUR BRETT CATER,05/01/2021,H59620210213YLNRIRJOQ-1,-25.49,CATERING - SCHOOLS-FOOD & DRINK SUPPLIES,MISCELLANEOUS FOOD STORES & CONVENIENCE STORES,GPC
WALSALL COUNCIL,http://opendatacommunities.org/id/metropolitan-district-council/walsall,31/03/2021,RESOURCES & TRANSFORMATION,ARTHUR BRETT CATER,05/01/2021,H59620210326VSCHEIESK-1,-83.89,CATERING - SCHOOLS-FOOD & DRINK SUPPLIES,MISCELLANEOUS FOOD STORES & CONVENIENCE STORES,GPC
WALSALL COUNCIL,http://opendatacommunities.org/id/metropolitan-district-council/walsall,31/03/2021,CHILDRENS SERVICES,AIRBNB * HMZZW2P222,06/01/2021,H59620210108AUJOZIRWG-1,830.29,FAMILY PLACEMENTS-HOTEL ACCOMMODATION-EMPLOYEES,"HOTELS, MOTELS, RESORTS",GPC
WALSALL COUNCIL,http://opendatacommunities.org/id/metropolitan-district-council/walsall,31/03/2021,CHILDRENS SERVICES,ASDA SUPERSTORE,06/01/2021,H59620210108BBIFCCJOV-1,75.00,LOOKED AFTER CHILDRENS SOCIAL -EVENTS & VISUAL ARTS,GROCERY STORES AND SUPERMARKETS,GPC
WALSALL COUNCIL,http://opendatacommunities.org/id/metropolitan-district-council/walsall,31/03/2021,CHILDRENS SERVICES,PAYPAL *STORTSLURF,06/01/2021,H59620210108BGUNLQECU-1,55.91,ST FRANCIS OF ASSISI CATHOLIC -OPERATIONAL MAINTENANCE,OTHER CONSTRUCTION MATERIALS,GPC
WALSALL COUNCIL,http://opendatacommunities.org/id/metropolitan-district-council/walsall,31/03/2021,CHILDRENS SERVICES,MIP*TESCO MOBILE TOPUP,06/01/2021,H59620210108BKGYRVDRK-1,20.00,ADMINISTRATIVE SUPPLIES-MOBILE PHONES,TELECOMMUNICATION SERVICES,GPC
WALSALL COUNCIL,http://opendatacommunities.org/id/metropolitan-district-council/walsall,31/03/2021,ECONOMY & ENVIRONMENT,AMAZON.CO.UK*MJ4EF36X4,06/01/2021,H59620210108BPNRKEXUO-1,137.09,COMMUNITY LIASON-MATERIALS,OTHER DIRECT MARKETING-OTHER DIRECT MARKETERS,GPC
WALSALL COUNCIL,http://opendatacommunities.org/id/metropolitan-district-council/walsall,31/03/2021,CHILDRENS SERVICES,AMZNMKTPLACE,06/01/2021,H59620210108BRRFOAWCX-1,29.28,ADMINISTRATIVE SUPPLIES-MATERIALS,MISCELLANEOUS AND SPECIALTY RETAIL STORES,GPC
WALSALL COUNCIL,http://opendatacommunities.org/id/metropolitan-district-council/walsall,31/03/2021,CHILDRENS SERVICES,TRAINLINE,06/01/2021,H59620210108CCBKBBQYA-1,-51.00,SAFEGUARDING & FAMILY SUPPORT-OTHER TRAVEL ALLOWANCES,PASSENGER RAILWAYS,GPC
WALSALL COUNCIL,http://opendatacommunities.org/id/metropolitan-district-council/walsall,31/03/2021,CHILDRENS SERVICES,AMZN MKTP UK*MJ5T61644,06/01/2021,H59620210108CMUOYIGIX-1,12.85,PALFREY JUNIOR SCHOOL-OPERATIONAL MAINTENANCE,BOOK STORES,GPC
WALSALL COUNCIL,http://opendatacommunities.org/id/metropolitan-district-council/walsall,31/03/2021,RESOURCES & TRANSFORMATION,ARTHUR BRETT CATER,06/01/2021,H59620210108CPDXKZIUI-1,23.60,CATERING - SCHOOLS-FOOD & DRINK SUPPLIES,MISCELLANEOUS FOOD STORES & CONVENIENCE STORES,GPC
WALSALL COUNCIL,http://opendatacommunities.org/id/metropolitan-district-council/walsall,31/03/2021,ECONOMY & ENVIRONMENT,WWW.BANNERUK.COM,06/01/2021,H59620210108CVXQPPIQS-1,61.86,CEMETERIES CENTRAL ADMINISTRAT-MATERIALS,"STATIONERY, OFFICE SUPPLIES AND WRITING PAPER",GPC
WALSALL COUNCIL,http://opendatacommunities.org/id/metropolitan-district-council/walsall,31/03/2021,RESOURCES & TRANSFORMATION,ARTHUR BRETT CATER,06/01/2021,H59620210108ELIVJNNXB-1,9.92,CATERING - SCHOOLS-FOOD & DRINK SUPPLIES,MISCELLANEOUS FOOD STORES & CONVENIENCE STORES,GPC
WALSALL COUNCIL,http://opendatacommunities.org/id/metropolitan-district-council/walsall,31/03/2021,CHILDRENS SERVICES,WWW.BANNERUK.COM,06/01/2021,H59620210108ESSROVALE-1,162.00,SAFEGUARDING & FAMILY SUPPORT-STATIONERY & GENERAL OFFICE SU,"STATIONERY, OFFICE SUPPLIES AND WRITING PAPER",GPC
WALSALL COUNCIL,http://opendatacommunities.org/id/metropolitan-district-council/walsall,31/03/2021,CHILDRENS SERVICES,AMZNMKTPLACE,06/01/2021,H59620210108EYQKTSHDD-1,13.99,ADMINISTRATIVE SUPPLIES-MATERIALS,MISCELLANEOUS AND SPECIALTY RETAIL STORES,GPC
WALSALL COUNCIL,http://opendatacommunities.org/id/metropolitan-district-council/walsall,31/03/2021,RESOURCES & TRANSFORMATION,BLAKEMORE FOODSERVICE,06/01/2021,H59620210108FBGSYTJWD-1,398.06,CATERING - SCHOOLS-FOOD & DRINK SUPPLIES,CATERERS,GPC
WALSALL COUNCIL,http://opendatacommunities.org/id/metropolitan-district-council/walsall,31/03/2021,RESOURCES & TRANSFORMATION,BLAKEMORE FOODSERVICE,06/01/2021,H59620210108FWQLJSKCC-1,134.26,CATERING - SCHOOLS-FOOD & DRINK SUPPLIES,CATERERS,GPC
WALSALL COUNCIL,http://opendatacommunities.org/id/metropolitan-district-council/walsall,31/03/2021,CHILDRENS SERVICES,PAYPAL *PHONICBOOKS,06/01/2021,H59620210108GFKRKCWRH-1,70.00,ENGLISH-MATERIALS,"SCHOOLS, ELEMENTARY AND SECONDARY",GPC
WALSALL COUNCIL,http://opendatacommunities.org/id/metropolitan-district-council/walsall,31/03/2021,CHILDRENS SERVICES,AMZNMKTPLACE,06/01/2021,H59620210108GHPDRDSEB-1,27.99,SPECIAL FACILITIES-MATERIALS,MISCELLANEOUS AND SPECIALTY RETAIL STORES,GPC
WALSALL COUNCIL,http://opendatacommunities.org/id/metropolitan-district-council/walsall,31/03/2021,RESOURCES & TRANSFORMATION,NOBISCO LIMITED,06/01/2021,H59620210108HKEYGGCYF-1,134.06,CATERING - SCHOOLS-FOOD & DRINK SUPPLIES,OTHER INDUSTRIAL SUPPLIES,GPC
WALSALL COUNCIL,http://opendatacommunities.org/id/metropolitan-district-council/walsall,31/03/2021,CHILDRENS SERVICES,AMZNMKTPLACE,06/01/2021,H59620210108IGZPQVRIO-1,17.99,TRANSITION AND LEAVING CARE PL-CARE LEAVERS MTCE PAYMENTS,MISCELLANEOUS AND SPECIALTY RETAIL STORES,GPC
WALSALL COUNCIL,http://opendatacommunities.org/id/metropolitan-district-council/walsall,31/03/2021,CHILDRENS SERVICES,AMZNMKTPLACE,06/01/2021,H59620210108IGZPQVRIO-2,5.99,TRANSITION AND LEAVING CARE PL-CARE LEAVERS MTCE PAYMENTS,MISCELLANEOUS AND SPECIALTY RETAIL STORES,GPC
WALSALL COUNCIL,http://opendatacommunities.org/id/metropolitan-district-council/walsall,31/03/2021,CHILDRENS SERVICES,TRAINLINE,06/01/2021,H59620210108IHOAJWTVL-1,102.72,LOOKED AFTER CHILDRENS SOCIAL -OFFICERS & STAFF PUBLIC TRANSP,PASSENGER RAILWAYS,GPC
WALSALL COUNCIL,http://opendatacommunities.org/id/metropolitan-district-council/walsall,31/03/2021,RESOURCES & TRANSFORMATION,BLAKEMORE FOODSERVICE,06/01/2021,H59620210108ILWQJQXNB-1,660.51,CATERING - SCHOOLS-FOOD & DRINK SUPPLIES,CATERERS,GPC
WALSALL COUNCIL,http://opendatacommunities.org/id/metropolitan-district-council/walsall,31/03/2021,RESOURCES & TRANSFORMATION,BLAKEMORE FOODSERVICE,06/01/2021,H59620210108ILWQJQXNB-2,75.79,CATERING - SCHOOLS-FOOD & DRINK SUPPLIES,CATERERS,GPC
WALSALL COUNCIL,http://opendatacommunities.org/id/metropolitan-district-council/walsall,31/03/2021,RESOURCES & TRANSFORMATION,ARTHUR BRETT CATER,06/01/2021,H59620210108IMYPONCVL-1,15.98,CATERING - SCHOOLS-FOOD & DRINK SUPPLIES,MISCELLANEOUS FOOD STORES & CONVENIENCE STORES,GPC
WALSALL COUNCIL,http://opendatacommunities.org/id/metropolitan-district-council/walsall,31/03/2021,RESOURCES & TRANSFORMATION,ARTHUR BRETT CATER,06/01/2021,H59620210108INNQJRYIR-1,15.66,CATERING - SCHOOLS-FOOD & DRINK SUPPLIES,MISCELLANEOUS FOOD STORES & CONVENIENCE STORES,GPC
WALSALL COUNCIL,http://opendatacommunities.org/id/metropolitan-district-council/walsall,31/03/2021,ECONOMY & ENVIRONMENT,AMZNMKTPLACE AMAZON.CO.UK,06/01/2021,H59620210108IQDSTQRPA-1,24.37,AREA PARTNERSHIPS-STATIONERY & GENERAL OFFICE SU,MISCELLANEOUS AND SPECIALTY RETAIL STORES,GPC
WALSALL COUNCIL,http://opendatacommunities.org/id/metropolitan-district-council/walsall,31/03/2021,CHILDRENS SERVICES,AMZNMKTPLACE,06/01/2021,H59620210108IXTCYLDLP-1,7.78,ADMINISTRATIVE SUPPLIES-MATERIALS,MISCELLANEOUS AND SPECIALTY RETAIL STORES,GPC
WALSALL COUNCIL,http://opendatacommunities.org/id/metropolitan-district-council/walsall,31/03/2021,CHILDRENS SERVICES,AMZNMKTPLACE,06/01/2021,H59620210108IXTCYLDLP-2,18.99,ADMINISTRATIVE SUPPLIES-PURCHASE OF FURNITURE & EQUIPM,MISCELLANEOUS AND SPECIALTY RETAIL STORES,GPC
WALSALL COUNCIL,http://opendatacommunities.org/id/metropolitan-district-council/walsall,31/03/2021,RESOURCES & TRANSFORMATION,ARTHUR BRETT CATER,06/01/2021,H59620210108IYYQQCEZC-1,39.43,CATERING - SCHOOLS-FOOD & DRINK SUPPLIES,MISCELLANEOUS FOOD STORES & CONVENIENCE STORES,GPC
WALSALL COUNCIL,http://opendatacommunities.org/id/metropolitan-district-council/walsall,31/03/2021,ECONOMY & ENVIRONMENT,AMZNMKTPLACE,06/01/2021,H59620210108JDSGPADCN-1,24.37,AREA PARTNERSHIPS-STATIONERY & GENERAL OFFICE SU,MISCELLANEOUS AND SPECIALTY RETAIL STORES,GPC
WALSALL COUNCIL,http://opendatacommunities.org/id/metropolitan-district-council/walsall,31/03/2021,RESOURCES & TRANSFORMATION,ARTHUR BRETT CATER,06/01/2021,H59620210108JFSTWQTKD-1,18.17,CATERING - SCHOOLS-FOOD & DRINK SUPPLIES,MISCELLANEOUS FOOD STORES & CONVENIENCE STORES,GPC
WALSALL COUNCIL,http://opendatacommunities.org/id/metropolitan-district-council/walsall,31/03/2021,RESOURCES & TRANSFORMATION,BLAKEMORE FOODSERVICE,06/01/2021,H59620210108JIQOPJHVY-1,217.02,CATERING - SCHOOLS-FOOD & DRINK SUPPLIES,CATERERS,GPC
WALSALL COUNCIL,http://opendatacommunities.org/id/metropolitan-district-council/walsall,31/03/2021,RESOURCES & TRANSFORMATION,BLAKEMORE FOODSERVICE,06/01/2021,H59620210108JIQOPJHVY-2,45.67,CATERING - SCHOOLS-FOOD & DRINK SUPPLIES,CATERERS,GPC
WALSALL COUNCIL,http://opendatacommunities.org/id/metropolitan-district-council/walsall,31/03/2021,CHILDRENS SERVICES,AMAZON.CO.UK*MJ0TM46C4,06/01/2021,H59620210108JMYGUQZDM-1,242.44,PALFREY JUNIOR SCHOOL-MATERIALS,OTHER DIRECT MARKETING-OTHER DIRECT MARKETERS,GPC
WALSALL COUNCIL,http://opendatacommunities.org/id/metropolitan-district-council/walsall,31/03/2021,RESOURCES & TRANSFORMATION,NOBISCO LIMITED,06/01/2021,H59620210108JNNMDJRLK-1,107.86,CATERING - SCHOOLS-FOOD & DRINK SUPPLIES,OTHER INDUSTRIAL SUPPLIES,GPC
WALSALL COUNCIL,http://opendatacommunities.org/id/metropolitan-district-council/walsall,31/03/2021,ECONOMY & ENVIRONMENT,AMZNMKTPLACE,06/01/2021,H59620210108JOQNSYSZU-1,73.78,CEMETERIES CENTRAL ADMINISTRAT-STATIONERY & GENERAL OFFICE SU,MISCELLANEOUS AND SPECIALTY RETAIL STORES,GPC
WALSALL COUNCIL,http://opendatacommunities.org/id/metropolitan-district-council/walsall,31/03/2021,RESOURCES & TRANSFORMATION,BLAKEMORE FOODSERVICE,06/01/2021,H59620210108JQIIVTPYQ-1,349.98,CATERING - SCHOOLS-FOOD & DRINK SUPPLIES,CATERERS,GPC
WALSALL COUNCIL,http://opendatacommunities.org/id/metropolitan-district-council/walsall,31/03/2021,CHILDRENS SERVICES,ASDA SUPERSTORE,06/01/2021,H59620210108JTYAIWHBY-1,60.00,LOOKED AFTER CHILDRENS SOCIAL -EVENTS & VISUAL ARTS,GROCERY STORES AND SUPERMARKETS,GPC
WALSALL COUNCIL,http://opendatacommunities.org/id/metropolitan-district-council/walsall,31/03/2021,RESOURCES & TRANSFORMATION,ARTHUR BRETT CATER,06/01/2021,H59620210108KILQVWGIL-1,13.29,CATERING - SCHOOLS-FOOD & DRINK SUPPLIES,MISCELLANEOUS FOOD STORES & CONVENIENCE STORES,GPC
WALSALL COUNCIL,http://opendatacommunities.org/id/metropolitan-district-council/walsall,31/03/2021,CHILDRENS SERVICES,ASDA SUPERSTORE,06/01/2021,H59620210108KJJOCVFMK-1,15.11,YOUNG PERSONS HOMELESS SERVICE-FOOD & DRINK SUPPLIES,GROCERY STORES AND SUPERMARKETS,GPC
WALSALL COUNCIL,http://opendatacommunities.org/id/metropolitan-district-council/walsall,31/03/2021,CHILDRENS SERVICES,ASDA SUPERSTORE,06/01/2021,H59620210108KJJOCVFMK-2,0.40,YOUNG PERSONS HOMELESS SERVICE-FOOD & DRINK SUPPLIES,GROCERY STORES AND SUPERMARKETS,GPC
WALSALL COUNCIL,http://opendatacommunities.org/id/metropolitan-district-council/walsall,31/03/2021,CHILDRENS SERVICES,ASDA SUPERSTORE,06/01/2021,H59620210108KJJOCVFMK-3,13.57,YOUNG PERSONS HOMELESS SERVICE-FOOD & DRINK SUPPLIES,GROCERY STORES AND SUPERMARKETS,GPC
WALSALL COUNCIL,http://opendatacommunities.org/id/metropolitan-district-council/walsall,31/03/2021,ADULT SOCIAL CARE,AMZNMKTPLACE,06/01/2021,H59620210108KOMNWDAYO-1,12.48,EDUCATION MANAGEMENT - OUTBREA-STATIONERY & GENERAL OFFICE SU,MISCELLANEOUS AND SPECIALTY RETAIL STORES,GPC
WALSALL COUNCIL,http://opendatacommunities.org/id/metropolitan-district-council/walsall,31/03/2021,ECONOMY & ENVIRONMENT,AMZNMKTPLACE,06/01/2021,H59620210108KYNDDQQWI-1,24.37,AREA PARTNERSHIPS-STATIONERY & GENERAL OFFICE SU,MISCELLANEOUS AND SPECIALTY RETAIL STORES,GPC
WALSALL COUNCIL,http://opendatacommunities.org/id/metropolitan-district-council/walsall,31/03/2021,RESOURCES & TRANSFORMATION,AMZNMKTPLACE,06/01/2021,H59620210108LDDAPSBQW-1,21.99,LAW LIBRARY-STATIONERY & GENERAL OFFICE SU,MISCELLANEOUS AND SPECIALTY RETAIL STORES,GPC
WALSALL COUNCIL,http://opendatacommunities.org/id/metropolitan-district-council/walsall,31/03/2021,ECONOMY & ENVIRONMENT,MIDLANDNEWS.COM,06/01/2021,H59620210108LDLNHTOVH-1,208.20,DEVELOPMENT MANAGEMENT-SUBSCRIPTIONS,NEWS DEALERS AND NEWSSTANDS,GPC
WALSALL COUNCIL,http://opendatacommunities.org/id/metropolitan-district-council/walsall,31/03/2021,CHILDRENS SERVICES,WILKO.COM,06/01/2021,H59620210108LLCIHKKPI-1,112.00,YOUNG PERSONS HOMELESS SERVICE-PURCHASE OF FURNITURE & EQUIPM,MISCELLANEOUS GENERAL MERCHANDISE,GPC
WALSALL COUNCIL,http://opendatacommunities.org/id/metropolitan-district-council/walsall,31/03/2021,RESOURCES & TRANSFORMATION,ARTHUR BRETT CATER,06/01/2021,H59620210108LVGVWQKEP-1,19.60,CATERING - SCHOOLS-FOOD & DRINK SUPPLIES,MISCELLANEOUS FOOD STORES & CONVENIENCE STORES,GPC
WALSALL COUNCIL,http://opendatacommunities.org/id/metropolitan-district-council/walsall,31/03/2021,RESOURCES & TRANSFORMATION,BLAKEMORE FOODSERVICE,06/01/2021,H59620210108MFQIJQZDK-1,428.47,CATERING - SCHOOLS-FOOD & DRINK SUPPLIES,CATERERS,GPC
WALSALL COUNCIL,http://opendatacommunities.org/id/metropolitan-district-council/walsall,31/03/2021,RESOURCES & TRANSFORMATION,BLAKEMORE FOODSERVICE,06/01/2021,H59620210108MFQIJQZDK-2,29.77,CATERING - SCHOOLS-FOOD & DRINK SUPPLIES,CATERERS,GPC
WALSALL COUNCIL,http://opendatacommunities.org/id/metropolitan-district-council/walsall,31/03/2021,CHILDRENS SERVICES,ASDA SUPERSTORE,06/01/2021,H59620210108MHLLOGIHV-1,60.00,LOOKED AFTER CHILDRENS SOCIAL -EVENTS & VISUAL ARTS,GROCERY STORES AND SUPERMARKETS,GPC
WALSALL COUNCIL,http://opendatacommunities.org/id/metropolitan-district-council/walsall,31/03/2021,RESOURCES & TRANSFORMATION,BLAKEMORE FOODSERVICE,06/01/2021,H59620210108MKECNVGOL-1,130.56,CATERING - SCHOOLS-FOOD & DRINK SUPPLIES,CATERERS,GPC
WALSALL COUNCIL,http://opendatacommunities.org/id/metropolitan-district-council/walsall,31/03/2021,RESOURCES & TRANSFORMATION,BLAKEMORE FOODSERVICE,06/01/2021,H59620210108MKECNVGOL-2,17.70,CATERING - SCHOOLS-FOOD & DRINK SUPPLIES,CATERERS,GPC
WALSALL COUNCIL,http://opendatacommunities.org/id/metropolitan-district-council/walsall,31/03/2021,RESOURCES & TRANSFORMATION,ARTHUR BRETT CATER,06/01/2021,H59620210108MOSNGHNQI-1,41.47,CATERING - SCHOOLS-FOOD & DRINK SUPPLIES,MISCELLANEOUS FOOD STORES & CONVENIENCE STORES,GPC
WALSALL COUNCIL,http://opendatacommunities.org/id/metropolitan-district-council/walsall,31/03/2021,ECONOMY & ENVIRONMENT,AMAZON.CO.UK*MJ0Q056E4,06/01/2021,H59620210108MYTMLWCKV-1,16.88,ALDRIDGE LIBRARY-PURCHASE OF FURNITURE & EQUIPM,OTHER DIRECT MARKETING-OTHER DIRECT MARKETERS,GPC
WALSALL COUNCIL,http://opendatacommunities.org/id/metropolitan-district-council/walsall,31/03/2021,RESOURCES & TRANSFORMATION,BLAKEMORE FOODSERVICE,06/01/2021,H59620210108NELTMEQWC-1,64.69,CATERING - SCHOOLS-FOOD & DRINK SUPPLIES,CATERERS,GPC
WALSALL COUNCIL,http://opendatacommunities.org/id/metropolitan-district-council/walsall,31/03/2021,CHILDRENS SERVICES,GOOGLE YOUTUBEPREMIUM,06/01/2021,H59620210108NFMQLKIHR-1,11.99,ADMINISTRATIVE SUPPLIES-STATIONERY & GENERAL OFFICE SU,DIGITAL GOODS - APPLICATIONS (EXCLUDES GAMES),GPC
WALSALL COUNCIL,http://opendatacommunities.org/id/metropolitan-district-council/walsall,31/03/2021,CHILDRENS SERVICES,MIP*TESCO MOBILE TOPUP,06/01/2021,H59620210108NKQRPMWYC-1,20.00,ADMINISTRATIVE SUPPLIES-MOBILE PHONES,TELECOMMUNICATION SERVICES,GPC
WALSALL COUNCIL,http://opendatacommunities.org/id/metropolitan-district-council/walsall,31/03/2021,RESOURCES & TRANSFORMATION,BLAKEMORE FOODSERVICE,06/01/2021,H59620210108NOPCWCHDG-1,279.08,CATERING - SCHOOLS-FOOD & DRINK SUPPLIES,CATERERS,GPC
WALSALL COUNCIL,http://opendatacommunities.org/id/metropolitan-district-council/walsall,31/03/2021,CHILDRENS SERVICES,ASDA,06/01/2021,H59620210108NSMWPOGGS-1,55.24,WALSALL CRISIS SUPPORT SCHEME-FOOD & DRINK SUPPLIES,GROCERY STORES AND SUPERMARKETS,GPC
WALSALL COUNCIL,http://opendatacommunities.org/id/metropolitan-district-council/walsall,31/03/2021,ECONOMY & ENVIRONMENT,AMAZON.CO.UK*MJ0TP96O4,06/01/2021,H59620210108OGTZXMXFC-1,12.00,ALDRIDGE LIBRARY-PURCHASE OF FURNITURE & EQUIPM,OTHER DIRECT MARKETING-OTHER DIRECT MARKETERS,GPC
WALSALL COUNCIL,http://opendatacommunities.org/id/metropolitan-district-council/walsall,31/03/2021,RESOURCES & TRANSFORMATION,BLAKEMORE FOODSERVICE,06/01/2021,H59620210108OHWOGYJUB-1,302.39,CATERING - SCHOOLS-FOOD & DRINK SUPPLIES,CATERERS,GPC
WALSALL COUNCIL,http://opendatacommunities.org/id/metropolitan-district-council/walsall,31/03/2021,CHILDRENS SERVICES,ASTON PHARMA,06/01/2021,H59620210108OUWBXPLOC-1,95.94,SPECIAL FACILITIES-MATERIALS,"MEN'S, WOMEN'S, AND CHILDREN'S UNIFORMS",GPC
WALSALL COUNCIL,http://opendatacommunities.org/id/metropolitan-district-council/walsall,31/03/2021,RESOURCES & TRANSFORMATION,BLAKEMORE FOODSERVICE,06/01/2021,H59620210108OUXVMBBKP-1,200.27,CATERING - SCHOOLS-FOOD & DRINK SUPPLIES,CATERERS,GPC
WALSALL COUNCIL,http://opendatacommunities.org/id/metropolitan-district-council/walsall,31/03/2021,CHILDRENS SERVICES,AMZNMKTPLACE,06/01/2021,H59620210108PFILUYKEI-1,9.85,"43A HILTON ROAD, WILLENHALL-RESIDENTS PERSONAL EXPENSES-AL",MISCELLANEOUS AND SPECIALTY RETAIL STORES,GPC
WALSALL COUNCIL,http://opendatacommunities.org/id/metropolitan-district-council/walsall,31/03/2021,RESOURCES & TRANSFORMATION,ARTHUR BRETT CATER,06/01/2021,H59620210108PMJJRFXEQ-1,22.23,CATERING - SCHOOLS-FOOD & DRINK SUPPLIES,MISCELLANEOUS FOOD STORES & CONVENIENCE STORES,GPC
WALSALL COUNCIL,http://opendatacommunities.org/id/metropolitan-district-council/walsall,31/03/2021,CHILDRENS SERVICES,MIP*TESCO MOBILE TOPUP,06/01/2021,H59620210108PNRVLUDVE-1,20.00,ADMINISTRATIVE SUPPLIES-MOBILE PHONES,TELECOMMUNICATION SERVICES,GPC
WALSALL COUNCIL,http://opendatacommunities.org/id/metropolitan-district-council/walsall,31/03/2021,RESOURCES & TRANSFORMATION,NOBISCO LIMITED,06/01/2021,H59620210108PWYZSJJHO-1,23.18,CATERING - SCHOOLS-FOOD & DRINK SUPPLIES,OTHER INDUSTRIAL SUPPLIES,GPC
WALSALL COUNCIL,http://opendatacommunities.org/id/metropolitan-district-council/walsall,31/03/2021,CHILDRENS SERVICES,METRO WALSALL,06/01/2021,H59620210108QKMGEDZUE-1,38.00,ACCOMMODATION SERVICES MANAGEM-BED & BREAKFAST PAYMENTS,"HOTELS, MOTELS, RESORTS",GPC
WALSALL COUNCIL,http://opendatacommunities.org/id/metropolitan-district-council/walsall,31/03/2021,CHILDRENS SERVICES,LOCKS AND FITTINGS LTD,06/01/2021,H59620210108RGPCCCMLF-1,40.80,LEAMORE PRIMARY SCHOOL-OPERATIONAL MAINTENANCE,HARDWARE STORES,GPC
WALSALL COUNCIL,http://opendatacommunities.org/id/metropolitan-district-council/walsall,31/03/2021,RESOURCES & TRANSFORMATION,HTTPS://SHOP.ALZHEIMER,06/01/2021,H59620210108RYEUUNDFQ-1,152.00,WORKFORCE DEVELOPMENT-EXTERNAL TRAINING,"ORGANIZATIONS, CHARITABLE AND SOCIAL SERVICE",GPC
WALSALL COUNCIL,http://opendatacommunities.org/id/metropolitan-district-council/walsall,31/03/2021,RESOURCES & TRANSFORMATION,ARTHUR BRETT CATER,06/01/2021,H59620210108RZBOYBGQO-1,31.18,CATERING - SCHOOLS-FOOD & DRINK SUPPLIES,MISCELLANEOUS FOOD STORES & CONVENIENCE STORES,GPC
WALSALL COUNCIL,http://opendatacommunities.org/id/metropolitan-district-council/walsall,31/03/2021,ECONOMY & ENVIRONMENT,WWW.BANNERUK.COM,06/01/2021,H59620210108SFMUICKHM-1,40.32,LIBRARY OPERATIONS CENTRAL-STATIONERY & GENERAL OFFICE SU,"STATIONERY, OFFICE SUPPLIES AND WRITING PAPER",GPC
WALSALL COUNCIL,http://opendatacommunities.org/id/metropolitan-district-council/walsall,31/03/2021,CHILDRENS SERVICES,FIRST INTUITION CAMBRIDGE,06/01/2021,H59620210108SYFPIEDFI-1,1350.00,LEIGHSWOOD PRIMARY SCHOOL-EXTERNAL TRAINING,OTHER SCHOOLS AND EDUCATIONAL SERVICES,GPC
WALSALL COUNCIL,http://opendatacommunities.org/id/metropolitan-district-council/walsall,31/03/2021,RESOURCES & TRANSFORMATION,ARTHUR BRETT CATER,06/01/2021,H59620210108TADQYBYUK-1,54.16,CATERING - SCHOOLS-FOOD & DRINK SUPPLIES,MISCELLANEOUS FOOD STORES & CONVENIENCE STORES,GPC
WALSALL COUNCIL,http://opendatacommunities.org/id/metropolitan-district-council/walsall,31/03/2021,CHILDRENS SERVICES,THETRAINLINE.COM,06/01/2021,H59620210108TEJQGSUXJ-1,36.21,LOOKED AFTER CHILDRENS SOCIAL -SECTION 34 (CONTACT),PASSENGER RAILWAYS,GPC
WALSALL COUNCIL,http://opendatacommunities.org/id/metropolitan-district-council/walsall,31/03/2021,ECONOMY & ENVIRONMENT,B & Q 1276,06/01/2021,H59620210108TPKGXNFMN-1,92.99,STREET PRIDE MANAGEMENT-MATERIALS,HOME SUPPLY WAREHOUSE STORES,GPC
WALSALL COUNCIL,http://opendatacommunities.org/id/metropolitan-district-council/walsall,31/03/2021,ECONOMY & ENVIRONMENT,CHARTERED INSTITUTE OF EN,06/01/2021,H59620210108TSGRJCXQY-1,99.00,ENGINEERING MANAGEMENT-EXTERNAL TRAINING,"ORGANIZATIONS, CHARITABLE AND SOCIAL SERVICE",GPC
WALSALL COUNCIL,http://opendatacommunities.org/id/metropolitan-district-council/walsall,31/03/2021,RESOURCES & TRANSFORMATION,BLAKEMORE FOODSERVICE,06/01/2021,H59620210108TVGORHNFW-1,9.48,CATERING - SCHOOLS-FOOD & DRINK SUPPLIES,CATERERS,GPC
WALSALL COUNCIL,http://opendatacommunities.org/id/metropolitan-district-council/walsall,31/03/2021,CHILDRENS SERVICES,WWW.BANNERUK.COM,06/01/2021,H59620210108TYDOGJOSM-1,6.02,"43A HILTON ROAD, WILLENHALL-STATIONERY & GENERAL OFFICE SU","STATIONERY, OFFICE SUPPLIES AND WRITING PAPER",GPC
WALSALL COUNCIL,http://opendatacommunities.org/id/metropolitan-district-council/walsall,31/03/2021,RESOURCES & TRANSFORMATION,WWW.ASOS.COM,06/01/2021,H59620210108UHSDYMCBC-1,16.38,YEI ESF FUNDING-CLOTHING & LAUNDRY,CLOTHING STORES,GPC
WALSALL COUNCIL,http://opendatacommunities.org/id/metropolitan-district-council/walsall,31/03/2021,RESOURCES & TRANSFORMATION,WWW.ASOS.COM,06/01/2021,H59620210108UHSDYMCBC-2,16.37,YEI (IMPACT) PROGRAMME-CLOTHING & LAUNDRY,CLOTHING STORES,GPC
WALSALL COUNCIL,http://opendatacommunities.org/id/metropolitan-district-council/walsall,31/03/2021,RESOURCES & TRANSFORMATION,BLAKEMORE FOODSERVICE,06/01/2021,H59620210108UTQJMDCHN-1,417.38,CATERING - SCHOOLS-FOOD & DRINK SUPPLIES,CATERERS,GPC
WALSALL COUNCIL,http://opendatacommunities.org/id/metropolitan-district-council/walsall,31/03/2021,ECONOMY & ENVIRONMENT,WWW.BANNERUK.COM,06/01/2021,H59620210108UZSMUNTGR-1,37.12,CEMETERIES CENTRAL ADMINISTRAT-MATERIALS,"STATIONERY, OFFICE SUPPLIES AND WRITING PAPER",GPC
WALSALL COUNCIL,http://opendatacommunities.org/id/metropolitan-district-council/walsall,31/03/2021,ADULT SOCIAL CARE,AMZ*WECKEW UK,06/01/2021,H59620210108VRUFICZMW-1,-2.40,EDUCATION MANAGEMENT - OUTBREA-STATIONERY & GENERAL OFFICE SU,MISCELLANEOUS AND SPECIALTY RETAIL STORES,GPC
WALSALL COUNCIL,http://opendatacommunities.org/id/metropolitan-district-council/walsall,31/03/2021,CHILDRENS SERVICES,ASDA,06/01/2021,H59620210108VSQISCMKN-1,101.00,WALSALL CRISIS SUPPORT SCHEME-FOOD & DRINK SUPPLIES,GROCERY STORES AND SUPERMARKETS,GPC
WALSALL COUNCIL,http://opendatacommunities.org/id/metropolitan-district-council/walsall,31/03/2021,RESOURCES & TRANSFORMATION,ARTHUR BRETT CATER,06/01/2021,H59620210108VYAREBNDR-1,20.31,CATERING - SCHOOLS-FOOD & DRINK SUPPLIES,MISCELLANEOUS FOOD STORES & CONVENIENCE STORES,GPC
WALSALL COUNCIL,http://opendatacommunities.org/id/metropolitan-district-council/walsall,31/03/2021,CHILDRENS SERVICES,MIP*TESCO MOBILE TOPUP,06/01/2021,H59620210108WBWPFVUJU-1,20.00,ADMINISTRATIVE SUPPLIES-MOBILE PHONES,TELECOMMUNICATION SERVICES,GPC
WALSALL COUNCIL,http://opendatacommunities.org/id/metropolitan-district-council/walsall,31/03/2021,CHILDRENS SERVICES,W M MORRISON STORE,06/01/2021,H59620210108WDFHTEBCW-1,24.57,WALSALL WOOD PRIMARY SCHOOL-FOOD & DRINK SUPPLIES,GROCERY STORES AND SUPERMARKETS,GPC
WALSALL COUNCIL,http://opendatacommunities.org/id/metropolitan-district-council/walsall,31/03/2021,CHILDRENS SERVICES,W M MORRISON STORE,06/01/2021,H59620210108WDFHTEBCW-2,131.37,WALSALL WOOD PRIMARY SCHOOL-FOOD & DRINK SUPPLIES,GROCERY STORES AND SUPERMARKETS,GPC
WALSALL COUNCIL,http://opendatacommunities.org/id/metropolitan-district-council/walsall,31/03/2021,RESOURCES & TRANSFORMATION,BLAKEMORE FOODSERVICE,06/01/2021,H59620210108WLUQHLERJ-1,276.70,CATERING - SCHOOLS-FOOD & DRINK SUPPLIES,CATERERS,GPC
WALSALL COUNCIL,http://opendatacommunities.org/id/metropolitan-district-council/walsall,31/03/2021,RESOURCES & TRANSFORMATION,BLAKEMORE FOODSERVICE,06/01/2021,H59620210108WLUQHLERJ-2,217.69,CATERING - SCHOOLS-FOOD & DRINK SUPPLIES,CATERERS,GPC
WALSALL COUNCIL,http://opendatacommunities.org/id/metropolitan-district-council/walsall,31/03/2021,ECONOMY & ENVIRONMENT,AMZNMKTPLACE,06/01/2021,H59620210108WPIOXYIKX-1,21.50,CEMETERIES CENTRAL ADMINISTRAT-MATERIALS,MISCELLANEOUS AND SPECIALTY RETAIL STORES,GPC
WALSALL COUNCIL,http://opendatacommunities.org/id/metropolitan-district-council/walsall,31/03/2021,CHILDRENS SERVICES,ASDA SUPERSTORE,06/01/2021,H59620210108WUYKKMEMV-1,0.75,YOUNG PERSONS HOMELESS SERVICE-FOOD & DRINK SUPPLIES,GROCERY STORES AND SUPERMARKETS,GPC
WALSALL COUNCIL,http://opendatacommunities.org/id/metropolitan-district-council/walsall,31/03/2021,ECONOMY & ENVIRONMENT,WWW.BANNERUK.COM,06/01/2021,H59620210108XDLYXHWHH-1,10.38,CEMETERIES CENTRAL ADMINISTRAT-MATERIALS,"STATIONERY, OFFICE SUPPLIES AND WRITING PAPER",GPC
WALSALL COUNCIL,http://opendatacommunities.org/id/metropolitan-district-council/walsall,31/03/2021,CHILDRENS SERVICES,HOME BARGAINS,06/01/2021,H59620210108XNZULXIEY-1,3.27,"43A HILTON ROAD, WILLENHALL-FOOD & DRINK SUPPLIES",HARDWARE STORES,GPC
WALSALL COUNCIL,http://opendatacommunities.org/id/metropolitan-district-council/walsall,31/03/2021,CHILDRENS SERVICES,AMAZON.CO.UK*MJ7IA76H4,06/01/2021,H59620210108XPGEIVOFY-1,11.00,ENGLISH DEPARTMENT-MATERIALS,OTHER DIRECT MARKETING-OTHER DIRECT MARKETERS,GPC
WALSALL COUNCIL,http://opendatacommunities.org/id/metropolitan-district-council/walsall,31/03/2021,CHILDRENS SERVICES,AMZNMKTPLACE AMAZON.CO.UK,06/01/2021,H59620210108YEAWEOIDI-1,71.97,YEAR 1 / 2-MATERIALS,MISCELLANEOUS AND SPECIALTY RETAIL STORES,GPC
WALSALL COUNCIL,http://opendatacommunities.org/id/metropolitan-district-council/walsall,31/03/2021,CHILDRENS SERVICES,AMZNMKTPLACE AMAZON.CO.UK,06/01/2021,H59620210108YEAWEOIDI-2,52.19,ADMINISTRATIVE SUPPLIES-MATERIALS,MISCELLANEOUS AND SPECIALTY RETAIL STORES,GPC
WALSALL COUNCIL,http://opendatacommunities.org/id/metropolitan-district-council/walsall,31/03/2021,CHILDRENS SERVICES,AMZNMKTPLACE,06/01/2021,H59620210108YRCPUBMIS-1,31.50,WATLING STREET PRIMARY SCHOOL-OPERATIONAL MAINTENANCE,MISCELLANEOUS AND SPECIALTY RETAIL STORES,GPC
WALSALL COUNCIL,http://opendatacommunities.org/id/metropolitan-district-council/walsall,31/03/2021,CHILDRENS SERVICES,ROYAL MAIL ONLINE SHOP,06/01/2021,H59620210108YUKMQJSHP-1,170.00,VIRTUAL SCHOOL - CENTRAL PUPIL-POSTAGES & COURIER SERVICES,POSTAL SERVICES - GOVERNMENT ONLY,GPC
WALSALL COUNCIL,http://opendatacommunities.org/id/metropolitan-district-council/walsall,31/03/2021,ECONOMY & ENVIRONMENT,WWW.BANNERUK.COM,06/01/2021,H59620210108YVLUBFUCU-1,309.30,RESOURCE MANAGEMENT-MATERIALS,"STATIONERY, OFFICE SUPPLIES AND WRITING PAPER",GPC
WALSALL COUNCIL,http://opendatacommunities.org/id/metropolitan-district-council/walsall,31/03/2021,ECONOMY & ENVIRONMENT,AMZNMKTPLACE,06/01/2021,H59620210108ZJVVRYJCL-1,26.49,ALDRIDGE LIBRARY-PURCHASE OF FURNITURE & EQUIPM,MISCELLANEOUS AND SPECIALTY RETAIL STORES,GPC
WALSALL COUNCIL,http://opendatacommunities.org/id/metropolitan-district-council/walsall,31/03/2021,CHILDRENS SERVICES,AMAZON.CO.UK*MJ5Z81DR4 AM,06/01/2021,H59620210108ZOWKCBDIP-1,18.02,MATHS-MATERIALS,MISCELLANEOUS AND SPECIALTY RETAIL STORES,GPC
WALSALL COUNCIL,http://opendatacommunities.org/id/metropolitan-district-council/walsall,31/03/2021,CHILDRENS SERVICES,PREMIER INN44533745,06/01/2021,H59620210109EQRMUDOMD-1,-208.00,ROUGH SLEEPING INITIATIVE GRAN-CRISIS SUPPORT PAYMENTS,PREMIER INN,GPC
WALSALL COUNCIL,http://opendatacommunities.org/id/metropolitan-district-council/walsall,31/03/2021,CHILDRENS SERVICES,PREMIER INN44533745,06/01/2021,H59620210109GDEAGICVR-1,-156.00,ROUGH SLEEPING INITIATIVE GRAN-CRISIS SUPPORT PAYMENTS,PREMIER INN,GPC
WALSALL COUNCIL,http://opendatacommunities.org/id/metropolitan-district-council/walsall,31/03/2021,CHILDRENS SERVICES,WALSALL COUNCIL,07/01/2021,H59620210109AACXNYACC-1,17.00,SAFEGUARDING & FAMILY SUPPORT-FEES & LICENCES,GOVERNMENT SERVICES,GPC
WALSALL COUNCIL,http://opendatacommunities.org/id/metropolitan-district-council/walsall,31/03/2021,RESOURCES & TRANSFORMATION,REMOVALS.CO.UK,07/01/2021,H59620210109BPGHATJBD-1,318.00,CATERING - MANAGEMENT-TRANSPORTATION-PRIV CONTRACTOR,MOTOR FREIGHT CARRIERS,GPC
WALSALL COUNCIL,http://opendatacommunities.org/id/metropolitan-district-council/walsall,31/03/2021,RESOURCES & TRANSFORMATION,ARTHUR BRETT CATER,07/01/2021,H59620210109CDCOIMIXK-1,36.67,CATERING - SCHOOLS-FOOD & DRINK SUPPLIES,MISCELLANEOUS FOOD STORES & CONVENIENCE STORES,GPC
WALSALL COUNCIL,http://opendatacommunities.org/id/metropolitan-district-council/walsall,31/03/2021,ADULT SOCIAL CARE,REMOVALS.CO.UK,07/01/2021,H59620210109CQSGMLAKS-1,148.82,WEST LOCALITY TEAM-TRANSPORTATION-PRIV CONTRACTOR,MOTOR FREIGHT CARRIERS,GPC
WALSALL COUNCIL,http://opendatacommunities.org/id/metropolitan-district-council/walsall,31/03/2021,CHILDRENS SERVICES,POST OFFICE COUNTER,07/01/2021,H59620210109DOWBPKCOD-1,6.85,LOOKED AFTER CHILDRENS SOCIAL -POSTAGES & COURIER SERVICES,POSTAL SERVICES - GOVERNMENT ONLY,GPC
WALSALL COUNCIL,http://opendatacommunities.org/id/metropolitan-district-council/walsall,31/03/2021,ADULT SOCIAL CARE,ARGOS LTD,07/01/2021,H59620210109DPQHOCBDH-1,44.00,EDUCATION MANAGEMENT - OUTBREA-PURCHASE OF FURNITURE & EQUIPM,DISCOUNT STORES,GPC
WALSALL COUNCIL,http://opendatacommunities.org/id/metropolitan-district-council/walsall,31/03/2021,RESOURCES & TRANSFORMATION,NOBISCO LIMITED,07/01/2021,H59620210109DUORTYTHB-1,65.76,CATERING - SCHOOLS-FOOD & DRINK SUPPLIES,OTHER INDUSTRIAL SUPPLIES,GPC
WALSALL COUNCIL,http://opendatacommunities.org/id/metropolitan-district-council/walsall,31/03/2021,ADULT SOCIAL CARE,AMZNMKTPLACE,07/01/2021,H59620210109FBULQTVWC-1,41.94,EDUCATION MANAGEMENT - OUTBREA-PURCHASE OF FURNITURE & EQUIPM,MISCELLANEOUS AND SPECIALTY RETAIL STORES,GPC
WALSALL COUNCIL,http://opendatacommunities.org/id/metropolitan-district-council/walsall,31/03/2021,RESOURCES & TRANSFORMATION,HIGH SPEED TRAINING LT,07/01/2021,H59620210109FRRCGZVKT-1,12.00,YEI ESF FUNDING-PROFESSIONAL FEES & SERVICES,"SCHOOLS, BUSINESS AND SECRETARIAL",GPC
WALSALL COUNCIL,http://opendatacommunities.org/id/metropolitan-district-council/walsall,31/03/2021,RESOURCES & TRANSFORMATION,HIGH SPEED TRAINING LT,07/01/2021,H59620210109FRRCGZVKT-2,12.00,YEI ESF FUNDING-PROFESSIONAL FEES & SERVICES,"SCHOOLS, BUSINESS AND SECRETARIAL",GPC
WALSALL COUNCIL,http://opendatacommunities.org/id/metropolitan-district-council/walsall,31/03/2021,ECONOMY & ENVIRONMENT,ALDI 772 087,07/01/2021,H59620210109GDOPHQIOG-1,8.74,WILLENHALL LIBRARY-STATIONERY & GENERAL OFFICE SU,GROCERY STORES AND SUPERMARKETS,GPC
WALSALL COUNCIL,http://opendatacommunities.org/id/metropolitan-district-council/walsall,31/03/2021,ECONOMY & ENVIRONMENT,AMZNMKTPLACE,07/01/2021,H59620210109HFLZNGCYT-1,27.42,REGISTRAR-STATIONERY & GENERAL OFFICE SU,MISCELLANEOUS AND SPECIALTY RETAIL STORES,GPC
WALSALL COUNCIL,http://opendatacommunities.org/id/metropolitan-district-council/walsall,31/03/2021,ECONOMY & ENVIRONMENT,WWW.COPSHOPUK.COM,07/01/2021,H59620210109HMUCFKISF-1,94.32,AREA PARTNERSHIPS-PAYMENT TO CONTRACTORS,SPECIAL TRADE CONTRACTORS,GPC
WALSALL COUNCIL,http://opendatacommunities.org/id/metropolitan-district-council/walsall,31/03/2021,RESOURCES & TRANSFORMATION,REMOVALS.CO.UK,07/01/2021,H59620210109IOQNVJZXD-1,318.00,CATERING - MANAGEMENT-TRANSPORTATION-PRIV CONTRACTOR,MOTOR FREIGHT CARRIERS,GPC
WALSALL COUNCIL,http://opendatacommunities.org/id/metropolitan-district-council/walsall,31/03/2021,CHILDRENS SERVICES,B&M 541 - ALDIDGE,07/01/2021,H59620210109JSCKAIOFC-1,4.99,REDRUTH ROAD-PURCHASE OF FURNITURE & EQUIPM,MISCELLANEOUS GENERAL MERCHANDISE,GPC
WALSALL COUNCIL,http://opendatacommunities.org/id/metropolitan-district-council/walsall,31/03/2021,CHILDRENS SERVICES,WALSALL COUNCIL,07/01/2021,H59620210109JXUQRXUJD-1,17.00,LOOKED AFTER CHILDRENS SOCIAL -FEES & LICENCES,GOVERNMENT SERVICES,GPC
WALSALL COUNCIL,http://opendatacommunities.org/id/metropolitan-district-council/walsall,31/03/2021,ECONOMY & ENVIRONMENT,BUXTONS*WEBORDER,07/01/2021,H59620210109KLUFOQTPV-1,285.60,COUNTRYSIDE MANAGEMENT - OTHER-CLOTHING & LAUNDRY,HARDWARE EQUIPMENT AND SUPPLIES,GPC
WALSALL COUNCIL,http://opendatacommunities.org/id/metropolitan-district-council/walsall,31/03/2021,ECONOMY & ENVIRONMENT,BUXTONS*WEBORDER,07/01/2021,H59620210109KLUFOQTPV-2,14.40,COUNTRYSIDE MANAGEMENT - OTHER-CLOTHING & LAUNDRY,HARDWARE EQUIPMENT AND SUPPLIES,GPC
WALSALL COUNCIL,http://opendatacommunities.org/id/metropolitan-district-council/walsall,31/03/2021,CHILDRENS SERVICES,AMZNMKTPLACE AMAZON.CO.UK,07/01/2021,H59620210109KYRBHDSJK-1,98.91,ADMINISTRATIVE SUPPLIES-MATERIALS,MISCELLANEOUS AND SPECIALTY RETAIL STORES,GPC
WALSALL COUNCIL,http://opendatacommunities.org/id/metropolitan-district-council/walsall,31/03/2021,CHILDRENS SERVICES,AMAZON.CO.UK*MJ7UL5S34,07/01/2021,H59620210109LNKCGRILW-1,20.00,E19-MATERIALS,OTHER DIRECT MARKETING-OTHER DIRECT MARKETERS,GPC
WALSALL COUNCIL,http://opendatacommunities.org/id/metropolitan-district-council/walsall,31/03/2021,RESOURCES & TRANSFORMATION,ARTHUR BRETT CATER,07/01/2021,H59620210109LVKECBTUW-1,27.47,CATERING - SCHOOLS-FOOD & DRINK SUPPLIES,MISCELLANEOUS FOOD STORES & CONVENIENCE STORES,GPC
WALSALL COUNCIL,http://opendatacommunities.org/id/metropolitan-district-council/walsall,31/03/2021,CHILDRENS SERVICES,AMZNMKTPLACE,07/01/2021,H59620210109MHQSCIMGI-1,2.69,ADMINISTRATIVE SUPPLIES-MATERIALS,MISCELLANEOUS AND SPECIALTY RETAIL STORES,GPC
WALSALL COUNCIL,http://opendatacommunities.org/id/metropolitan-district-council/walsall,31/03/2021,CHILDRENS SERVICES,WWW.BANNERUK.COM,07/01/2021,H59620210109MMQWSCPZJ-1,37.12,REDRUTH ROAD-STATIONERY & GENERAL OFFICE SU,"STATIONERY, OFFICE SUPPLIES AND WRITING PAPER",GPC
WALSALL COUNCIL,http://opendatacommunities.org/id/metropolitan-district-council/walsall,31/03/2021,CHILDRENS SERVICES,AMZNMKTPLACE AMAZON.CO.UK,07/01/2021,H59620210109MVCXZZOXU-1,17.99,E19-MATERIALS,MISCELLANEOUS AND SPECIALTY RETAIL STORES,GPC
WALSALL COUNCIL,http://opendatacommunities.org/id/metropolitan-district-council/walsall,31/03/2021,CHILDRENS SERVICES,AMZNMKTPLACE,07/01/2021,H59620210109NQGVIYIYV-1,156.60,ADMINISTRATIVE SUPPLIES-MATERIALS,MISCELLANEOUS AND SPECIALTY RETAIL STORES,GPC
WALSALL COUNCIL,http://opendatacommunities.org/id/metropolitan-district-council/walsall,31/03/2021,RESOURCES & TRANSFORMATION,MANOMANO,07/01/2021,H59620210109NUFRGKOBT-1,19.98,YEI ESF FUNDING-COMPUTER EQUIPMENT,HOUSEHOLD APPLIANCE STORES,GPC
WALSALL COUNCIL,http://opendatacommunities.org/id/metropolitan-district-council/walsall,31/03/2021,RESOURCES & TRANSFORMATION,MANOMANO,07/01/2021,H59620210109NUFRGKOBT-2,19.97,YEI (IMPACT) PROGRAMME-COMPUTER EQUIPMENT,HOUSEHOLD APPLIANCE STORES,GPC
WALSALL COUNCIL,http://opendatacommunities.org/id/metropolitan-district-council/walsall,31/03/2021,RESOURCES & TRANSFORMATION,MANOMANO,07/01/2021,H59620210109NUFRGKOBT-3,26.49,YEI ESF FUNDING-COMPUTER EQUIPMENT,HOUSEHOLD APPLIANCE STORES,GPC
WALSALL COUNCIL,http://opendatacommunities.org/id/metropolitan-district-council/walsall,31/03/2021,RESOURCES & TRANSFORMATION,MANOMANO,07/01/2021,H59620210109NUFRGKOBT-4,26.50,YEI (IMPACT) PROGRAMME-COMPUTER EQUIPMENT,HOUSEHOLD APPLIANCE STORES,GPC
WALSALL COUNCIL,http://opendatacommunities.org/id/metropolitan-district-council/walsall,31/03/2021,CHILDRENS SERVICES,WWW.BANNERUK.COM,07/01/2021,H59620210109ORMNMOVRO-1,220.08,SAFEGUARDING & FAMILY SUPPORT-STATIONERY & GENERAL OFFICE SU,"STATIONERY, OFFICE SUPPLIES AND WRITING PAPER",GPC
WALSALL COUNCIL,http://opendatacommunities.org/id/metropolitan-district-council/walsall,31/03/2021,RESOURCES & TRANSFORMATION,ARTHUR BRETT CATER,07/01/2021,H59620210109PBKUKUKLN-1,62.73,CATERING - SCHOOLS-FOOD & DRINK SUPPLIES,MISCELLANEOUS FOOD STORES & CONVENIENCE STORES,GPC
WALSALL COUNCIL,http://opendatacommunities.org/id/metropolitan-district-council/walsall,31/03/2021,RESOURCES & TRANSFORMATION,ARTHUR BRETT CATER,07/01/2021,H59620210109PBKUKUKLN-2,52.90,CATERING - MANAGEMENT-FOOD & DRINK SUPPLIES,MISCELLANEOUS FOOD STORES & CONVENIENCE STORES,GPC
WALSALL COUNCIL,http://opendatacommunities.org/id/metropolitan-district-council/walsall,31/03/2021,CHILDRENS SERVICES,W M MORRISON STORE,07/01/2021,H59620210109PICOGUPLB-1,11.00,SPECIAL FACILITIES-MATERIALS,GROCERY STORES AND SUPERMARKETS,GPC
WALSALL COUNCIL,http://opendatacommunities.org/id/metropolitan-district-council/walsall,31/03/2021,CHILDRENS SERVICES,BUZZ NETWORKS TA VIRTUAL,07/01/2021,H59620210109QWNZUMSFI-1,12.96,ADMINISTRATIVE SUPPLIES-STATIONERY & GENERAL OFFICE SU,TELECOMMUNICATION SERVICES,GPC
WALSALL COUNCIL,http://opendatacommunities.org/id/metropolitan-district-council/walsall,31/03/2021,ECONOMY & ENVIRONMENT,GO OUTDOORS,07/01/2021,H59620210109QXHFZHYMD-1,452.60,FLEET-MATERIALS,SPORTING GOODS STORES,GPC
WALSALL COUNCIL,http://opendatacommunities.org/id/metropolitan-district-council/walsall,31/03/2021,CHILDRENS SERVICES,POST OFFICE COUNTER,07/01/2021,H59620210109SCYCCOQFX-1,7.82,FAMILY PLACEMENTS-POSTAGES & COURIER SERVICES,POSTAL SERVICES - GOVERNMENT ONLY,GPC
WALSALL COUNCIL,http://opendatacommunities.org/id/metropolitan-district-council/walsall,31/03/2021,CHILDRENS SERVICES,GEN REGISTER OFFICE,07/01/2021,H59620210109SLCHMSROR-1,38.00,INITIAL RESPONSE SERVICE-FEES & LICENCES,GOVERNMENT SERVICES,GPC
WALSALL COUNCIL,http://opendatacommunities.org/id/metropolitan-district-council/walsall,31/03/2021,ADULT SOCIAL CARE,REMOVALS.CO.UK,07/01/2021,H59620210109SMTHBMEKG-1,172.80,HOLLYBANK-PURCHASE OF FURNITURE & EQUIPM,MOTOR FREIGHT CARRIERS,GPC
WALSALL COUNCIL,http://opendatacommunities.org/id/metropolitan-district-council/walsall,31/03/2021,RESOURCES & TRANSFORMATION,WM MORRISONS STORE,07/01/2021,H59620210109TAWDPPCCM-1,51.85,CATERING - MANAGEMENT-FOOD & DRINK SUPPLIES,GROCERY STORES AND SUPERMARKETS,GPC
WALSALL COUNCIL,http://opendatacommunities.org/id/metropolitan-district-council/walsall,31/03/2021,CHILDRENS SERVICES,ARGOS LTD,07/01/2021,H59620210109TMFGMUUMD-1,63.94,TRANSITION AND LEAVING CARE PL-CARE LEAVERS MTCE PAYMENTS,DISCOUNT STORES,GPC
WALSALL COUNCIL,http://opendatacommunities.org/id/metropolitan-district-council/walsall,31/03/2021,CHILDRENS SERVICES,WALSALL COUNCIL,07/01/2021,H59620210109TPQRUOOXM-1,42.22,MILLFIELD PRIMARY SCHOOL-FAIR FUNDING CORPORATE ELEMENT,GOVERNMENT SERVICES,GPC
WALSALL COUNCIL,http://opendatacommunities.org/id/metropolitan-district-council/walsall,31/03/2021,RESOURCES & TRANSFORMATION,FARMFOODS 614,07/01/2021,H59620210109UDROTMZVF-1,9.60,CATERING - SCHOOLS-FOOD & DRINK SUPPLIES,GROCERY STORES AND SUPERMARKETS,GPC
WALSALL COUNCIL,http://opendatacommunities.org/id/metropolitan-district-council/walsall,31/03/2021,CHILDRENS SERVICES,AMZNMKTPLACE AMAZON.CO.UK,07/01/2021,H59620210109VCFWDMPCC-1,199.95,DT-MATERIALS,MISCELLANEOUS AND SPECIALTY RETAIL STORES,GPC
WALSALL COUNCIL,http://opendatacommunities.org/id/metropolitan-district-council/walsall,31/03/2021,CHILDRENS SERVICES,WWW.STUDIO.CO.UK,07/01/2021,H59620210109VSHMKXSUK-1,124.98,SAFEGUARDING & FAMILY SUPPORT-SECTION 1/17CHILD CARE ACT 198,DIRECT MARKETING CATALOG MERCHANTS,GPC
WALSALL COUNCIL,http://opendatacommunities.org/id/metropolitan-district-council/walsall,31/03/2021,RESOURCES & TRANSFORMATION,AMZNMKTPLACE,07/01/2021,H59620210109WMKCIKNFQ-1,23.12,CENTRAL OFFICE ACCOMMODATION-OPERATIONAL MAINTENANCE,MISCELLANEOUS AND SPECIALTY RETAIL STORES,GPC
WALSALL COUNCIL,http://opendatacommunities.org/id/metropolitan-district-council/walsall,31/03/2021,CHILDRENS SERVICES,ASDA STORES,07/01/2021,H59620210109XTUNLKTMY-1,5.00,TARGETED YOUTH WORK-FOOD & DRINK SUPPLIES,GROCERY STORES AND SUPERMARKETS,GPC
WALSALL COUNCIL,http://opendatacommunities.org/id/metropolitan-district-council/walsall,31/03/2021,ECONOMY & ENVIRONMENT,SQ *T.MORGAN & SONS(LOCK,07/01/2021,H59620210109YCVUVSHVL-1,288.60,INFRASTRUCTURE MAINTENANCE-MATERIALS,"GENERAL CONTRACTORS, RESIDENTIAL AND COMMERCIAL",GPC
WALSALL COUNCIL,http://opendatacommunities.org/id/metropolitan-district-council/walsall,31/03/2021,CHILDRENS SERVICES,MERCURE BARONS COURT HO,07/01/2021,H59620210109YFCCCGIEZ-1,184.00,BED & BREAKFAST PAYMENTS-BED & BREAKFAST PAYMENTS,"HOTELS, MOTELS, RESORTS",GPC
WALSALL COUNCIL,http://opendatacommunities.org/id/metropolitan-district-council/walsall,31/03/2021,CHILDRENS SERVICES,MERCURE BARONS COURT HO,07/01/2021,H59620210109YWRDXQOXN-1,139.00,BED & BREAKFAST PAYMENTS-BED & BREAKFAST PAYMENTS,"HOTELS, MOTELS, RESORTS",GPC
WALSALL COUNCIL,http://opendatacommunities.org/id/metropolitan-district-council/walsall,31/03/2021,RESOURCES & TRANSFORMATION,NOBISCO LIMITED,07/01/2021,H59620210109YZNVBFEUH-1,65.63,CATERING - SCHOOLS-FOOD & DRINK SUPPLIES,OTHER INDUSTRIAL SUPPLIES,GPC
WALSALL COUNCIL,http://opendatacommunities.org/id/metropolitan-district-council/walsall,31/03/2021,ECONOMY & ENVIRONMENT,AMZNMKTPLACE AMAZON.CO.UK,07/01/2021,H59620210109ZGCOFWEXO-1,25.59,FLEET-STATIONERY & GENERAL OFFICE SU,MISCELLANEOUS AND SPECIALTY RETAIL STORES,GPC
WALSALL COUNCIL,http://opendatacommunities.org/id/metropolitan-district-council/walsall,31/03/2021,CHILDRENS SERVICES,GEN REGISTER OFFICE,07/01/2021,H59620210112WEOKSXHRH-1,-31.50,INITIAL RESPONSE SERVICE-FEES & LICENCES,GOVERNMENT SERVICES,GPC
WALSALL COUNCIL,http://opendatacommunities.org/id/metropolitan-district-council/walsall,31/03/2021,CHILDRENS SERVICES,HIGHSTREETVOUCHERS,07/01/2021,H59620210113MGLFECGXL-1,6.92,SPECIAL FACILITIES-MATERIALS,"ASSOCIATIONS-CIVIC, SOCIAL, AND FRATERNAL",GPC
WALSALL COUNCIL,http://opendatacommunities.org/id/metropolitan-district-council/walsall,31/03/2021,CHILDRENS SERVICES,HIGHSTREETVOUCHERS,07/01/2021,H59620210113MGLFECGXL-2,551.38,SPECIAL FACILITIES-MATERIALS,"ASSOCIATIONS-CIVIC, SOCIAL, AND FRATERNAL",GPC
WALSALL COUNCIL,http://opendatacommunities.org/id/metropolitan-district-council/walsall,31/03/2021,RESOURCES & TRANSFORMATION,ARTHUR BRETT CATER,08/01/2021,H59620210112BDSHEQMMX-1,32.88,CATERING - SCHOOLS-FOOD & DRINK SUPPLIES,MISCELLANEOUS FOOD STORES & CONVENIENCE STORES,GPC
WALSALL COUNCIL,http://opendatacommunities.org/id/metropolitan-district-council/walsall,31/03/2021,ECONOMY & ENVIRONMENT,SCREWFIX DIR LTD,08/01/2021,H59620210112BKOWZPLSW-1,17.48,DEPOT-MATERIALS,LUMBER & BUILDING MATERIALS STORES,GPC
WALSALL COUNCIL,http://opendatacommunities.org/id/metropolitan-district-council/walsall,31/03/2021,RESOURCES & TRANSFORMATION,ARTHUR BRETT CATER,08/01/2021,H59620210112DKHRPIBEO-1,31.62,CATERING - SCHOOLS-FOOD & DRINK SUPPLIES,MISCELLANEOUS FOOD STORES & CONVENIENCE STORES,GPC
WALSALL COUNCIL,http://opendatacommunities.org/id/metropolitan-district-council/walsall,31/03/2021,CHILDRENS SERVICES,AMZNMKTPLACE,08/01/2021,H59620210112ELQISEKCN-1,7.99,WATLING STREET PRIMARY SCHOOL-MATERIALS,MISCELLANEOUS AND SPECIALTY RETAIL STORES,GPC
WALSALL COUNCIL,http://opendatacommunities.org/id/metropolitan-district-council/walsall,31/03/2021,RESOURCES & TRANSFORMATION,HIGH SPEED TRAINING LT,08/01/2021,H59620210112EWNLFLNLK-1,12.00,YEI ESF FUNDING-PROFESSIONAL FEES & SERVICES,"SCHOOLS, BUSINESS AND SECRETARIAL",GPC
WALSALL COUNCIL,http://opendatacommunities.org/id/metropolitan-district-council/walsall,31/03/2021,RESOURCES & TRANSFORMATION,HIGH SPEED TRAINING LT,08/01/2021,H59620210112EWNLFLNLK-2,12.00,YEI (IMPACT) PROGRAMME-PROFESSIONAL FEES & SERVICES,"SCHOOLS, BUSINESS AND SECRETARIAL",GPC
WALSALL COUNCIL,http://opendatacommunities.org/id/metropolitan-district-council/walsall,31/03/2021,CHILDRENS SERVICES,STAMPS DIRECT LTD,08/01/2021,H59620210112FJOHSEFOS-1,14.88,ADMINISTRATIVE SUPPLIES-MATERIALS,"OFFICE, SCHOOL SUPPLY, AND STATIONERY STORES",GPC
WALSALL COUNCIL,http://opendatacommunities.org/id/metropolitan-district-council/walsall,31/03/2021,ECONOMY & ENVIRONMENT,AMZNMKTPLACE AMAZON.CO.UK,08/01/2021,H59620210112FNUWPNKID-1,69.99,FLEET-MATERIALS,MISCELLANEOUS AND SPECIALTY RETAIL STORES,GPC
WALSALL COUNCIL,http://opendatacommunities.org/id/metropolitan-district-council/walsall,31/03/2021,RESOURCES & TRANSFORMATION,ARTHUR BRETT CATER,08/01/2021,H59620210112FUJVWSUDJ-1,30.58,CATERING - SCHOOLS-FOOD & DRINK SUPPLIES,MISCELLANEOUS FOOD STORES & CONVENIENCE STORES,GPC
WALSALL COUNCIL,http://opendatacommunities.org/id/metropolitan-district-council/walsall,31/03/2021,ECONOMY & ENVIRONMENT,EXERCISEANYWHERELTD,08/01/2021,H59620210112GPQWEUWRY-1,594.00,COMMUNITY LIASON-PROFESSIONAL FEES & SERVICES,"CLUBS COUNTRY CLUBS, MEMBERSHIP",GPC
WALSALL COUNCIL,http://opendatacommunities.org/id/metropolitan-district-council/walsall,31/03/2021,ADULT SOCIAL CARE,ASDA,08/01/2021,H59620210112GUVRWMVBU-1,7.54,EDUCATION MANAGEMENT - OUTBREA-FOOD & DRINK SUPPLIES,GROCERY STORES AND SUPERMARKETS,GPC
WALSALL COUNCIL,http://opendatacommunities.org/id/metropolitan-district-council/walsall,31/03/2021,ADULT SOCIAL CARE,ASDA,08/01/2021,H59620210112GUVRWMVBU-2,9.70,EDUCATION MANAGEMENT - OUTBREA-FOOD & DRINK SUPPLIES,GROCERY STORES AND SUPERMARKETS,GPC
WALSALL COUNCIL,http://opendatacommunities.org/id/metropolitan-district-council/walsall,31/03/2021,RESOURCES & TRANSFORMATION,NOBISCO LIMITED,08/01/2021,H59620210112HUABILVLI-1,6.50,CATERING - SCHOOLS-FOOD & DRINK SUPPLIES,OTHER INDUSTRIAL SUPPLIES,GPC
WALSALL COUNCIL,http://opendatacommunities.org/id/metropolitan-district-council/walsall,31/03/2021,CHILDRENS SERVICES,247 CARS WILLENHALL LTD,08/01/2021,H59620210112HXGPGOOWP-1,15.10,SAFEGUARDING & FAMILY SUPPORT-SECTION 1/17CHILD CARE ACT 198,TAXI SERVICES,GPC
WALSALL COUNCIL,http://opendatacommunities.org/id/metropolitan-district-council/walsall,31/03/2021,CHILDRENS SERVICES,NAS,08/01/2021,H59620210112IBUGTFPEQ-1,8926.85,LAC & VULNERABLE GROUP SCHOOL -PROFESSIONAL FEES & SERVICES,"ORGANIZATIONS, CHARITABLE AND SOCIAL SERVICE",GPC
WALSALL COUNCIL,http://opendatacommunities.org/id/metropolitan-district-council/walsall,31/03/2021,RESOURCES & TRANSFORMATION,ARTHUR BRETT CATER,08/01/2021,H59620210112IFMHSGQEB-1,33.95,CATERING - SCHOOLS-FOOD & DRINK SUPPLIES,MISCELLANEOUS FOOD STORES & CONVENIENCE STORES,GPC
WALSALL COUNCIL,http://opendatacommunities.org/id/metropolitan-district-council/walsall,31/03/2021,RESOURCES & TRANSFORMATION,ARTHUR BRETT CATER,08/01/2021,H59620210112IISMITQXL-1,2.10,CATERING - SCHOOLS-FOOD & DRINK SUPPLIES,MISCELLANEOUS FOOD STORES & CONVENIENCE STORES,GPC
WALSALL COUNCIL,http://opendatacommunities.org/id/metropolitan-district-council/walsall,31/03/2021,ECONOMY & ENVIRONMENT,WWW.BANNERUK.COM,08/01/2021,H59620210112IIUCMIBLB-1,53.93,REGISTRAR-MATERIALS,"STATIONERY, OFFICE SUPPLIES AND WRITING PAPER",GPC
WALSALL COUNCIL,http://opendatacommunities.org/id/metropolitan-district-council/walsall,31/03/2021,CHILDRENS SERVICES,ASDA,08/01/2021,H59620210112JCTYOFXTJ-1,139.75,WALSALL CRISIS SUPPORT SCHEME-FOOD & DRINK SUPPLIES,GROCERY STORES AND SUPERMARKETS,GPC
WALSALL COUNCIL,http://opendatacommunities.org/id/metropolitan-district-council/walsall,31/03/2021,CHILDRENS SERVICES,W M MORRISONS.COM,08/01/2021,H59620210112LBQGGTYOF-1,46.74,BLUEBELLS-FOOD & DRINK SUPPLIES,GROCERY STORES AND SUPERMARKETS,GPC
WALSALL COUNCIL,http://opendatacommunities.org/id/metropolitan-district-council/walsall,31/03/2021,CHILDRENS SERVICES,W M MORRISONS.COM,08/01/2021,H59620210112LBQGGTYOF-2,87.25,BLUEBELLS-FOOD & DRINK SUPPLIES,GROCERY STORES AND SUPERMARKETS,GPC
WALSALL COUNCIL,http://opendatacommunities.org/id/metropolitan-district-council/walsall,31/03/2021,RESOURCES & TRANSFORMATION,ARTHUR BRETT CATER,08/01/2021,H59620210112LIKKWYUID-1,25.54,CATERING - SCHOOLS-FOOD & DRINK SUPPLIES,MISCELLANEOUS FOOD STORES & CONVENIENCE STORES,GPC
WALSALL COUNCIL,http://opendatacommunities.org/id/metropolitan-district-council/walsall,31/03/2021,CHILDRENS SERVICES,ASDA,08/01/2021,H59620210112LKFYUUJYQ-1,150.00,WALSALL CRISIS SUPPORT SCHEME-FOOD & DRINK SUPPLIES,GROCERY STORES AND SUPERMARKETS,GPC
WALSALL COUNCIL,http://opendatacommunities.org/id/metropolitan-district-council/walsall,31/03/2021,CHILDRENS SERVICES,MCDONALDS,08/01/2021,H59620210112NMCBCQZFP-1,2.45,ADOLESCENT SERVICE-FOOD & DRINK SUPPLIES,QUICK PAYMENT SERVICE-FAST-FOOD RESTAURANTS,GPC
WALSALL COUNCIL,http://opendatacommunities.org/id/metropolitan-district-council/walsall,31/03/2021,CHILDRENS SERVICES,MCDONALDS,08/01/2021,H59620210112NMCBCQZFP-2,2.08,ADOLESCENT SERVICE-FOOD & DRINK SUPPLIES,QUICK PAYMENT SERVICE-FAST-FOOD RESTAURANTS,GPC
WALSALL COUNCIL,http://opendatacommunities.org/id/metropolitan-district-council/walsall,31/03/2021,CHILDRENS SERVICES,MCDONALDS,08/01/2021,H59620210112NMCBCQZFP-3,0.26,ADOLESCENT SERVICE-FOOD & DRINK SUPPLIES,QUICK PAYMENT SERVICE-FAST-FOOD RESTAURANTS,GPC
WALSALL COUNCIL,http://opendatacommunities.org/id/metropolitan-district-council/walsall,31/03/2021,CHILDRENS SERVICES,WONDE LTD,08/01/2021,H59620210112NOSIFRCIP-1,1160.00,LEIGHSWOOD PRIMARY SCHOOL-LEGAL FEES-PRIV CONTRACTOR FEE,DIGITAL GOODS - APPLICATIONS (EXCLUDES GAMES),GPC
WALSALL COUNCIL,http://opendatacommunities.org/id/metropolitan-district-council/walsall,31/03/2021,CHILDRENS SERVICES,ABLEWELL SERVICE STATI,08/01/2021,H59620210112NRTARDCTZ-1,20.00,ACCOMMODATION SERVICES MANAGEM-FUEL FOR VEHICLES,SERVICE STATIONS,GPC
WALSALL COUNCIL,http://opendatacommunities.org/id/metropolitan-district-council/walsall,31/03/2021,ECONOMY & ENVIRONMENT,AMZNMKTPLACE,08/01/2021,H59620210112NYXREHKUO-1,159.70,HIGHWAYS MAINTENANCE GENERAL-MOBILE PHONES,MISCELLANEOUS AND SPECIALTY RETAIL STORES,GPC
WALSALL COUNCIL,http://opendatacommunities.org/id/metropolitan-district-council/walsall,31/03/2021,RESOURCES & TRANSFORMATION,ARTHUR BRETT CATER,08/01/2021,H59620210112ODNAEUKFR-1,36.17,CATERING - SCHOOLS-FOOD & DRINK SUPPLIES,MISCELLANEOUS FOOD STORES & CONVENIENCE STORES,GPC
WALSALL COUNCIL,http://opendatacommunities.org/id/metropolitan-district-council/walsall,31/03/2021,CHILDRENS SERVICES,WEST MIDLAND CARD,08/01/2021,H59620210112ONFELZJSR-1,3.00,TRANSITION AND LEAVING CARE PL-OFFICERS & STAFF PUBLIC TRANSP,BUS LINES,GPC
WALSALL COUNCIL,http://opendatacommunities.org/id/metropolitan-district-council/walsall,31/03/2021,CHILDRENS SERVICES,WWW.BANNERUK.COM,08/01/2021,H59620210112PEOEWSCEK-1,60.58,SAFEGUARDING & FAMILY SUPPORT-STATIONERY & GENERAL OFFICE SU,"STATIONERY, OFFICE SUPPLIES AND WRITING PAPER",GPC
WALSALL COUNCIL,http://opendatacommunities.org/id/metropolitan-district-council/walsall,31/03/2021,RESOURCES & TRANSFORMATION,ARTHUR BRETT CATER,08/01/2021,H59620210112PNSPVSTXB-1,11.80,CATERING - SCHOOLS-FOOD & DRINK SUPPLIES,MISCELLANEOUS FOOD STORES & CONVENIENCE STORES,GPC
WALSALL COUNCIL,http://opendatacommunities.org/id/metropolitan-district-council/walsall,31/03/2021,CHILDRENS SERVICES,WONDE LTD,08/01/2021,H59620210112QIPRYDSMG-1,1612.00,PUPIL PREMIUM-MATERIALS,DIGITAL GOODS - APPLICATIONS (EXCLUDES GAMES),GPC
WALSALL COUNCIL,http://opendatacommunities.org/id/metropolitan-district-council/walsall,31/03/2021,RESOURCES & TRANSFORMATION,ARTHUR BRETT CATER,08/01/2021,H59620210112RJQKVJQGT-1,14.45,CATERING - SCHOOLS-FOOD & DRINK SUPPLIES,MISCELLANEOUS FOOD STORES & CONVENIENCE STORES,GPC
WALSALL COUNCIL,http://opendatacommunities.org/id/metropolitan-district-council/walsall,31/03/2021,CHILDRENS SERVICES,IPS PETERBOROUGH CONTA,08/01/2021,H59620210112SAQYDMBGY-1,85.00,LOOKED AFTER CHILDRENS SOCIAL -FEES & LICENCES,GOVERNMENT SERVICES,GPC
WALSALL COUNCIL,http://opendatacommunities.org/id/metropolitan-district-council/walsall,31/03/2021,CHILDRENS SERVICES,WM MORRISONS STORE,08/01/2021,H59620210112SIEMUKOJP-1,18.66,"43A HILTON ROAD, WILLENHALL-FOOD & DRINK SUPPLIES",GROCERY STORES AND SUPERMARKETS,GPC
WALSALL COUNCIL,http://opendatacommunities.org/id/metropolitan-district-council/walsall,31/03/2021,CHILDRENS SERVICES,WM MORRISONS STORE,08/01/2021,H59620210112SIEMUKOJP-2,93.06,"43A HILTON ROAD, WILLENHALL-FOOD & DRINK SUPPLIES",GROCERY STORES AND SUPERMARKETS,GPC
WALSALL COUNCIL,http://opendatacommunities.org/id/metropolitan-district-council/walsall,31/03/2021,CHILDRENS SERVICES,ASDA GROCERIES ONLINE,08/01/2021,H59620210112TMEKBTFYA-1,-21.00,ACCOMMODATION SERVICES MANAGEM-FOOD & DRINK SUPPLIES,GROCERY STORES AND SUPERMARKETS,GPC
WALSALL COUNCIL,http://opendatacommunities.org/id/metropolitan-district-council/walsall,31/03/2021,CHILDRENS SERVICES,ASDA GROCERIES ONLINE,08/01/2021,H59620210112UIJKOTIHG-1,78.65,ACCOMMODATION SERVICES MANAGEM-FOOD & DRINK SUPPLIES,GROCERY STORES AND SUPERMARKETS,GPC
WALSALL COUNCIL,http://opendatacommunities.org/id/metropolitan-district-council/walsall,31/03/2021,CHILDRENS SERVICES,AMZNMKTPLACE,08/01/2021,H59620210112UKLRZCZRD-1,64.99,WATLING STREET PRIMARY SCHOOL-PURCHASE OF FURNITURE & EQUIPM,MISCELLANEOUS AND SPECIALTY RETAIL STORES,GPC
WALSALL COUNCIL,http://opendatacommunities.org/id/metropolitan-district-council/walsall,31/03/2021,CHILDRENS SERVICES,THE RANGE,08/01/2021,H59620210112URGRNPYSE-1,2.49,ADOLESCENT SERVICE-MATERIALS,DEPARTMENT STORES,GPC
WALSALL COUNCIL,http://opendatacommunities.org/id/metropolitan-district-council/walsall,31/03/2021,ECONOMY & ENVIRONMENT,FACEBK *GY9W4YA932,08/01/2021,H59620210112USHGKREKH-1,1.00,INTEGRATED COMMUNITIES PROGRAM-PUBLICITY & ADVERTISING (NON S,ADVERTISING SERVICES,GPC
WALSALL COUNCIL,http://opendatacommunities.org/id/metropolitan-district-council/walsall,31/03/2021,ECONOMY & ENVIRONMENT,THOMAS TELFORD LIMIT,08/01/2021,H59620210112UWUYQOTXC-1,28.67,STRUCTURES & GEOTECHNICS-SUBSCRIPTIONS,OTHER SCHOOLS AND EDUCATIONAL SERVICES,GPC
WALSALL COUNCIL,http://opendatacommunities.org/id/metropolitan-district-council/walsall,31/03/2021,ECONOMY & ENVIRONMENT,AMZNMKTPLACE,08/01/2021,H59620210112VHCWEZXMV-1,15.47,AREA PARTNERSHIPS-STATIONERY & GENERAL OFFICE SU,MISCELLANEOUS AND SPECIALTY RETAIL STORES,GPC
WALSALL COUNCIL,http://opendatacommunities.org/id/metropolitan-district-council/walsall,31/03/2021,RESOURCES & TRANSFORMATION,ARTHUR BRETT CATER,08/01/2021,H59620210112VJONXDBVL-1,40.55,CATERING - SCHOOLS-FOOD & DRINK SUPPLIES,MISCELLANEOUS FOOD STORES & CONVENIENCE STORES,GPC
WALSALL COUNCIL,http://opendatacommunities.org/id/metropolitan-district-council/walsall,31/03/2021,ECONOMY & ENVIRONMENT,B & Q 1276,08/01/2021,H59620210112VNNDGBNUX-1,18.75,ARBORETUM-MATERIALS,HOME SUPPLY WAREHOUSE STORES,GPC
WALSALL COUNCIL,http://opendatacommunities.org/id/metropolitan-district-council/walsall,31/03/2021,RESOURCES & TRANSFORMATION,ARTHUR BRETT CATER,08/01/2021,H59620210112VRPKRVQGT-1,87.65,CATERING - SCHOOLS-FOOD & DRINK SUPPLIES,MISCELLANEOUS FOOD STORES & CONVENIENCE STORES,GPC
WALSALL COUNCIL,http://opendatacommunities.org/id/metropolitan-district-council/walsall,31/03/2021,CHILDRENS SERVICES,IPS PETERBOROUGH CONTA,08/01/2021,H59620210112VZWTMVBBR-1,117.00,LOOKED AFTER CHILDRENS SOCIAL -FEES & LICENCES,GOVERNMENT SERVICES,GPC
WALSALL COUNCIL,http://opendatacommunities.org/id/metropolitan-district-council/walsall,31/03/2021,RESOURCES & TRANSFORMATION,ARTHUR BRETT CATER,08/01/2021,H59620210112WBQCICJHO-1,31.32,CATERING - SCHOOLS-FOOD & DRINK SUPPLIES,MISCELLANEOUS FOOD STORES & CONVENIENCE STORES,GPC
WALSALL COUNCIL,http://opendatacommunities.org/id/metropolitan-district-council/walsall,31/03/2021,CHILDRENS SERVICES,AMZNMKTPLACE AMAZON.CO.UK,08/01/2021,H59620210112WKSWCZVDP-1,50.80,SPECIAL FACILITIES-MATERIALS,MISCELLANEOUS AND SPECIALTY RETAIL STORES,GPC
WALSALL COUNCIL,http://opendatacommunities.org/id/metropolitan-district-council/walsall,31/03/2021,RESOURCES & TRANSFORMATION,ARTHUR BRETT CATER,08/01/2021,H59620210112YAFZLXGBF-1,24.48,CATERING - SCHOOLS-FOOD & DRINK SUPPLIES,MISCELLANEOUS FOOD STORES & CONVENIENCE STORES,GPC
WALSALL COUNCIL,http://opendatacommunities.org/id/metropolitan-district-council/walsall,31/03/2021,RESOURCES & TRANSFORMATION,ARTHUR BRETT CATER,08/01/2021,H59620210112ZWELXSRZF-1,59.09,CATERING - SCHOOLS-FOOD & DRINK SUPPLIES,MISCELLANEOUS FOOD STORES & CONVENIENCE STORES,GPC
WALSALL COUNCIL,http://opendatacommunities.org/id/metropolitan-district-council/walsall,31/03/2021,CHILDRENS SERVICES,CS* TESCO STORES GC,09/01/2021,H59620210112CQEODXQOF-1,309.00,SPECIAL FACILITIES-MATERIALS,OTHER BUSINESS SERVICES,GPC
WALSALL COUNCIL,http://opendatacommunities.org/id/metropolitan-district-council/walsall,31/03/2021,CHILDRENS SERVICES,AMAZON.CO.UK*MJ2D949G4,09/01/2021,H59620210112HCIVUYXIF-1,9.49,DRAMA-MATERIALS,OTHER DIRECT MARKETING-OTHER DIRECT MARKETERS,GPC
WALSALL COUNCIL,http://opendatacommunities.org/id/metropolitan-district-council/walsall,31/03/2021,CHILDRENS SERVICES,AMZNMKTPLACE,09/01/2021,H59620210112LVINFILIZ-1,11.22,SOCIAL SPACES-MATERIALS,MISCELLANEOUS AND SPECIALTY RETAIL STORES,GPC
WALSALL COUNCIL,http://opendatacommunities.org/id/metropolitan-district-council/walsall,31/03/2021,CHILDRENS SERVICES,CS* TESCO STORES GC,09/01/2021,H59620210112QHSESOADC-1,819.00,SPECIAL FACILITIES-MATERIALS,OTHER BUSINESS SERVICES,GPC
WALSALL COUNCIL,http://opendatacommunities.org/id/metropolitan-district-council/walsall,31/03/2021,CHILDRENS SERVICES,AMZNMKTPLACE,09/01/2021,H59620210112SYQGCTFLE-1,329.90,SPECIAL FACILITIES-MATERIALS,MISCELLANEOUS AND SPECIALTY RETAIL STORES,GPC
WALSALL COUNCIL,http://opendatacommunities.org/id/metropolitan-district-council/walsall,31/03/2021,ADULT SOCIAL CARE,AMZNMKTPLACE,10/01/2021,H59620210112BKEOULXWV-1,6.47,EDUCATION MANAGEMENT - OUTBREA-STATIONERY & GENERAL OFFICE SU,MISCELLANEOUS AND SPECIALTY RETAIL STORES,GPC
WALSALL COUNCIL,http://opendatacommunities.org/id/metropolitan-district-council/walsall,31/03/2021,CHILDRENS SERVICES,FLORAL AFFAIR,10/01/2021,H59620210112MLIRLWQSK-1,4.19,TRANSITION AND LEAVING CARE PL-MATERIALS,FLORISTS,GPC
WALSALL COUNCIL,http://opendatacommunities.org/id/metropolitan-district-council/walsall,31/03/2021,CHILDRENS SERVICES,FLORAL AFFAIR,10/01/2021,H59620210112RCLWMCJJM-1,-4.19,TRANSITION AND LEAVING CARE PL-MATERIALS,FLORISTS,GPC
WALSALL COUNCIL,http://opendatacommunities.org/id/metropolitan-district-council/walsall,31/03/2021,CHILDRENS SERVICES,WEST MIDLAND CARD,10/01/2021,H59620210112RTECQTFPP-1,3.00,TRANSITION AND LEAVING CARE PL-OFFICERS & STAFF PUBLIC TRANSP,BUS LINES,GPC
WALSALL COUNCIL,http://opendatacommunities.org/id/metropolitan-district-council/walsall,31/03/2021,CHILDRENS SERVICES,METRO WALSALL,10/01/2021,H59620210112TLNTTFSYV-1,76.00,WALSALL CRISIS SUPPORT SCHEME-HOTEL ACCOMMODATION-EMPLOYEES,"HOTELS, MOTELS, RESORTS",GPC
WALSALL COUNCIL,http://opendatacommunities.org/id/metropolitan-district-council/walsall,31/03/2021,CHILDRENS SERVICES,AMZNMKTPLACE,10/01/2021,H59620210112UOLMGIXFF-1,24.89,ADMINISTRATIVE SUPPLIES-MATERIALS,MISCELLANEOUS AND SPECIALTY RETAIL STORES,GPC
WALSALL COUNCIL,http://opendatacommunities.org/id/metropolitan-district-council/walsall,31/03/2021,CHILDRENS SERVICES,AMAZON MUSIC*MJ2135U84,10/01/2021,H59620210112WCOGDOWSL-1,3.99,GENERAL-MATERIALS,RECORD SHOPS,GPC
WALSALL COUNCIL,http://opendatacommunities.org/id/metropolitan-district-council/walsall,31/03/2021,CHILDRENS SERVICES,POUNDLAND LTD 1427,10/01/2021,H59620210112XFQATYKPC-1,6.00,ADOLESCENT SERVICE-MATERIALS,DISCOUNT STORES,GPC
WALSALL COUNCIL,http://opendatacommunities.org/id/metropolitan-district-council/walsall,31/03/2021,ECONOMY & ENVIRONMENT,AMZNMKTPLACE,10/01/2021,H59620210112XJJCVAUKU-1,175.75,REGISTRAR-STATIONERY & GENERAL OFFICE SU,MISCELLANEOUS AND SPECIALTY RETAIL STORES,GPC
WALSALL COUNCIL,http://opendatacommunities.org/id/metropolitan-district-council/walsall,31/03/2021,RESOURCES & TRANSFORMATION,NOBISCO LIMITED,11/01/2021,H59620210113AHDIFAGIH-1,57.07,CATERING - SCHOOLS-FOOD & DRINK SUPPLIES,OTHER INDUSTRIAL SUPPLIES,GPC
WALSALL COUNCIL,http://opendatacommunities.org/id/metropolitan-district-council/walsall,31/03/2021,ECONOMY & ENVIRONMENT,DVLA VEHICLE TAX,11/01/2021,H59620210113BHRUPBBMD-1,267.50,FLEET-LICENCES FOR VEHICLES,TAX PAYMENTS,GPC
WALSALL COUNCIL,http://opendatacommunities.org/id/metropolitan-district-council/walsall,31/03/2021,CHILDRENS SERVICES,AMZNMKTPLACE,11/01/2021,H59620210113BIIRZQOUZ-1,17.99,SOCIAL SPACES-MATERIALS,MISCELLANEOUS AND SPECIALTY RETAIL STORES,GPC
WALSALL COUNCIL,http://opendatacommunities.org/id/metropolitan-district-council/walsall,31/03/2021,RESOURCES & TRANSFORMATION,BLAKEMORE FOODSERVICE,11/01/2021,H59620210113BPPYDEVHX-1,206.52,CATERING - SCHOOLS-FOOD & DRINK SUPPLIES,CATERERS,GPC
WALSALL COUNCIL,http://opendatacommunities.org/id/metropolitan-district-council/walsall,31/03/2021,RESOURCES & TRANSFORMATION,WM MORRISONS STORE,11/01/2021,H59620210113BXLGNDHPS-1,52.16,CATERING - MANAGEMENT-FOOD & DRINK SUPPLIES,GROCERY STORES AND SUPERMARKETS,GPC
WALSALL COUNCIL,http://opendatacommunities.org/id/metropolitan-district-council/walsall,31/03/2021,RESOURCES & TRANSFORMATION,BLAKEMORE FOODSERVICE,11/01/2021,H59620210113BYMBQLNHM-1,20.04,CATERING - SCHOOLS-FOOD & DRINK SUPPLIES,CATERERS,GPC
WALSALL COUNCIL,http://opendatacommunities.org/id/metropolitan-district-council/walsall,31/03/2021,RESOURCES & TRANSFORMATION,NOBISCO LIMITED,11/01/2021,H59620210113CPUYNBHNN-1,73.63,CATERING - SCHOOLS-FOOD & DRINK SUPPLIES,OTHER INDUSTRIAL SUPPLIES,GPC
WALSALL COUNCIL,http://opendatacommunities.org/id/metropolitan-district-council/walsall,31/03/2021,RESOURCES & TRANSFORMATION,BLAKEMORE FOODSERVICE,11/01/2021,H59620210113DFNADVSTC-1,154.16,CATERING - SCHOOLS-FOOD & DRINK SUPPLIES,CATERERS,GPC
WALSALL COUNCIL,http://opendatacommunities.org/id/metropolitan-district-council/walsall,31/03/2021,RESOURCES & TRANSFORMATION,BLAKEMORE FOODSERVICE,11/01/2021,H59620210113DFNADVSTC-2,19.84,CATERING - SCHOOLS-FOOD & DRINK SUPPLIES,CATERERS,GPC
WALSALL COUNCIL,http://opendatacommunities.org/id/metropolitan-district-council/walsall,31/03/2021,RESOURCES & TRANSFORMATION,AMZNMKTPLACE,11/01/2021,H59620210113DICGNDJAT-1,2.89,YEI ESF FUNDING-STATIONERY & GENERAL OFFICE SU,MISCELLANEOUS AND SPECIALTY RETAIL STORES,GPC
WALSALL COUNCIL,http://opendatacommunities.org/id/metropolitan-district-council/walsall,31/03/2021,RESOURCES & TRANSFORMATION,AMZNMKTPLACE,11/01/2021,H59620210113DICGNDJAT-2,2.89,YEI ESF FUNDING-STATIONERY & GENERAL OFFICE SU,MISCELLANEOUS AND SPECIALTY RETAIL STORES,GPC
WALSALL COUNCIL,http://opendatacommunities.org/id/metropolitan-district-council/walsall,31/03/2021,CHILDRENS SERVICES,WONDE LTD,11/01/2021,H59620210113DUEIRLXUB-1,13.00,PUPIL PREMIUM-MATERIALS,DIGITAL GOODS - APPLICATIONS (EXCLUDES GAMES),GPC
WALSALL COUNCIL,http://opendatacommunities.org/id/metropolitan-district-council/walsall,31/03/2021,ECONOMY & ENVIRONMENT,PROTEC FIRE DETECT,11/01/2021,H59620210113ENCYFCECM-1,-500.00,BLOXWICH LEISURE CENTRE-REPAIR & MAINTENANCE OF FURNIT,"DETECTIVE AGENCIES, PROTECTIVE AGENCIES, SECURITY ",GPC
WALSALL COUNCIL,http://opendatacommunities.org/id/metropolitan-district-council/walsall,31/03/2021,CHILDRENS SERVICES,LEICESTER COUNTY COURT,11/01/2021,H59620210113FFOGBHRCT-1,170.00,SAFEGUARDING & FAMILY SUPPORT-EXTERNAL LEGAL FEES,FINES,GPC
WALSALL COUNCIL,http://opendatacommunities.org/id/metropolitan-district-council/walsall,31/03/2021,RESOURCES & TRANSFORMATION,BLAKEMORE FOODSERVICE,11/01/2021,H59620210113FTLHFYFHX-1,60.80,CATERING - SCHOOLS-FOOD & DRINK SUPPLIES,CATERERS,GPC
WALSALL COUNCIL,http://opendatacommunities.org/id/metropolitan-district-council/walsall,31/03/2021,CHILDRENS SERVICES,MCC INTERNET,11/01/2021,H59620210113GERDAMJOW-1,11.00,WALSALL CRISIS SUPPORT SCHEME-FEES & LICENCES,GOVERNMENT SERVICES,GPC
WALSALL COUNCIL,http://opendatacommunities.org/id/metropolitan-district-council/walsall,31/03/2021,CHILDRENS SERVICES,FARMFOODS 612,11/01/2021,H59620210113HIJLTEHYL-1,6.87,REDRUTH ROAD-FOOD & DRINK SUPPLIES,GROCERY STORES AND SUPERMARKETS,GPC
WALSALL COUNCIL,http://opendatacommunities.org/id/metropolitan-district-council/walsall,31/03/2021,CHILDRENS SERVICES,WALSALL COUNCIL,11/01/2021,H59620210113HMQDUONMY-1,17.00,ADVICE & GUIDANCE SERVICE-FEES & LICENCES,GOVERNMENT SERVICES,GPC
WALSALL COUNCIL,http://opendatacommunities.org/id/metropolitan-district-council/walsall,31/03/2021,CHILDRENS SERVICES,WWW.UTILITA.CO.UK,11/01/2021,H59620210113HYUADGQYO-1,15.00,TENANCY SERVICE-CRISIS SUPPORT PAYMENTS,"UTILITIES - ELECTRIC, GAS, SANITARY & WATER",GPC
WALSALL COUNCIL,http://opendatacommunities.org/id/metropolitan-district-council/walsall,31/03/2021,CHILDRENS SERVICES,AMZNMKTPLACE,11/01/2021,H59620210113IJYKXFEEF-1,121.44,CONSUMABLES-PURCHASE OF FURNITURE & EQUIPM,MISCELLANEOUS AND SPECIALTY RETAIL STORES,GPC
WALSALL COUNCIL,http://opendatacommunities.org/id/metropolitan-district-council/walsall,31/03/2021,RESOURCES & TRANSFORMATION,NOBISCO LIMITED,11/01/2021,H59620210113JIKALFFWO-1,62.23,CATERING - SCHOOLS-FOOD & DRINK SUPPLIES,OTHER INDUSTRIAL SUPPLIES,GPC
WALSALL COUNCIL,http://opendatacommunities.org/id/metropolitan-district-council/walsall,31/03/2021,RESOURCES & TRANSFORMATION,BLAKEMORE FOODSERVICE,11/01/2021,H59620210113KDSTGBYCY-1,-428.47,CATERING - SCHOOLS-FOOD & DRINK SUPPLIES,CATERERS,GPC
WALSALL COUNCIL,http://opendatacommunities.org/id/metropolitan-district-council/walsall,31/03/2021,RESOURCES & TRANSFORMATION,BLAKEMORE FOODSERVICE,11/01/2021,H59620210113KDSTGBYCY-2,-29.77,CATERING - SCHOOLS-FOOD & DRINK SUPPLIES,CATERERS,GPC
WALSALL COUNCIL,http://opendatacommunities.org/id/metropolitan-district-council/walsall,31/03/2021,RESOURCES & TRANSFORMATION,BLAKEMORE FOODSERVICE,11/01/2021,H59620210113KHNPOUBSJ-1,88.73,CATERING - SCHOOLS-FOOD & DRINK SUPPLIES,CATERERS,GPC
WALSALL COUNCIL,http://opendatacommunities.org/id/metropolitan-district-council/walsall,31/03/2021,RESOURCES & TRANSFORMATION,BLAKEMORE FOODSERVICE,11/01/2021,H59620210113KHNPOUBSJ-2,84.48,CATERING - SCHOOLS-FOOD & DRINK SUPPLIES,CATERERS,GPC
WALSALL COUNCIL,http://opendatacommunities.org/id/metropolitan-district-council/walsall,31/03/2021,RESOURCES & TRANSFORMATION,BLAKEMORE FOODSERVICE,11/01/2021,H59620210113KYGLQMPNY-1,244.98,CATERING - SCHOOLS-FOOD & DRINK SUPPLIES,CATERERS,GPC
WALSALL COUNCIL,http://opendatacommunities.org/id/metropolitan-district-council/walsall,31/03/2021,CHILDRENS SERVICES,WOLSELEY UK,11/01/2021,H59620210113KYQRXCPJQ-1,14.22,MARY ELLIOTT SCHOOL-OPERATIONAL MAINTENANCE,"AIR CONDITIONING, HEATING, PLUMBING CONTRACTORS",GPC
WALSALL COUNCIL,http://opendatacommunities.org/id/metropolitan-district-council/walsall,31/03/2021,CHILDRENS SERVICES,HOME BARGAINS,11/01/2021,H59620210113LFNNVMWLV-1,1.99,"43A HILTON ROAD, WILLENHALL-CLEANING MATERIALS",HARDWARE STORES,GPC
WALSALL COUNCIL,http://opendatacommunities.org/id/metropolitan-district-council/walsall,31/03/2021,RESOURCES & TRANSFORMATION,BLAKEMORE FOODSERVICE,11/01/2021,H59620210113MEGQDTCCY-1,-417.38,CATERING - SCHOOLS-FOOD & DRINK SUPPLIES,CATERERS,GPC
WALSALL COUNCIL,http://opendatacommunities.org/id/metropolitan-district-council/walsall,31/03/2021,CHILDRENS SERVICES,FARMFOODS 612,11/01/2021,H59620210113MGQOEEMCO-1,20.97,REDRUTH ROAD-CLEANING MATERIALS,GROCERY STORES AND SUPERMARKETS,GPC
WALSALL COUNCIL,http://opendatacommunities.org/id/metropolitan-district-council/walsall,31/03/2021,CHILDRENS SERVICES,W M MORRISON STORE,11/01/2021,H59620210113MJLQWJUJP-1,80.00,SPECIAL FACILITIES-MATERIALS,GROCERY STORES AND SUPERMARKETS,GPC
WALSALL COUNCIL,http://opendatacommunities.org/id/metropolitan-district-council/walsall,31/03/2021,RESOURCES & TRANSFORMATION,AMZNMKTPLACE,11/01/2021,H59620210113NECGCUCAC-1,95.03,RECHARGEABLE EQUIPMENT-COMPUTER EQUIPMENT,MISCELLANEOUS AND SPECIALTY RETAIL STORES,GPC
WALSALL COUNCIL,http://opendatacommunities.org/id/metropolitan-district-council/walsall,31/03/2021,CHILDRENS SERVICES,HOME BARGAINS,11/01/2021,H59620210113NGSVVJMVR-1,20.88,SPECIAL FACILITIES-MATERIALS,HARDWARE STORES,GPC
WALSALL COUNCIL,http://opendatacommunities.org/id/metropolitan-district-council/walsall,31/03/2021,CHILDRENS SERVICES,WWW.UTILITA.CO.UK,11/01/2021,H59620210113NIUTTKQIL-1,-5.00,TENANCY SERVICE-CRISIS SUPPORT PAYMENTS,"UTILITIES - ELECTRIC, GAS, SANITARY & WATER",GPC
WALSALL COUNCIL,http://opendatacommunities.org/id/metropolitan-district-council/walsall,31/03/2021,RESOURCES & TRANSFORMATION,BLAKEMORE FOODSERVICE,11/01/2021,H59620210113NOUNSTFWS-1,49.21,CATERING - SCHOOLS-FOOD & DRINK SUPPLIES,CATERERS,GPC
WALSALL COUNCIL,http://opendatacommunities.org/id/metropolitan-district-council/walsall,31/03/2021,RESOURCES & TRANSFORMATION,NOBISCO LIMITED,11/01/2021,H59620210113OKSWPELKX-1,35.86,CATERING - SCHOOLS-FOOD & DRINK SUPPLIES,OTHER INDUSTRIAL SUPPLIES,GPC
WALSALL COUNCIL,http://opendatacommunities.org/id/metropolitan-district-council/walsall,31/03/2021,RESOURCES & TRANSFORMATION,BLAKEMORE FOODSERVICE,11/01/2021,H59620210113PWQEIGGKR-1,-200.27,CATERING - SCHOOLS-FOOD & DRINK SUPPLIES,CATERERS,GPC
WALSALL COUNCIL,http://opendatacommunities.org/id/metropolitan-district-council/walsall,31/03/2021,ECONOMY & ENVIRONMENT,BLAKEMORE FOODSERVICE,11/01/2021,H59620210113QCPSWPWAR-1,135.39,FLEET-MATERIALS,CATERERS,GPC
WALSALL COUNCIL,http://opendatacommunities.org/id/metropolitan-district-council/walsall,31/03/2021,ECONOMY & ENVIRONMENT,BLAKEMORE FOODSERVICE,11/01/2021,H59620210113QCPSWPWAR-2,92.83,FLEET-MATERIALS,CATERERS,GPC
WALSALL COUNCIL,http://opendatacommunities.org/id/metropolitan-district-council/walsall,31/03/2021,RESOURCES & TRANSFORMATION,BLAKEMORE FOODSERVICE,11/01/2021,H59620210113QKOZMWDHD-1,-64.69,CATERING - SCHOOLS-CATERING & REFRESHMENTS,CATERERS,GPC
WALSALL COUNCIL,http://opendatacommunities.org/id/metropolitan-district-council/walsall,31/03/2021,RESOURCES & TRANSFORMATION,BLAKEMORE FOODSERVICE,11/01/2021,H59620210113SUUPMEBKS-1,-217.02,CATERING - SCHOOLS-FOOD & DRINK SUPPLIES,CATERERS,GPC
WALSALL COUNCIL,http://opendatacommunities.org/id/metropolitan-district-council/walsall,31/03/2021,RESOURCES & TRANSFORMATION,BLAKEMORE FOODSERVICE,11/01/2021,H59620210113SUUPMEBKS-2,-45.67,CATERING - SCHOOLS-FOOD & DRINK SUPPLIES,CATERERS,GPC
WALSALL COUNCIL,http://opendatacommunities.org/id/metropolitan-district-council/walsall,31/03/2021,CHILDRENS SERVICES,B&M 541 - ALDIDGE,11/01/2021,H59620210113TKFDLUBKW-1,8.97,SPECIAL FACILITIES-MATERIALS,MISCELLANEOUS GENERAL MERCHANDISE,GPC
WALSALL COUNCIL,http://opendatacommunities.org/id/metropolitan-district-council/walsall,31/03/2021,CHILDRENS SERVICES,WWW.BANNERUK.COM,11/01/2021,H59620210113TQPBNLBMG-1,12.15,REDRUTH ROAD-STATIONERY & GENERAL OFFICE SU,"STATIONERY, OFFICE SUPPLIES AND WRITING PAPER",GPC
WALSALL COUNCIL,http://opendatacommunities.org/id/metropolitan-district-council/walsall,31/03/2021,RESOURCES & TRANSFORMATION,BLAKEMORE FOODSERVICE,11/01/2021,H59620210113UDMKLBJFP-1,261.50,CATERING - SCHOOLS-FOOD & DRINK SUPPLIES,CATERERS,GPC
WALSALL COUNCIL,http://opendatacommunities.org/id/metropolitan-district-council/walsall,31/03/2021,RESOURCES & TRANSFORMATION,BLAKEMORE FOODSERVICE,11/01/2021,H59620210113UDMKLBJFP-2,105.17,CATERING - SCHOOLS-FOOD & DRINK SUPPLIES,CATERERS,GPC
WALSALL COUNCIL,http://opendatacommunities.org/id/metropolitan-district-council/walsall,31/03/2021,CHILDRENS SERVICES,HP INC UK LIMITED,11/01/2021,H59620210113UYEOCLUUD-1,9.99,ADMINISTRATIVE SUPPLIES-STATIONERY & GENERAL OFFICE SU,"COMPUTERS, COMPUTER PERIPHERAL EQUIPMENT, SOFTWARE",GPC
WALSALL COUNCIL,http://opendatacommunities.org/id/metropolitan-district-council/walsall,31/03/2021,CHILDRENS SERVICES,ASDA SUPERSTORE,11/01/2021,H59620210113VMXLJQGRK-1,9.00,REDRUTH ROAD-PURCHASE OF FURNITURE & EQUIPM,GROCERY STORES AND SUPERMARKETS,GPC
WALSALL COUNCIL,http://opendatacommunities.org/id/metropolitan-district-council/walsall,31/03/2021,CHILDRENS SERVICES,AMAZON.CO.UK*MJ4EW5IM4,11/01/2021,H59620210113VXPGQLDTF-1,7.61,ADMINISTRATIVE SUPPLIES-STATIONERY & GENERAL OFFICE SU,OTHER DIRECT MARKETING-OTHER DIRECT MARKETERS,GPC
WALSALL COUNCIL,http://opendatacommunities.org/id/metropolitan-district-council/walsall,31/03/2021,CHILDRENS SERVICES,ASDA SUPERSTORE,11/01/2021,H59620210113WISKYIKWU-1,2.00,REDRUTH ROAD-FOOD & DRINK SUPPLIES,GROCERY STORES AND SUPERMARKETS,GPC
WALSALL COUNCIL,http://opendatacommunities.org/id/metropolitan-district-council/walsall,31/03/2021,CHILDRENS SERVICES,ASDA SUPERSTORE,11/01/2021,H59620210113WISKYIKWU-2,66.20,REDRUTH ROAD-FOOD & DRINK SUPPLIES,GROCERY STORES AND SUPERMARKETS,GPC
WALSALL COUNCIL,http://opendatacommunities.org/id/metropolitan-district-council/walsall,31/03/2021,RESOURCES & TRANSFORMATION,AMZNMKTPLACE,11/01/2021,H59620210113XAVPFWSYV-1,53.46,RECHARGEABLE EQUIPMENT-COMPUTER EQUIPMENT,MISCELLANEOUS AND SPECIALTY RETAIL STORES,GPC
WALSALL COUNCIL,http://opendatacommunities.org/id/metropolitan-district-council/walsall,31/03/2021,RESOURCES & TRANSFORMATION,NOBISCO LIMITED,11/01/2021,H59620210113YDCUSVLXW-1,-35.66,CATERING - SCHOOLS-FOOD & DRINK SUPPLIES,OTHER INDUSTRIAL SUPPLIES,GPC
WALSALL COUNCIL,http://opendatacommunities.org/id/metropolitan-district-council/walsall,31/03/2021,ECONOMY & ENVIRONMENT,L & S ENGINEERS LTD,11/01/2021,H59620210113YIFSXPXAD-1,12.14,INFRASTRUCTURE MAINTENANCE-PURCHASE OF FURNITURE & EQUIPM,HARDWARE STORES,GPC
WALSALL COUNCIL,http://opendatacommunities.org/id/metropolitan-district-council/walsall,31/03/2021,RESOURCES & TRANSFORMATION,BLAKEMORE FOODSERVICE,11/01/2021,H59620210113YJZIRQMGM-1,196.86,CATERING - SCHOOLS-FOOD & DRINK SUPPLIES,CATERERS,GPC
WALSALL COUNCIL,http://opendatacommunities.org/id/metropolitan-district-council/walsall,31/03/2021,CHILDRENS SERVICES,ARGOS LTD,11/01/2021,H59620210113YKCPSDRDG-1,100.00,LOOKED AFTER CHILDRENS SOCIAL -PURCHASE OF FURNITURE & EQUIPM,DISCOUNT STORES,GPC
WALSALL COUNCIL,http://opendatacommunities.org/id/metropolitan-district-council/walsall,31/03/2021,CHILDRENS SERVICES,ALDI 772 129,11/01/2021,H59620210113YKZZQVAFP-1,11.48,"43A HILTON ROAD, WILLENHALL-FOOD & DRINK SUPPLIES",GROCERY STORES AND SUPERMARKETS,GPC
WALSALL COUNCIL,http://opendatacommunities.org/id/metropolitan-district-council/walsall,31/03/2021,RESOURCES & TRANSFORMATION,WM MORRISONS STORE,11/01/2021,H59620210113YLFBZQWMR-1,15.55,CATERING - SCHOOLS-FOOD & DRINK SUPPLIES,GROCERY STORES AND SUPERMARKETS,GPC
WALSALL COUNCIL,http://opendatacommunities.org/id/metropolitan-district-council/walsall,31/03/2021,RESOURCES & TRANSFORMATION,BLAKEMORE FOODSERVICE,11/01/2021,H59620210113YPXUOGQRQ-1,21.51,CATERING - SCHOOLS-FOOD & DRINK SUPPLIES,CATERERS,GPC
WALSALL COUNCIL,http://opendatacommunities.org/id/metropolitan-district-council/walsall,31/03/2021,CHILDRENS SERVICES,ASDA SUPERSTORE,11/01/2021,H59620210113YQLEJYNWV-1,100.00,SPECIAL FACILITIES-MATERIALS,GROCERY STORES AND SUPERMARKETS,GPC
WALSALL COUNCIL,http://opendatacommunities.org/id/metropolitan-district-council/walsall,31/03/2021,CHILDRENS SERVICES,AMAZON.CO.UK*MJ7F69W84,11/01/2021,H59620210113YXITLTXXB-1,34.95,DRAMA-MATERIALS,OTHER DIRECT MARKETING-OTHER DIRECT MARKETERS,GPC
WALSALL COUNCIL,http://opendatacommunities.org/id/metropolitan-district-council/walsall,31/03/2021,RESOURCES & TRANSFORMATION,BLAKEMORE FOODSERVICE,11/01/2021,H59620210113ZNRGTUCXS-1,246.84,CATERING - SCHOOLS-FOOD & DRINK SUPPLIES,CATERERS,GPC
WALSALL COUNCIL,http://opendatacommunities.org/id/metropolitan-district-council/walsall,31/03/2021,CHILDRENS SERVICES,METRO WALSALL,11/01/2021,H59620210113ZOCEFOGDT-1,532.00,ROUGH SLEEPING INITIATIVE GRAN-BED & BREAKFAST PAYMENTS,"HOTELS, MOTELS, RESORTS",GPC
WALSALL COUNCIL,http://opendatacommunities.org/id/metropolitan-district-council/walsall,31/03/2021,CHILDRENS SERVICES,247 CARS WILLENHALL LTD,11/01/2021,H59620210114BJMMKHZZW-1,14.70,SAFEGUARDING & FAMILY SUPPORT-SECTION 1/17CHILD CARE ACT 198,TAXI SERVICES,GPC
WALSALL COUNCIL,http://opendatacommunities.org/id/metropolitan-district-council/walsall,31/03/2021,CHILDRENS SERVICES,247 CARS WILLENHALL LTD,11/01/2021,H59620210114BWMYHIMNX-1,14.60,SAFEGUARDING & FAMILY SUPPORT-SECTION 1/17CHILD CARE ACT 198,TAXI SERVICES,GPC
WALSALL COUNCIL,http://opendatacommunities.org/id/metropolitan-district-council/walsall,31/03/2021,CHILDRENS SERVICES,WWW.MYPOSTSHOP.COM,11/01/2021,H59620210114CQRDFYKNB-1,132.00,SAFEGUARDING & FAMILY SUPPORT-POSTAGES & COURIER SERVICES,"STATIONERY, OFFICE SUPPLIES AND WRITING PAPER",GPC
WALSALL COUNCIL,http://opendatacommunities.org/id/metropolitan-district-council/walsall,31/03/2021,CHILDRENS SERVICES,WWW.MYPOSTSHOP.COM,11/01/2021,H59620210114CQRDFYKNB-2,237.99,FAMILY PLACEMENTS-POSTAGES & COURIER SERVICES,"STATIONERY, OFFICE SUPPLIES AND WRITING PAPER",GPC
WALSALL COUNCIL,http://opendatacommunities.org/id/metropolitan-district-council/walsall,31/03/2021,CHILDRENS SERVICES,ARGOS LTD,11/01/2021,H59620210114JPQHVMBMA-1,-37.49,SAFEGUARDING & FAMILY SUPPORT-SECTION 1/17CHILD CARE ACT 198,DISCOUNT STORES,GPC
WALSALL COUNCIL,http://opendatacommunities.org/id/metropolitan-district-council/walsall,31/03/2021,CHILDRENS SERVICES,TESCO PAY AT PUMP 3892,11/01/2021,H59620210114NFJXYWYBE-1,50.00,WALSALL WOOD PRIMARY SCHOOL-TRANSPORT OTHER-ASSISTANCE TO ,"FUEL DISPENSER, AUTOMATED",GPC
WALSALL COUNCIL,http://opendatacommunities.org/id/metropolitan-district-council/walsall,31/03/2021,RESOURCES & TRANSFORMATION,BLAKEMORE FOODSERVICE,11/01/2021,H59620210114UREBECWMG-1,-660.51,CATERING - SCHOOLS-FOOD & DRINK SUPPLIES,CATERERS,GPC
WALSALL COUNCIL,http://opendatacommunities.org/id/metropolitan-district-council/walsall,31/03/2021,RESOURCES & TRANSFORMATION,BLAKEMORE FOODSERVICE,11/01/2021,H59620210114UREBECWMG-2,-75.79,CATERING - SCHOOLS-FOOD & DRINK SUPPLIES,CATERERS,GPC
WALSALL COUNCIL,http://opendatacommunities.org/id/metropolitan-district-council/walsall,31/03/2021,RESOURCES & TRANSFORMATION,WWW.SCC.COM,11/01/2021,H59620210115HDSAGFCGE-1,12319.80,RECHARGEABLE EQUIPMENT-COMPUTER EQUIPMENT,"COMPUTERS, COMPUTER PERIPHERAL EQUIPMENT, SOFTWARE",GPC
WALSALL COUNCIL,http://opendatacommunities.org/id/metropolitan-district-council/walsall,31/03/2021,RESOURCES & TRANSFORMATION,WWW.SCC.COM,11/01/2021,H59620210115KIDJSTPBW-1,52.91,RECHARGEABLE EQUIPMENT-COMPUTER EQUIPMENT,"COMPUTERS, COMPUTER PERIPHERAL EQUIPMENT, SOFTWARE",GPC
WALSALL COUNCIL,http://opendatacommunities.org/id/metropolitan-district-council/walsall,31/03/2021,RESOURCES & TRANSFORMATION,WWW.SCC.COM,11/01/2021,H59620210115ULWEFCIGP-1,60.82,RECHARGEABLE EQUIPMENT-COMPUTER EQUIPMENT,"COMPUTERS, COMPUTER PERIPHERAL EQUIPMENT, SOFTWARE",GPC
WALSALL COUNCIL,http://opendatacommunities.org/id/metropolitan-district-council/walsall,31/03/2021,RESOURCES & TRANSFORMATION,WWW.SCC.COM,11/01/2021,H59620210115VFQSNSBDB-1,93.60,RECHARGEABLE EQUIPMENT-COMPUTER EQUIPMENT,"COMPUTERS, COMPUTER PERIPHERAL EQUIPMENT, SOFTWARE",GPC
WALSALL COUNCIL,http://opendatacommunities.org/id/metropolitan-district-council/walsall,31/03/2021,RESOURCES & TRANSFORMATION,WWW.SCC.COM,11/01/2021,H59620210312UDOTJPZHX-1,277.67,RECHARGEABLE EQUIPMENT-COMPUTER EQUIPMENT,"COMPUTERS, COMPUTER PERIPHERAL EQUIPMENT, SOFTWARE",GPC
WALSALL COUNCIL,http://opendatacommunities.org/id/metropolitan-district-council/walsall,31/03/2021,ECONOMY & ENVIRONMENT,SCREWFIX DIRECT,12/01/2021,H59620210114AHDDHKTBV-1,99.99,INFRASTRUCTURE MAINTENANCE-MATERIALS,LUMBER & BUILDING MATERIALS STORES,GPC
WALSALL COUNCIL,http://opendatacommunities.org/id/metropolitan-district-council/walsall,31/03/2021,CHILDRENS SERVICES,METRO WALSALL,12/01/2021,H59620210114AKXTGUQUD-1,38.00,ACCOMMODATION SERVICES MANAGEM-BED & BREAKFAST PAYMENTS,"HOTELS, MOTELS, RESORTS",GPC
WALSALL COUNCIL,http://opendatacommunities.org/id/metropolitan-district-council/walsall,31/03/2021,CHILDRENS SERVICES,AMZNMKTPLACE,12/01/2021,H59620210114AMIGOXQTY-1,36.98,ICT LEARNING RESOURCES-MATERIALS,MISCELLANEOUS AND SPECIALTY RETAIL STORES,GPC
WALSALL COUNCIL,http://opendatacommunities.org/id/metropolitan-district-council/walsall,31/03/2021,CHILDRENS SERVICES,AMZNMKTPLACE,12/01/2021,H59620210114BGFMPITJF-1,432.17,ICT LEARNING RESOURCES-MATERIALS,MISCELLANEOUS AND SPECIALTY RETAIL STORES,GPC
WALSALL COUNCIL,http://opendatacommunities.org/id/metropolitan-district-council/walsall,31/03/2021,ECONOMY & ENVIRONMENT,AMAZON.CO.UK*MJ2FO1YM4,12/01/2021,H59620210114BHIYCVJNE-1,55.99,AREA PARTNERSHIPS-STATIONERY & GENERAL OFFICE SU,OTHER DIRECT MARKETING-OTHER DIRECT MARKETERS,GPC
WALSALL COUNCIL,http://opendatacommunities.org/id/metropolitan-district-council/walsall,31/03/2021,RESOURCES & TRANSFORMATION,ARTHUR BRETT CATER,12/01/2021,H59620210114BVMYJXLBD-1,27.20,CATERING - SCHOOLS-FOOD & DRINK SUPPLIES,MISCELLANEOUS FOOD STORES & CONVENIENCE STORES,GPC
WALSALL COUNCIL,http://opendatacommunities.org/id/metropolitan-district-council/walsall,31/03/2021,CHILDRENS SERVICES,HUE,12/01/2021,H59620210114CIWLPUMIV-1,64.74,ICT LEARNING RESOURCES-PURCHASE OF FURNITURE & EQUIPM,ELECTRONIC SALES,GPC
WALSALL COUNCIL,http://opendatacommunities.org/id/metropolitan-district-council/walsall,31/03/2021,RESOURCES & TRANSFORMATION,ARTHUR BRETT CATER,12/01/2021,H59620210114CYBBGQXJV-1,61.54,CATERING - SCHOOLS-FOOD & DRINK SUPPLIES,MISCELLANEOUS FOOD STORES & CONVENIENCE STORES,GPC
WALSALL COUNCIL,http://opendatacommunities.org/id/metropolitan-district-council/walsall,31/03/2021,RESOURCES & TRANSFORMATION,ARTHUR BRETT CATER,12/01/2021,H59620210114DBRIOTEHB-1,24.07,CATERING - SCHOOLS-FOOD & DRINK SUPPLIES,MISCELLANEOUS FOOD STORES & CONVENIENCE STORES,GPC
WALSALL COUNCIL,http://opendatacommunities.org/id/metropolitan-district-council/walsall,31/03/2021,RESOURCES & TRANSFORMATION,ARTHUR BRETT CATER,12/01/2021,H59620210114DCXQBNHTL-1,42.75,CATERING - SCHOOLS-FOOD & DRINK SUPPLIES,MISCELLANEOUS FOOD STORES & CONVENIENCE STORES,GPC
WALSALL COUNCIL,http://opendatacommunities.org/id/metropolitan-district-council/walsall,31/03/2021,RESOURCES & TRANSFORMATION,ARTHUR BRETT CATER,12/01/2021,H59620210114FDMBIYHWY-1,28.12,CATERING - SCHOOLS-FOOD & DRINK SUPPLIES,MISCELLANEOUS FOOD STORES & CONVENIENCE STORES,GPC
WALSALL COUNCIL,http://opendatacommunities.org/id/metropolitan-district-council/walsall,31/03/2021,CHILDRENS SERVICES,AMAZON.CO.UK*MJ7I06Y64,12/01/2021,H59620210114FNWUNWLKG-1,95.71,LITERACY-MATERIALS,OTHER DIRECT MARKETING-OTHER DIRECT MARKETERS,GPC
WALSALL COUNCIL,http://opendatacommunities.org/id/metropolitan-district-council/walsall,31/03/2021,CHILDRENS SERVICES,AMAZON.CO.UK*MJ3CB3YH4 AM,12/01/2021,H59620210114FVWMUOCEH-1,140.00,LITERACY-MATERIALS,MISCELLANEOUS AND SPECIALTY RETAIL STORES,GPC
WALSALL COUNCIL,http://opendatacommunities.org/id/metropolitan-district-council/walsall,31/03/2021,ADULT SOCIAL CARE,AMZNMKTPLACE,12/01/2021,H59620210114FXIBQRZEJ-1,182.19,EDUCATION MANAGEMENT - OUTBREA-PURCHASE OF FURNITURE & EQUIPM,MISCELLANEOUS AND SPECIALTY RETAIL STORES,GPC
WALSALL COUNCIL,http://opendatacommunities.org/id/metropolitan-district-council/walsall,31/03/2021,ECONOMY & ENVIRONMENT,DVLA VEHICLE TAX,12/01/2021,H59620210114GWBVMXYUR-1,167.50,FLEET-LICENCES FOR VEHICLES,TAX PAYMENTS,GPC
WALSALL COUNCIL,http://opendatacommunities.org/id/metropolitan-district-council/walsall,31/03/2021,ECONOMY & ENVIRONMENT,DVLA VEHICLE TAX,12/01/2021,H59620210114GYWELXKOG-1,302.50,FLEET-LICENCES FOR VEHICLES,TAX PAYMENTS,GPC
WALSALL COUNCIL,http://opendatacommunities.org/id/metropolitan-district-council/walsall,31/03/2021,ECONOMY & ENVIRONMENT,DVLA VEHICLE TAX,12/01/2021,H59620210114HBMWZJBNL-1,302.50,FLEET-LICENCES FOR VEHICLES,TAX PAYMENTS,GPC
WALSALL COUNCIL,http://opendatacommunities.org/id/metropolitan-district-council/walsall,31/03/2021,CHILDRENS SERVICES,WALSALL COUNCIL,12/01/2021,H59620210114HBMYCRLEV-1,28.00,SAFEGUARDING & FAMILY SUPPORT-FEES & LICENCES,GOVERNMENT SERVICES,GPC
WALSALL COUNCIL,http://opendatacommunities.org/id/metropolitan-district-council/walsall,31/03/2021,RESOURCES & TRANSFORMATION,ARTHUR BRETT CATER,12/01/2021,H59620210114IPEDFCZCH-1,25.42,CATERING - SCHOOLS-FOOD & DRINK SUPPLIES,MISCELLANEOUS FOOD STORES & CONVENIENCE STORES,GPC
WALSALL COUNCIL,http://opendatacommunities.org/id/metropolitan-district-council/walsall,31/03/2021,RESOURCES & TRANSFORMATION,ARTHUR BRETT CATER,12/01/2021,H59620210114JHAOVDCJA-1,11.76,CATERING - SCHOOLS-FOOD & DRINK SUPPLIES,MISCELLANEOUS FOOD STORES & CONVENIENCE STORES,GPC
WALSALL COUNCIL,http://opendatacommunities.org/id/metropolitan-district-council/walsall,31/03/2021,ADULT SOCIAL CARE,AMZNMKTPLACE,12/01/2021,H59620210114JOGROQTCY-1,68.88,EDUCATION MANAGEMENT - OUTBREA-CLEANING MATERIALS,MISCELLANEOUS AND SPECIALTY RETAIL STORES,GPC
WALSALL COUNCIL,http://opendatacommunities.org/id/metropolitan-district-council/walsall,31/03/2021,CHILDRENS SERVICES,SP * WHITE ROSE TOOLS,12/01/2021,H59620210114JPGRJBJNU-1,86.25,E19-MATERIALS,MISCELLANEOUS GENERAL MERCHANDISE,GPC
WALSALL COUNCIL,http://opendatacommunities.org/id/metropolitan-district-council/walsall,31/03/2021,CHILDRENS SERVICES,CS* TESCO STORES GC,12/01/2021,H59620210114JQUVIDYGH-1,15.00,SPECIAL FACILITIES-MATERIALS,OTHER BUSINESS SERVICES,GPC
WALSALL COUNCIL,http://opendatacommunities.org/id/metropolitan-district-council/walsall,31/03/2021,RESOURCES & TRANSFORMATION,ARTHUR BRETT CATER,12/01/2021,H59620210114JVJXCFPJO-1,15.84,CATERING - SCHOOLS-FOOD & DRINK SUPPLIES,MISCELLANEOUS FOOD STORES & CONVENIENCE STORES,GPC
WALSALL COUNCIL,http://opendatacommunities.org/id/metropolitan-district-council/walsall,31/03/2021,RESOURCES & TRANSFORMATION,ARTHUR BRETT CATER,12/01/2021,H59620210114KMEZMWFDB-1,29.01,CATERING - SCHOOLS-FOOD & DRINK SUPPLIES,MISCELLANEOUS FOOD STORES & CONVENIENCE STORES,GPC
WALSALL COUNCIL,http://opendatacommunities.org/id/metropolitan-district-council/walsall,31/03/2021,RESOURCES & TRANSFORMATION,CHARTERED INSTITUTE OF LE,12/01/2021,H59620210114KTSYTSTHV-1,364.00,LAW LIBRARY-SUBSCRIPTIONS,"SCHOOLS, BUSINESS AND SECRETARIAL",GPC
WALSALL COUNCIL,http://opendatacommunities.org/id/metropolitan-district-council/walsall,31/03/2021,CHILDRENS SERVICES,METRO WALSALL,12/01/2021,H59620210114KXSGERBYM-1,76.00,WALSALL CRISIS SUPPORT SCHEME-HOTEL ACCOMMODATION-EMPLOYEES,"HOTELS, MOTELS, RESORTS",GPC
WALSALL COUNCIL,http://opendatacommunities.org/id/metropolitan-district-council/walsall,31/03/2021,ECONOMY & ENVIRONMENT,WWW.CASTORSONLINE.CO.U,12/01/2021,H59620210114LJUYHNCIL-1,20.28,FLEET-MATERIALS,HARDWARE EQUIPMENT AND SUPPLIES,GPC
WALSALL COUNCIL,http://opendatacommunities.org/id/metropolitan-district-council/walsall,31/03/2021,RESOURCES & TRANSFORMATION,ARTHUR BRETT CATER,12/01/2021,H59620210114MDFLQMQLJ-1,13.64,CATERING - SCHOOLS-FOOD & DRINK SUPPLIES,MISCELLANEOUS FOOD STORES & CONVENIENCE STORES,GPC
WALSALL COUNCIL,http://opendatacommunities.org/id/metropolitan-district-council/walsall,31/03/2021,CHILDRENS SERVICES,AMAZON.CO.UK*MJ9GK8Y24 AM,12/01/2021,H59620210114MEWEMGEWN-1,70.00,LITERACY-MATERIALS,MISCELLANEOUS AND SPECIALTY RETAIL STORES,GPC
WALSALL COUNCIL,http://opendatacommunities.org/id/metropolitan-district-council/walsall,31/03/2021,CHILDRENS SERVICES,AMZNMKTPLACE,12/01/2021,H59620210114NLJANIVJU-1,37.22,OUTDOOR LEARNING-MATERIALS,MISCELLANEOUS AND SPECIALTY RETAIL STORES,GPC
WALSALL COUNCIL,http://opendatacommunities.org/id/metropolitan-district-council/walsall,31/03/2021,CHILDRENS SERVICES,AMAZON.CO.UK*MJ7CY5Y34,12/01/2021,H59620210114NOFQGDBUE-1,191.92,LITERACY-MATERIALS,OTHER DIRECT MARKETING-OTHER DIRECT MARKETERS,GPC
WALSALL COUNCIL,http://opendatacommunities.org/id/metropolitan-district-council/walsall,31/03/2021,RESOURCES & TRANSFORMATION,ARTHUR BRETT CATER,12/01/2021,H59620210114NPYTUYXVX-1,62.11,CATERING - SCHOOLS-FOOD & DRINK SUPPLIES,MISCELLANEOUS FOOD STORES & CONVENIENCE STORES,GPC
WALSALL COUNCIL,http://opendatacommunities.org/id/metropolitan-district-council/walsall,31/03/2021,CHILDRENS SERVICES,AMAZON.CO.UK*MJ8BG6Y24 AM,12/01/2021,H59620210114NVHXRFMDV-1,140.00,LITERACY-MATERIALS,MISCELLANEOUS AND SPECIALTY RETAIL STORES,GPC
WALSALL COUNCIL,http://opendatacommunities.org/id/metropolitan-district-council/walsall,31/03/2021,RESOURCES & TRANSFORMATION,ARTHUR BRETT CATER,12/01/2021,H59620210114OCDWGTKDT-1,20.00,CATERING - SCHOOLS-FOOD & DRINK SUPPLIES,MISCELLANEOUS FOOD STORES & CONVENIENCE STORES,GPC
WALSALL COUNCIL,http://opendatacommunities.org/id/metropolitan-district-council/walsall,31/03/2021,RESOURCES & TRANSFORMATION,ARTHUR BRETT CATER,12/01/2021,H59620210114OLFSUTPKQ-1,42.64,CATERING - SCHOOLS-FOOD & DRINK SUPPLIES,MISCELLANEOUS FOOD STORES & CONVENIENCE STORES,GPC
WALSALL COUNCIL,http://opendatacommunities.org/id/metropolitan-district-council/walsall,31/03/2021,CHILDRENS SERVICES,AMZNMKTPLACE,12/01/2021,H59620210114OOPJSTQVK-1,339.99,ADMINISTRATIVE SUPPLIES-PURCHASE OF FURNITURE & EQUIPM,MISCELLANEOUS AND SPECIALTY RETAIL STORES,GPC
WALSALL COUNCIL,http://opendatacommunities.org/id/metropolitan-district-council/walsall,31/03/2021,RESOURCES & TRANSFORMATION,AMZNMKTPLACE,12/01/2021,H59620210114OYPJRBAFY-1,24.81,CENTRAL OFFICE ACCOMMODATION-OPERATIONAL MAINTENANCE,MISCELLANEOUS AND SPECIALTY RETAIL STORES,GPC
WALSALL COUNCIL,http://opendatacommunities.org/id/metropolitan-district-council/walsall,31/03/2021,CHILDRENS SERVICES,AMZNMKTPLACE,12/01/2021,H59620210114PCEUCGCBN-1,29.97,ST FRANCIS OF ASSISI CATHOLIC -OPERATIONAL MAINTENANCE,MISCELLANEOUS AND SPECIALTY RETAIL STORES,GPC
WALSALL COUNCIL,http://opendatacommunities.org/id/metropolitan-district-council/walsall,31/03/2021,CHILDRENS SERVICES,AMAZON.CO.UK*MJ0RO6YB4,12/01/2021,H59620210114PNQUEPSYF-1,57.97,ADMINISTRATIVE SUPPLIES-MATERIALS,OTHER DIRECT MARKETING-OTHER DIRECT MARKETERS,GPC
WALSALL COUNCIL,http://opendatacommunities.org/id/metropolitan-district-council/walsall,31/03/2021,ECONOMY & ENVIRONMENT,BRITISH DYSLEXIA ASSOC,12/01/2021,H59620210114QENEVPRXJ-1,450.00,GREEN SPACE MANAGEMENT-PROFESSIONAL FEES & SERVICES,COMPUTER SOFTWARE STORES,GPC
WALSALL COUNCIL,http://opendatacommunities.org/id/metropolitan-district-council/walsall,31/03/2021,ECONOMY & ENVIRONMENT,AMZNMKTPLACE AMAZON.CO.UK,12/01/2021,H59620210114QOBWFJIBI-1,37.98,WALSALL ARENA AND ARTS CENTRE-CLEANING MATERIALS,MISCELLANEOUS AND SPECIALTY RETAIL STORES,GPC
WALSALL COUNCIL,http://opendatacommunities.org/id/metropolitan-district-council/walsall,31/03/2021,ECONOMY & ENVIRONMENT,WWW.BANNERUK.COM,12/01/2021,H59620210114RQEEQNSWB-1,14.75,RESOURCE MANAGEMENT-MATERIALS,"STATIONERY, OFFICE SUPPLIES AND WRITING PAPER",GPC
WALSALL COUNCIL,http://opendatacommunities.org/id/metropolitan-district-council/walsall,31/03/2021,CHILDRENS SERVICES,AMAZON.CO.UK*MJ32X2Y64,12/01/2021,H59620210114SACHZLONO-1,17.75,ADMINISTRATIVE SUPPLIES-MATERIALS,OTHER DIRECT MARKETING-OTHER DIRECT MARKETERS,GPC
WALSALL COUNCIL,http://opendatacommunities.org/id/metropolitan-district-council/walsall,31/03/2021,RESOURCES & TRANSFORMATION,ARTHUR BRETT CATER,12/01/2021,H59620210114SNPNIARPP-1,20.69,CATERING - SCHOOLS-FOOD & DRINK SUPPLIES,MISCELLANEOUS FOOD STORES & CONVENIENCE STORES,GPC
WALSALL COUNCIL,http://opendatacommunities.org/id/metropolitan-district-council/walsall,31/03/2021,RESOURCES & TRANSFORMATION,ARTHUR BRETT CATER,12/01/2021,H59620210114TGTMBMMON-1,196.95,CATERING - SCHOOLS-FOOD & DRINK SUPPLIES,MISCELLANEOUS FOOD STORES & CONVENIENCE STORES,GPC
WALSALL COUNCIL,http://opendatacommunities.org/id/metropolitan-district-council/walsall,31/03/2021,CHILDRENS SERVICES,AMAZON.CO.UK*MJ30X2YK4,12/01/2021,H59620210114TLMKSBBYK-1,45.07,LITERACY-MATERIALS,OTHER DIRECT MARKETING-OTHER DIRECT MARKETERS,GPC
WALSALL COUNCIL,http://opendatacommunities.org/id/metropolitan-district-council/walsall,31/03/2021,RESOURCES & TRANSFORMATION,ARTHUR BRETT CATER,12/01/2021,H59620210114TSTMVQUPC-1,17.50,CATERING - SCHOOLS-FOOD & DRINK SUPPLIES,MISCELLANEOUS FOOD STORES & CONVENIENCE STORES,GPC
WALSALL COUNCIL,http://opendatacommunities.org/id/metropolitan-district-council/walsall,31/03/2021,CHILDRENS SERVICES,AMZNMKTPLACE,12/01/2021,H59620210114UKXPFRPON-1,31.96,ST FRANCIS OF ASSISI CATHOLIC -OPERATIONAL MAINTENANCE,MISCELLANEOUS AND SPECIALTY RETAIL STORES,GPC
WALSALL COUNCIL,http://opendatacommunities.org/id/metropolitan-district-council/walsall,31/03/2021,CHILDRENS SERVICES,WALSALL COUNCIL,12/01/2021,H59620210114UZPMOJWDJ-1,42.22,MILLFIELD PRIMARY SCHOOL-FAIR FUNDING CORPORATE ELEMENT,GOVERNMENT SERVICES,GPC
WALSALL COUNCIL,http://opendatacommunities.org/id/metropolitan-district-council/walsall,31/03/2021,CHILDRENS SERVICES,AMZNMKTPLACE,12/01/2021,H59620210114VPFUPWNAP-1,339.99,ADMINISTRATIVE SUPPLIES-PURCHASE OF FURNITURE & EQUIPM,MISCELLANEOUS AND SPECIALTY RETAIL STORES,GPC
WALSALL COUNCIL,http://opendatacommunities.org/id/metropolitan-district-council/walsall,31/03/2021,CHILDRENS SERVICES,TESCO ONLINE,12/01/2021,H59620210114WBKPQMJRA-1,44.99,SAFEGUARDING & FAMILY SUPPORT-SECTION 1/17CHILD CARE ACT 198,MISCELLANEOUS AND SPECIALTY RETAIL STORES,GPC
WALSALL COUNCIL,http://opendatacommunities.org/id/metropolitan-district-council/walsall,31/03/2021,RESOURCES & TRANSFORMATION,ARTHUR BRETT CATER,12/01/2021,H59620210114WYJPKFMWQ-1,5.40,CATERING - SCHOOLS-FOOD & DRINK SUPPLIES,MISCELLANEOUS FOOD STORES & CONVENIENCE STORES,GPC
WALSALL COUNCIL,http://opendatacommunities.org/id/metropolitan-district-council/walsall,31/03/2021,ECONOMY & ENVIRONMENT,DVLA VEHICLE TAX,12/01/2021,H59620210114XIULFLVCQ-1,152.50,FLEET-LICENCES FOR VEHICLES,TAX PAYMENTS,GPC
WALSALL COUNCIL,http://opendatacommunities.org/id/metropolitan-district-council/walsall,31/03/2021,RESOURCES & TRANSFORMATION,WWW.CIPFA.ORG.UK/PFMCO,12/01/2021,H59620210114YAVOQHVVM-1,270.00,FINANCE-NEWSPAPERS/PERIODICALS/MAGAZIN,"ORGANIZATIONS, MEMBERSHIP",GPC
WALSALL COUNCIL,http://opendatacommunities.org/id/metropolitan-district-council/walsall,31/03/2021,ECONOMY & ENVIRONMENT,DVLA VEHICLE TAX,12/01/2021,H59620210114YCPHLKMSX-1,302.50,FLEET-LICENCES FOR VEHICLES,TAX PAYMENTS,GPC
WALSALL COUNCIL,http://opendatacommunities.org/id/metropolitan-district-council/walsall,31/03/2021,RESOURCES & TRANSFORMATION,JIB,12/01/2021,H59620210114YDMBICRXQ-1,20.00,YEI ESF FUNDING-PROFESSIONAL FEES & SERVICES,PROFESSIONAL SERVICES,GPC
WALSALL COUNCIL,http://opendatacommunities.org/id/metropolitan-district-council/walsall,31/03/2021,RESOURCES & TRANSFORMATION,JIB,12/01/2021,H59620210114YDMBICRXQ-2,20.00,YEI (IMPACT) PROGRAMME-PROFESSIONAL FEES & SERVICES,PROFESSIONAL SERVICES,GPC
WALSALL COUNCIL,http://opendatacommunities.org/id/metropolitan-district-council/walsall,31/03/2021,RESOURCES & TRANSFORMATION,CHARTERED INSTITUTE OF LE,12/01/2021,H59620210114YJRFSOXQY-1,132.00,LAW LIBRARY-SUBSCRIPTIONS,"SCHOOLS, BUSINESS AND SECRETARIAL",GPC
WALSALL COUNCIL,http://opendatacommunities.org/id/metropolitan-district-council/walsall,31/03/2021,RESOURCES & TRANSFORMATION,ARTHUR BRETT CATER,12/01/2021,H59620210114YPYXXNTOK-1,50.86,CATERING - SCHOOLS-FOOD & DRINK SUPPLIES,MISCELLANEOUS FOOD STORES & CONVENIENCE STORES,GPC
WALSALL COUNCIL,http://opendatacommunities.org/id/metropolitan-district-council/walsall,31/03/2021,RESOURCES & TRANSFORMATION,ARTHUR BRETT CATER,12/01/2021,H59620210114ZTTEIQYSQ-1,42.48,CATERING - SCHOOLS-FOOD & DRINK SUPPLIES,MISCELLANEOUS FOOD STORES & CONVENIENCE STORES,GPC
WALSALL COUNCIL,http://opendatacommunities.org/id/metropolitan-district-council/walsall,31/03/2021,CHILDRENS SERVICES,WWW.MYPOSTSHOP.COM,12/01/2021,H59620210115DTJVDUWLA-1,132.00,SAFEGUARDING & FAMILY SUPPORT-POSTAGES & COURIER SERVICES,"STATIONERY, OFFICE SUPPLIES AND WRITING PAPER",GPC
WALSALL COUNCIL,http://opendatacommunities.org/id/metropolitan-district-council/walsall,31/03/2021,CHILDRENS SERVICES,WWW.MYPOSTSHOP.COM,12/01/2021,H59620210115DTJVDUWLA-2,85.00,LOOKED AFTER CHILDRENS SOCIAL -POSTAGES & COURIER SERVICES,"STATIONERY, OFFICE SUPPLIES AND WRITING PAPER",GPC
WALSALL COUNCIL,http://opendatacommunities.org/id/metropolitan-district-council/walsall,31/03/2021,CHILDRENS SERVICES,WWW.MYPOSTSHOP.COM,12/01/2021,H59620210115DTJVDUWLA-3,3.49,CHILDREN'S COMMISSIONING-POSTAGES & COURIER SERVICES,"STATIONERY, OFFICE SUPPLIES AND WRITING PAPER",GPC
WALSALL COUNCIL,http://opendatacommunities.org/id/metropolitan-district-council/walsall,31/03/2021,ADULT SOCIAL CARE,B&M 419 - HS REEDSWOOD,13/01/2021,H59620210115AQBCPHVVV-1,49.79,EDUCATION MANAGEMENT - OUTBREA-PURCHASE OF FURNITURE & EQUIPM,MISCELLANEOUS GENERAL MERCHANDISE,GPC
WALSALL COUNCIL,http://opendatacommunities.org/id/metropolitan-district-council/walsall,31/03/2021,RESOURCES & TRANSFORMATION,BLAKEMORE FOODSERVICE,13/01/2021,H59620210115AVRQPXSMV-1,123.29,CATERING - SCHOOLS-FOOD & DRINK SUPPLIES,CATERERS,GPC
WALSALL COUNCIL,http://opendatacommunities.org/id/metropolitan-district-council/walsall,31/03/2021,ADULT SOCIAL CARE,HOME BARGAINS,13/01/2021,H59620210115BMNWZDCMA-1,3.59,EDUCATION MANAGEMENT - OUTBREA-PURCHASE OF FURNITURE & EQUIPM,HARDWARE STORES,GPC
WALSALL COUNCIL,http://opendatacommunities.org/id/metropolitan-district-council/walsall,31/03/2021,ADULT SOCIAL CARE,POUNDSTRETCHER 385,13/01/2021,H59620210115BRERXMBDY-1,2.99,EDUCATION MANAGEMENT - OUTBREA-PURCHASE OF FURNITURE & EQUIPM,VARIETY STORES,GPC
WALSALL COUNCIL,http://opendatacommunities.org/id/metropolitan-district-council/walsall,31/03/2021,ECONOMY & ENVIRONMENT,MIDLANDNEWS.COM,13/01/2021,H59620210115CCMVFDRMA-1,208.20,DEVELOPMENT MANAGEMENT-SUBSCRIPTIONS,NEWS DEALERS AND NEWSSTANDS,GPC
WALSALL COUNCIL,http://opendatacommunities.org/id/metropolitan-district-council/walsall,31/03/2021,CHILDRENS SERVICES,CS* TESCO STORES GC,13/01/2021,H59620210115CKLWGDZYZ-1,12.00,SPECIAL FACILITIES-MATERIALS,OTHER BUSINESS SERVICES,GPC
WALSALL COUNCIL,http://opendatacommunities.org/id/metropolitan-district-council/walsall,31/03/2021,RESOURCES & TRANSFORMATION,BLAKEMORE FOODSERVICE,13/01/2021,H59620210115COCCERNBT-1,88.44,CATERING - SCHOOLS-FOOD & DRINK SUPPLIES,CATERERS,GPC
WALSALL COUNCIL,http://opendatacommunities.org/id/metropolitan-district-council/walsall,31/03/2021,RESOURCES & TRANSFORMATION,NOBISCO LIMITED,13/01/2021,H59620210115CXQJKBPXK-1,111.34,CATERING - SCHOOLS-FOOD & DRINK SUPPLIES,OTHER INDUSTRIAL SUPPLIES,GPC
WALSALL COUNCIL,http://opendatacommunities.org/id/metropolitan-district-council/walsall,31/03/2021,CHILDRENS SERVICES,AMAZON.CO.UK*MV2D47OK4,13/01/2021,H59620210115DEPKXVUBO-1,27.25,OUTDOOR LEARNING-MATERIALS,OTHER DIRECT MARKETING-OTHER DIRECT MARKETERS,GPC
WALSALL COUNCIL,http://opendatacommunities.org/id/metropolitan-district-council/walsall,31/03/2021,CHILDRENS SERVICES,WILKO.COM,13/01/2021,H59620210115DOKUYFGSG-1,23.00,TRANSITION AND LEAVING CARE PL-CARE LEAVERS MTCE PAYMENTS,MISCELLANEOUS GENERAL MERCHANDISE,GPC
WALSALL COUNCIL,http://opendatacommunities.org/id/metropolitan-district-council/walsall,31/03/2021,CHILDRENS SERVICES,JOHN AIRD LTD,13/01/2021,H59620210115FQNFTKNEY-1,35.00,TRANSITION AND LEAVING CARE PL-CARE LEAVERS MTCE PAYMENTS,"DRAPERY, UPHOLSTERY, AND WINDOW COVERINGS STORES",GPC
WALSALL COUNCIL,http://opendatacommunities.org/id/metropolitan-district-council/walsall,31/03/2021,CHILDRENS SERVICES,WALSALL COUNCIL,13/01/2021,H59620210115GFJTRWJFH-1,41.00,TRANSITION AND LEAVING CARE PL-FEES & LICENCES,GOVERNMENT SERVICES,GPC
WALSALL COUNCIL,http://opendatacommunities.org/id/metropolitan-district-council/walsall,31/03/2021,CHILDRENS SERVICES,SCREWFIX DIRECT,13/01/2021,H59620210115HDGBTLSDY-1,39.99,CHUCKERY PRIMARY SCHOOL-OPERATIONAL MAINTENANCE,LUMBER & BUILDING MATERIALS STORES,GPC
WALSALL COUNCIL,http://opendatacommunities.org/id/metropolitan-district-council/walsall,31/03/2021,CHILDRENS SERVICES,SCREWFIX DIRECT,13/01/2021,H59620210115HDGBTLSDY-2,24.27,CHUCKERY PRIMARY SCHOOL-OPERATIONAL MAINTENANCE,LUMBER & BUILDING MATERIALS STORES,GPC
WALSALL COUNCIL,http://opendatacommunities.org/id/metropolitan-district-council/walsall,31/03/2021,CHILDRENS SERVICES,AMZNMKTPLACE,13/01/2021,H59620210115HNDHLPQOD-1,49.00,OUTDOOR LEARNING-MATERIALS,MISCELLANEOUS AND SPECIALTY RETAIL STORES,GPC
WALSALL COUNCIL,http://opendatacommunities.org/id/metropolitan-district-council/walsall,31/03/2021,ECONOMY & ENVIRONMENT,POST OFFICE COUNTER,13/01/2021,H59620210115HXHIAELBV-1,1.98,DARLASTON LEISURE CENTRE-MATERIALS,POSTAL SERVICES - GOVERNMENT ONLY,GPC
WALSALL COUNCIL,http://opendatacommunities.org/id/metropolitan-district-council/walsall,31/03/2021,ECONOMY & ENVIRONMENT,POST OFFICE COUNTER,13/01/2021,H59620210115HXHIAELBV-2,1.98,OAK PARK-MATERIALS,POSTAL SERVICES - GOVERNMENT ONLY,GPC
WALSALL COUNCIL,http://opendatacommunities.org/id/metropolitan-district-council/walsall,31/03/2021,ECONOMY & ENVIRONMENT,POST OFFICE COUNTER,13/01/2021,H59620210115HXHIAELBV-3,1.98,BLOXWICH LEISURE CENTRE-MATERIALS,POSTAL SERVICES - GOVERNMENT ONLY,GPC
WALSALL COUNCIL,http://opendatacommunities.org/id/metropolitan-district-council/walsall,31/03/2021,ECONOMY & ENVIRONMENT,POST OFFICE COUNTER,13/01/2021,H59620210115HXHIAELBV-4,1.98,WALSALL GALA CENTRE-MATERIALS,POSTAL SERVICES - GOVERNMENT ONLY,GPC
WALSALL COUNCIL,http://opendatacommunities.org/id/metropolitan-district-council/walsall,31/03/2021,ECONOMY & ENVIRONMENT,BLOXWICH FENCING LIMIT,13/01/2021,H59620210115IMCBYYHLE-1,30.00,INFRASTRUCTURE MAINTENANCE-MATERIALS,OTHER CONSTRUCTION MATERIALS,GPC
WALSALL COUNCIL,http://opendatacommunities.org/id/metropolitan-district-council/walsall,31/03/2021,ADULT SOCIAL CARE,B&M 078 - WALSALL,13/01/2021,H59620210115MDMFLIULR-1,9.00,EDUCATION MANAGEMENT - OUTBREA-PURCHASE OF FURNITURE & EQUIPM,MISCELLANEOUS GENERAL MERCHANDISE,GPC
WALSALL COUNCIL,http://opendatacommunities.org/id/metropolitan-district-council/walsall,31/03/2021,ADULT SOCIAL CARE,ASDA,13/01/2021,H59620210115MLDMOCNBF-1,54.00,EDUCATION MANAGEMENT - OUTBREA-PURCHASE OF FURNITURE & EQUIPM,GROCERY STORES AND SUPERMARKETS,GPC
WALSALL COUNCIL,http://opendatacommunities.org/id/metropolitan-district-council/walsall,31/03/2021,CHILDRENS SERVICES,O2,13/01/2021,H59620210115MWSUENKKB-1,33.80,ADMIN-MOBILE PHONES,TELECOMMUNICATION SERVICES,GPC
WALSALL COUNCIL,http://opendatacommunities.org/id/metropolitan-district-council/walsall,31/03/2021,ADULT SOCIAL CARE,POUNDLAND LTD 1427,13/01/2021,H59620210115NALRTULDV-1,46.00,EDUCATION MANAGEMENT - OUTBREA-STATIONERY & GENERAL OFFICE SU,DISCOUNT STORES,GPC
WALSALL COUNCIL,http://opendatacommunities.org/id/metropolitan-district-council/walsall,31/03/2021,RESOURCES & TRANSFORMATION,BLAKEMORE FOODSERVICE,13/01/2021,H59620210115NXVVEVWOX-1,118.23,CATERING - SCHOOLS-FOOD & DRINK SUPPLIES,CATERERS,GPC
WALSALL COUNCIL,http://opendatacommunities.org/id/metropolitan-district-council/walsall,31/03/2021,RESOURCES & TRANSFORMATION,NOBISCO LIMITED,13/01/2021,H59620210115OLAMUJNGA-1,67.80,CATERING - SCHOOLS-FOOD & DRINK SUPPLIES,OTHER INDUSTRIAL SUPPLIES,GPC
WALSALL COUNCIL,http://opendatacommunities.org/id/metropolitan-district-council/walsall,31/03/2021,RESOURCES & TRANSFORMATION,POST OFFICE COUNTER,13/01/2021,H59620210115OSFJNOKZV-1,3.43,YEI ESF FUNDING-POSTAGES & COURIER SERVICES,POSTAL SERVICES - GOVERNMENT ONLY,GPC
WALSALL COUNCIL,http://opendatacommunities.org/id/metropolitan-district-council/walsall,31/03/2021,RESOURCES & TRANSFORMATION,POST OFFICE COUNTER,13/01/2021,H59620210115OSFJNOKZV-2,3.42,YEI (IMPACT) PROGRAMME-POSTAGES & COURIER SERVICES,POSTAL SERVICES - GOVERNMENT ONLY,GPC
WALSALL COUNCIL,http://opendatacommunities.org/id/metropolitan-district-council/walsall,31/03/2021,RESOURCES & TRANSFORMATION,WALSALL COUNCIL,13/01/2021,H59620210115OYBLOJCUY-1,17.00,RES-WALSALL WORKS-FEES & LICENCES,GOVERNMENT SERVICES,GPC
WALSALL COUNCIL,http://opendatacommunities.org/id/metropolitan-district-council/walsall,31/03/2021,CHILDRENS SERVICES,NISA LOCAL,13/01/2021,H59620210115PHDIIJFRC-1,9.68,REDRUTH ROAD-FOOD & DRINK SUPPLIES,MISCELLANEOUS FOOD STORES & CONVENIENCE STORES,GPC
WALSALL COUNCIL,http://opendatacommunities.org/id/metropolitan-district-council/walsall,31/03/2021,CHILDRENS SERVICES,WWW.TIMSTAR.CO.UK,13/01/2021,H59620210115POHKTJHSE-1,-68.34,SCIENCE-MATERIALS,DENTAL/LABORATORY/MEDICAL EQUIPMENT & SUPPLIES,GPC
WALSALL COUNCIL,http://opendatacommunities.org/id/metropolitan-district-council/walsall,31/03/2021,ADULT SOCIAL CARE,WILKO RETAIL LIMITED,13/01/2021,H59620210115PQJHFPRIP-1,360.00,EDUCATION MANAGEMENT - OUTBREA-PURCHASE OF FURNITURE & EQUIPM,MISCELLANEOUS GENERAL MERCHANDISE,GPC
WALSALL COUNCIL,http://opendatacommunities.org/id/metropolitan-district-council/walsall,31/03/2021,ECONOMY & ENVIRONMENT,AMAZON.CO.UK*MV0SY3C54,13/01/2021,H59620210115PRRXGLIOX-1,27.28,LIBRARY OPERATIONS - MOBILE SE-STATIONERY & GENERAL OFFICE SU,OTHER DIRECT MARKETING-OTHER DIRECT MARKETERS,GPC
WALSALL COUNCIL,http://opendatacommunities.org/id/metropolitan-district-council/walsall,31/03/2021,CHILDRENS SERVICES,ASDA SUPERSTORE,13/01/2021,H59620210115QMWBDYDPI-1,25.00,YOUNG PERSONS HOMELESS SERVICE-PURCHASE OF FURNITURE & EQUIPM,GROCERY STORES AND SUPERMARKETS,GPC
WALSALL COUNCIL,http://opendatacommunities.org/id/metropolitan-district-council/walsall,31/03/2021,RESOURCES & TRANSFORMATION,NOBISCO LIMITED,13/01/2021,H59620210115SRVNOCAQK-1,85.44,CATERING - SCHOOLS-FOOD & DRINK SUPPLIES,OTHER INDUSTRIAL SUPPLIES,GPC
WALSALL COUNCIL,http://opendatacommunities.org/id/metropolitan-district-council/walsall,31/03/2021,ADULT SOCIAL CARE,AMAZON.CO.UK*MV2WJ6C44,13/01/2021,H59620210115THCOPTKVQ-1,18.80,EDUCATION MANAGEMENT - OUTBREA-STATIONERY & GENERAL OFFICE SU,OTHER DIRECT MARKETING-OTHER DIRECT MARKETERS,GPC
WALSALL COUNCIL,http://opendatacommunities.org/id/metropolitan-district-council/walsall,31/03/2021,RESOURCES & TRANSFORMATION,AMAZON.CO.UK*MV2WJ6C44,13/01/2021,H59620210115THCOPTKVQ-2,10.50,CATERING - MANAGEMENT-STATIONERY & GENERAL OFFICE SU,OTHER DIRECT MARKETING-OTHER DIRECT MARKETERS,GPC
WALSALL COUNCIL,http://opendatacommunities.org/id/metropolitan-district-council/walsall,31/03/2021,CHILDRENS SERVICES,ADOBE ACROPRO SUBS,13/01/2021,H59620210115TSRTPDEPN-1,17.18,ADMINISTRATIVE SUPPLIES-STATIONERY & GENERAL OFFICE SU,COMPUTER SOFTWARE STORES,GPC
WALSALL COUNCIL,http://opendatacommunities.org/id/metropolitan-district-council/walsall,31/03/2021,ADULT SOCIAL CARE,AMZNMKTPLACE,13/01/2021,H59620210115TTAIDBAEO-1,240.69,EDUCATION MANAGEMENT - OUTBREA-PURCHASE OF FURNITURE & EQUIPM,MISCELLANEOUS AND SPECIALTY RETAIL STORES,GPC
WALSALL COUNCIL,http://opendatacommunities.org/id/metropolitan-district-council/walsall,31/03/2021,CHILDRENS SERVICES,AMZNMKTPLACE,13/01/2021,H59620210115UACFCCPFD-1,14.09,SOCIAL SPACES-MATERIALS,MISCELLANEOUS AND SPECIALTY RETAIL STORES,GPC
WALSALL COUNCIL,http://opendatacommunities.org/id/metropolitan-district-council/walsall,31/03/2021,ADULT SOCIAL CARE,POUNDLAND LTD,13/01/2021,H59620210115UCZISFNPP-1,8.00,EDUCATION MANAGEMENT - OUTBREA-STATIONERY & GENERAL OFFICE SU,DISCOUNT STORES,GPC
WALSALL COUNCIL,http://opendatacommunities.org/id/metropolitan-district-council/walsall,31/03/2021,CHILDRENS SERVICES,B&M 078 - WALSALL,13/01/2021,H59620210115UOQTPFKKV-1,17.94,"43A HILTON ROAD, WILLENHALL-PURCHASE OF FURNITURE & EQUIPM",MISCELLANEOUS GENERAL MERCHANDISE,GPC
WALSALL COUNCIL,http://opendatacommunities.org/id/metropolitan-district-council/walsall,31/03/2021,CHILDRENS SERVICES,WONDE LTD,13/01/2021,H59620210115UUCBBOYTL-1,1130.00,LEIGHSWOOD PRIMARY SCHOOL-LEGAL FEES-PRIV CONTRACTOR FEE,DIGITAL GOODS - APPLICATIONS (EXCLUDES GAMES),GPC
WALSALL COUNCIL,http://opendatacommunities.org/id/metropolitan-district-council/walsall,31/03/2021,RESOURCES & TRANSFORMATION,BLAKEMORE FOODSERVICE,13/01/2021,H59620210115XFHIQMKRY-1,162.01,CATERING - SCHOOLS-FOOD & DRINK SUPPLIES,CATERERS,GPC
WALSALL COUNCIL,http://opendatacommunities.org/id/metropolitan-district-council/walsall,31/03/2021,CHILDRENS SERVICES,POST OFFICE COUNTER,13/01/2021,H59620210115XGHZJWCUZ-1,7.08,FAMILY PLACEMENTS-POSTAGES & COURIER SERVICES,POSTAL SERVICES - GOVERNMENT ONLY,GPC
WALSALL COUNCIL,http://opendatacommunities.org/id/metropolitan-district-council/walsall,31/03/2021,RESOURCES & TRANSFORMATION,BLAKEMORE FOODSERVICE,13/01/2021,H59620210115XWPXGKVAQ-1,208.03,CATERING - SCHOOLS-FOOD & DRINK SUPPLIES,CATERERS,GPC
WALSALL COUNCIL,http://opendatacommunities.org/id/metropolitan-district-council/walsall,31/03/2021,ECONOMY & ENVIRONMENT,TESCO STORES 2214,13/01/2021,H59620210115XYPPHUWYO-1,11.24,LIBRARY OPERATIONS - MOBILE SE-FOOD & DRINK SUPPLIES,GROCERY STORES AND SUPERMARKETS,GPC
WALSALL COUNCIL,http://opendatacommunities.org/id/metropolitan-district-council/walsall,31/03/2021,RESOURCES & TRANSFORMATION,BLAKEMORE FOODSERVICE,13/01/2021,H59620210115YOJFXIYOV-1,463.71,CATERING - SCHOOLS-FOOD & DRINK SUPPLIES,CATERERS,GPC
WALSALL COUNCIL,http://opendatacommunities.org/id/metropolitan-district-council/walsall,31/03/2021,RESOURCES & TRANSFORMATION,BLAKEMORE FOODSERVICE,13/01/2021,H59620210115YOJFXIYOV-2,100.03,CATERING - SCHOOLS-FOOD & DRINK SUPPLIES,CATERERS,GPC
WALSALL COUNCIL,http://opendatacommunities.org/id/metropolitan-district-council/walsall,31/03/2021,RESOURCES & TRANSFORMATION,BLAKEMORE FOODSERVICE,13/01/2021,H59620210115YQKNVJPPV-1,118.48,CATERING - SCHOOLS-FOOD & DRINK SUPPLIES,CATERERS,GPC
WALSALL COUNCIL,http://opendatacommunities.org/id/metropolitan-district-council/walsall,31/03/2021,CHILDRENS SERVICES,AMZNMKTPLACE AMAZON.CO.UK,13/01/2021,H59620210116ETZLDXCKQ-1,78.00,MATHS-MATERIALS,MISCELLANEOUS AND SPECIALTY RETAIL STORES,GPC
WALSALL COUNCIL,http://opendatacommunities.org/id/metropolitan-district-council/walsall,31/03/2021,CHILDRENS SERVICES,HIGHSTREETVOUCHERS,14/01/2021,H59620210116AQRUNQGPF-1,8.30,SPECIAL FACILITIES-MATERIALS,"ASSOCIATIONS-CIVIC, SOCIAL, AND FRATERNAL",GPC
WALSALL COUNCIL,http://opendatacommunities.org/id/metropolitan-district-council/walsall,31/03/2021,CHILDRENS SERVICES,HIGHSTREETVOUCHERS,14/01/2021,H59620210116AQRUNQGPF-2,885.00,SPECIAL FACILITIES-MATERIALS,"ASSOCIATIONS-CIVIC, SOCIAL, AND FRATERNAL",GPC
WALSALL COUNCIL,http://opendatacommunities.org/id/metropolitan-district-council/walsall,31/03/2021,CHILDRENS SERVICES,HIGHSTREETVOUCHERS,14/01/2021,H59620210116BCMLRTRQY-1,908.30,SPECIAL FACILITIES -  BEFORE/A-MATERIALS,"ASSOCIATIONS-CIVIC, SOCIAL, AND FRATERNAL",GPC
WALSALL COUNCIL,http://opendatacommunities.org/id/metropolitan-district-council/walsall,31/03/2021,ECONOMY & ENVIRONMENT,WALSALL COUNCIL,14/01/2021,H59620210116BQQEKPTDF-1,11.00,LICENSING ADMINISTRATION-FEES & LICENCES,GOVERNMENT SERVICES,GPC
WALSALL COUNCIL,http://opendatacommunities.org/id/metropolitan-district-council/walsall,31/03/2021,CHILDRENS SERVICES,METRO WALSALL,14/01/2021,H59620210116CHVHXXPXN-1,38.00,WALSALL CRISIS SUPPORT SCHEME-BED & BREAKFAST PAYMENTS,"HOTELS, MOTELS, RESORTS",GPC
WALSALL COUNCIL,http://opendatacommunities.org/id/metropolitan-district-council/walsall,31/03/2021,RESOURCES & TRANSFORMATION,MAILCHIMP *MONTHLY,14/01/2021,H59620210116CVPAVLGSN-1,463.68,APPLICATIONS-COMPUTER EQUIPMENT,DIRECT MARKETING CONTINUITY SUBSCRIPTION MERCHANTS,GPC
WALSALL COUNCIL,http://opendatacommunities.org/id/metropolitan-district-council/walsall,31/03/2021,CHILDRENS SERVICES,METRO WALSALL,14/01/2021,H59620210116EHHDIRGQY-1,76.00,ACCOMMODATION SERVICES MANAGEM-BED & BREAKFAST PAYMENTS,"HOTELS, MOTELS, RESORTS",GPC
WALSALL COUNCIL,http://opendatacommunities.org/id/metropolitan-district-council/walsall,31/03/2021,CHILDRENS SERVICES,AMZNMKTPLACE,14/01/2021,H59620210116FVFXCPZJU-1,9.99,CONTACT SESSIONAL STAFF-STATIONERY & GENERAL OFFICE SU,MISCELLANEOUS AND SPECIALTY RETAIL STORES,GPC
WALSALL COUNCIL,http://opendatacommunities.org/id/metropolitan-district-council/walsall,31/03/2021,RESOURCES & TRANSFORMATION,BLOXWICH HARDWARE,14/01/2021,H59620210116GHGVCLXCR-1,31.45,CATERING - MANAGEMENT-MATERIALS,HARDWARE STORES,GPC
WALSALL COUNCIL,http://opendatacommunities.org/id/metropolitan-district-council/walsall,31/03/2021,ECONOMY & ENVIRONMENT,BOC GASES,14/01/2021,H59620210116GLWZUTIGU-1,72.00,INFRASTRUCTURE MAINTENANCE-PURCHASE OF FURNITURE & EQUIPM,HOUSEHOLD APPLIANCE STORES,GPC
WALSALL COUNCIL,http://opendatacommunities.org/id/metropolitan-district-council/walsall,31/03/2021,CHILDRENS SERVICES,AMZNMKTPLACE,14/01/2021,H59620210116GSNSGRGOT-1,22.70,CONTACT SESSIONAL STAFF-STATIONERY & GENERAL OFFICE SU,MISCELLANEOUS AND SPECIALTY RETAIL STORES,GPC
WALSALL COUNCIL,http://opendatacommunities.org/id/metropolitan-district-council/walsall,31/03/2021,RESOURCES & TRANSFORMATION,NOBISCO LIMITED,14/01/2021,H59620210116HESAAOTGR-1,94.28,CATERING - SCHOOLS-FOOD & DRINK SUPPLIES,OTHER INDUSTRIAL SUPPLIES,GPC
WALSALL COUNCIL,http://opendatacommunities.org/id/metropolitan-district-council/walsall,31/03/2021,CHILDRENS SERVICES,POST OFFICE COUNTER,14/01/2021,H59620210116HSRHWQWBD-1,3.65,LOOKED AFTER CHILDRENS SOCIAL -POSTAGES & COURIER SERVICES,POSTAL SERVICES - GOVERNMENT ONLY,GPC
WALSALL COUNCIL,http://opendatacommunities.org/id/metropolitan-district-council/walsall,31/03/2021,ECONOMY & ENVIRONMENT,WWW.COVENTRY.GOV.UK,14/01/2021,H59620210116IRYRFRMGE-1,192.31,MUSIC HUB FOREST ARTS-PROFESSIONAL FEES & SERVICES,OTHER RECREATION SERVICES,GPC
WALSALL COUNCIL,http://opendatacommunities.org/id/metropolitan-district-council/walsall,31/03/2021,CHILDRENS SERVICES,ASDA SUPERSTORE,14/01/2021,H59620210116IYOIDKNFU-1,3.67,REDRUTH ROAD-FOOD & DRINK SUPPLIES,GROCERY STORES AND SUPERMARKETS,GPC
WALSALL COUNCIL,http://opendatacommunities.org/id/metropolitan-district-council/walsall,31/03/2021,CHILDRENS SERVICES,ASDA SUPERSTORE,14/01/2021,H59620210116IYOIDKNFU-2,11.43,REDRUTH ROAD-FOOD & DRINK SUPPLIES,GROCERY STORES AND SUPERMARKETS,GPC
WALSALL COUNCIL,http://opendatacommunities.org/id/metropolitan-district-council/walsall,31/03/2021,CHILDRENS SERVICES,WWW.ADT.CO.UK,14/01/2021,H59620210116IZXBISVLF-1,34.20,"43A HILTON ROAD, WILLENHALL-OPERATIONAL MAINTENANCE","DETECTIVE AGENCIES, PROTECTIVE AGENCIES, SECURITY ",GPC
WALSALL COUNCIL,http://opendatacommunities.org/id/metropolitan-district-council/walsall,31/03/2021,CHILDRENS SERVICES,BIRMINGHAM REGISTER,14/01/2021,H59620210116JTZXXIVIV-1,14.50,LOOKED AFTER CHILDRENS SOCIAL -FEES & LICENCES,GOVERNMENT SERVICES,GPC
WALSALL COUNCIL,http://opendatacommunities.org/id/metropolitan-district-council/walsall,31/03/2021,CHILDRENS SERVICES,ROYAL MAIL GROUP LTD,14/01/2021,H59620210116KHXMXXJFU-1,10.98,ADMINISTRATIVE SUPPLIES-POSTAGES & COURIER SERVICES,POSTAL SERVICES - GOVERNMENT ONLY,GPC
WALSALL COUNCIL,http://opendatacommunities.org/id/metropolitan-district-council/walsall,31/03/2021,CHILDRENS SERVICES,AMZNMKTPLACE,14/01/2021,H59620210116KSTFHOSGV-1,24.38,E19-MATERIALS,MISCELLANEOUS AND SPECIALTY RETAIL STORES,GPC
WALSALL COUNCIL,http://opendatacommunities.org/id/metropolitan-district-council/walsall,31/03/2021,CHILDRENS SERVICES,HIGHSTREETVOUCHERS,14/01/2021,H59620210116LMFDXKRDY-1,306.50,SPECIAL FACILITIES -  BEFORE/A-MATERIALS,"ASSOCIATIONS-CIVIC, SOCIAL, AND FRATERNAL",GPC
WALSALL COUNCIL,http://opendatacommunities.org/id/metropolitan-district-council/walsall,31/03/2021,CHILDRENS SERVICES,WWW.UTILITA.CO.UK,14/01/2021,H59620210116MFCYPRTZW-1,35.00,ACCOMMODATION SERVICES MANAGEM-OTHER ENERGY COSTS,"UTILITIES - ELECTRIC, GAS, SANITARY & WATER",GPC
WALSALL COUNCIL,http://opendatacommunities.org/id/metropolitan-district-council/walsall,31/03/2021,RESOURCES & TRANSFORMATION,WWW.BANNERUK.COM,14/01/2021,H59620210116MHUXNNGMB-1,4089.60,CATERING - MANAGEMENT-MATERIALS,"STATIONERY, OFFICE SUPPLIES AND WRITING PAPER",GPC
WALSALL COUNCIL,http://opendatacommunities.org/id/metropolitan-district-council/walsall,31/03/2021,RESOURCES & TRANSFORMATION,NOBISCO LIMITED,14/01/2021,H59620210116NVYNHIOUN-1,23.48,CATERING - SCHOOLS-FOOD & DRINK SUPPLIES,OTHER INDUSTRIAL SUPPLIES,GPC
WALSALL COUNCIL,http://opendatacommunities.org/id/metropolitan-district-council/walsall,31/03/2021,CHILDRENS SERVICES,WWW.PARENTMAIL.CO.,14/01/2021,H59620210116NXWRGMYOI-1,25.00,REDRUTH ROAD-FOOD & DRINK SUPPLIES,OTHER SCHOOLS AND EDUCATIONAL SERVICES,GPC
WALSALL COUNCIL,http://opendatacommunities.org/id/metropolitan-district-council/walsall,31/03/2021,ECONOMY & ENVIRONMENT,L & S ENGINEERS LTD,14/01/2021,H59620210116PWERXUKXC-1,19.48,INFRASTRUCTURE MAINTENANCE-PURCHASE OF FURNITURE & EQUIPM,HARDWARE STORES,GPC
WALSALL COUNCIL,http://opendatacommunities.org/id/metropolitan-district-council/walsall,31/03/2021,CHILDRENS SERVICES,WWW.PARTYDELIGHTS.CO.U,14/01/2021,H59620210116QOHHPHVIK-1,-64.68,CURRICULUM ENRICHMENT-STATIONERY & GENERAL OFFICE SU,"CARD, GIFT, NOVELTY, AND SOUVENIR SHOPS",GPC
WALSALL COUNCIL,http://opendatacommunities.org/id/metropolitan-district-council/walsall,31/03/2021,CHILDRENS SERVICES,ASDA SUPERSTORE,14/01/2021,H59620210116QTFSDRGFB-1,135.00,SPECIAL FACILITIES-MATERIALS,GROCERY STORES AND SUPERMARKETS,GPC
WALSALL COUNCIL,http://opendatacommunities.org/id/metropolitan-district-council/walsall,31/03/2021,CHILDRENS SERVICES,WALSALL COUNCIL,14/01/2021,H59620210116RBMCRJKOD-1,41.00,SAFEGUARDING & FAMILY SUPPORT-FEES & LICENCES,GOVERNMENT SERVICES,GPC
WALSALL COUNCIL,http://opendatacommunities.org/id/metropolitan-district-council/walsall,31/03/2021,CHILDRENS SERVICES,AMZNMKTPLACE,14/01/2021,H59620210116RIDKMJNQX-1,34.95,CONTACT SESSIONAL STAFF-STATIONERY & GENERAL OFFICE SU,MISCELLANEOUS AND SPECIALTY RETAIL STORES,GPC
WALSALL COUNCIL,http://opendatacommunities.org/id/metropolitan-district-council/walsall,31/03/2021,CHILDRENS SERVICES,AMZNMKTPLACE,14/01/2021,H59620210116TEDTYHDGZ-1,79.95,CONTACT SESSIONAL STAFF-STATIONERY & GENERAL OFFICE SU,MISCELLANEOUS AND SPECIALTY RETAIL STORES,GPC
WALSALL COUNCIL,http://opendatacommunities.org/id/metropolitan-district-council/walsall,31/03/2021,CHILDRENS SERVICES,ASDA SUPERSTORE,14/01/2021,H59620210116TKTMEEBWR-1,8.00,REDRUTH ROAD-CLEANING MATERIALS,GROCERY STORES AND SUPERMARKETS,GPC
WALSALL COUNCIL,http://opendatacommunities.org/id/metropolitan-district-council/walsall,31/03/2021,CHILDRENS SERVICES,STAFFORDSHIRE COUNTY C,14/01/2021,H59620210116TORVNQFRL-1,11.00,LOOKED AFTER CHILDRENS SOCIAL -FEES & LICENCES,GOVERNMENT SERVICES,GPC
WALSALL COUNCIL,http://opendatacommunities.org/id/metropolitan-district-council/walsall,31/03/2021,RESOURCES & TRANSFORMATION,NOBISCO LIMITED,14/01/2021,H59620210116UOIVMLDHH-1,66.58,CATERING - SCHOOLS-FOOD & DRINK SUPPLIES,OTHER INDUSTRIAL SUPPLIES,GPC
WALSALL COUNCIL,http://opendatacommunities.org/id/metropolitan-district-council/walsall,31/03/2021,CHILDRENS SERVICES,ROYAL MAIL ONLINE SHOP,14/01/2021,H59620210116UTJXATGJJ-1,62.28,ADMINISTRATIVE SUPPLIES-POSTAGES & COURIER SERVICES,POSTAL SERVICES - GOVERNMENT ONLY,GPC
WALSALL COUNCIL,http://opendatacommunities.org/id/metropolitan-district-council/walsall,31/03/2021,ADULT SOCIAL CARE,POST OFFICE COUNTER,14/01/2021,H59620210116UYIWUUVFA-1,3.06,GOSCOTE-POSTAGES & COURIER SERVICES,POSTAL SERVICES - GOVERNMENT ONLY,GPC
WALSALL COUNCIL,http://opendatacommunities.org/id/metropolitan-district-council/walsall,31/03/2021,CHILDRENS SERVICES,AMZNMKTPLACE,14/01/2021,H59620210116VEKBITVFT-1,15.98,ADMINISTRATIVE SUPPLIES-MATERIALS,MISCELLANEOUS AND SPECIALTY RETAIL STORES,GPC
WALSALL COUNCIL,http://opendatacommunities.org/id/metropolitan-district-council/walsall,31/03/2021,ECONOMY & ENVIRONMENT,AMZNMKTPLACE,14/01/2021,H59620210116VHYHJDCCV-1,6.99,PREVENT GRANT-STATIONERY & GENERAL OFFICE SU,MISCELLANEOUS AND SPECIALTY RETAIL STORES,GPC
WALSALL COUNCIL,http://opendatacommunities.org/id/metropolitan-district-council/walsall,31/03/2021,CHILDRENS SERVICES,AMZNMKTPLACE,14/01/2021,H59620210116VXCQNCSFX-1,13.46,CONTACT SESSIONAL STAFF-STATIONERY & GENERAL OFFICE SU,MISCELLANEOUS AND SPECIALTY RETAIL STORES,GPC
WALSALL COUNCIL,http://opendatacommunities.org/id/metropolitan-district-council/walsall,31/03/2021,RESOURCES & TRANSFORMATION,AMZ*SPICOM,14/01/2021,H59620210116WAELYSBLR-1,-15.98,DARLASTON TOWN HALL-MATERIALS,MISCELLANEOUS AND SPECIALTY RETAIL STORES,GPC
WALSALL COUNCIL,http://opendatacommunities.org/id/metropolitan-district-council/walsall,31/03/2021,CHILDRENS SERVICES,HIGHSTREETVOUCHERS,14/01/2021,H59620210116XHGKPQKZN-1,608.30,SPECIAL FACILITIES -  BEFORE/A-MATERIALS,"ASSOCIATIONS-CIVIC, SOCIAL, AND FRATERNAL",GPC
WALSALL COUNCIL,http://opendatacommunities.org/id/metropolitan-district-council/walsall,31/03/2021,CHILDRENS SERVICES,AMAZON.CO.UK*MV8PO7FX4,14/01/2021,H59620210116XPLUHGWCY-1,31.41,CONTACT SESSIONAL STAFF-PURCHASE OF FURNITURE & EQUIPM,OTHER DIRECT MARKETING-OTHER DIRECT MARKETERS,GPC
WALSALL COUNCIL,http://opendatacommunities.org/id/metropolitan-district-council/walsall,31/03/2021,RESOURCES & TRANSFORMATION,AMZNMKTPLACE AMAZON.CO.UK,14/01/2021,H59620210116XPWQFWGOL-1,-30.16,CATERING - SCHOOLS-FOOD & DRINK SUPPLIES,MISCELLANEOUS AND SPECIALTY RETAIL STORES,GPC
WALSALL COUNCIL,http://opendatacommunities.org/id/metropolitan-district-council/walsall,31/03/2021,CHILDRENS SERVICES,AMZNMKTPLACE,14/01/2021,H59620210116XPZPGPRUV-1,3.99,ACCOMMODATION SERVICES MANAGEM-STATIONERY & GENERAL OFFICE SU,MISCELLANEOUS AND SPECIALTY RETAIL STORES,GPC
WALSALL COUNCIL,http://opendatacommunities.org/id/metropolitan-district-council/walsall,31/03/2021,CHILDRENS SERVICES,CURRYS ONLINE,14/01/2021,H59620210116YOOBTFDXZ-1,478.99,VIRTUAL SCHOOL - CENTRAL PUPIL-COMPUTER EQUIPMENT,ELECTRONIC SALES,GPC
WALSALL COUNCIL,http://opendatacommunities.org/id/metropolitan-district-council/walsall,31/03/2021,CHILDRENS SERVICES,AMZNMKTPLACE,14/01/2021,H59620210116YYKSBYOSS-1,24.98,CONTACT SESSIONAL STAFF-STATIONERY & GENERAL OFFICE SU,MISCELLANEOUS AND SPECIALTY RETAIL STORES,GPC
WALSALL COUNCIL,http://opendatacommunities.org/id/metropolitan-district-council/walsall,31/03/2021,CHILDRENS SERVICES,AMZNMKTPLACE AMAZON.CO.UK,14/01/2021,H59620210119FCALIQXTN-1,12.99,ICT LEARNING RESOURCES-MATERIALS,MISCELLANEOUS AND SPECIALTY RETAIL STORES,GPC
WALSALL COUNCIL,http://opendatacommunities.org/id/metropolitan-district-council/walsall,31/03/2021,CHILDRENS SERVICES,SKY SUBSCRIPTION,14/01/2021,H59620210119FQQWBLQOI-1,58.99,"43A HILTON ROAD, WILLENHALL-RESIDENTS PERSONAL EXPENSES-AL","CABLE, SATELLITE & OTHER PAY TV AND RADIO SERVICES",GPC
WALSALL COUNCIL,http://opendatacommunities.org/id/metropolitan-district-council/walsall,31/03/2021,CHILDRENS SERVICES,GLOUCESTERSHIRE.GOV.UK,14/01/2021,H59620210119MTFTDTLOG-1,11.00,LOOKED AFTER CHILDRENS SOCIAL -FEES & LICENCES,GOVERNMENT SERVICES,GPC
WALSALL COUNCIL,http://opendatacommunities.org/id/metropolitan-district-council/walsall,31/03/2021,RESOURCES & TRANSFORMATION,AMAZON.CO.UK*MV8F454T4 AM,14/01/2021,H59620210119YNDTRGQVE-1,106.39,LAW LIBRARY-STATIONERY & GENERAL OFFICE SU,MISCELLANEOUS AND SPECIALTY RETAIL STORES,GPC
WALSALL COUNCIL,http://opendatacommunities.org/id/metropolitan-district-council/walsall,31/03/2021,CHILDRENS SERVICES,ASDA SUPERSTORE,15/01/2021,H59620210119ABFWJESOS-1,110.00,SPECIAL FACILITIES-MATERIALS,GROCERY STORES AND SUPERMARKETS,GPC
WALSALL COUNCIL,http://opendatacommunities.org/id/metropolitan-district-council/walsall,31/03/2021,RESOURCES & TRANSFORMATION,ARTHUR BRETT CATER,15/01/2021,H59620210119ABMMDHRPV-1,20.41,CATERING - SCHOOLS-FOOD & DRINK SUPPLIES,MISCELLANEOUS FOOD STORES & CONVENIENCE STORES,GPC
WALSALL COUNCIL,http://opendatacommunities.org/id/metropolitan-district-council/walsall,31/03/2021,CHILDRENS SERVICES,AMZNMKTPLACE AMAZON.CO.UK,15/01/2021,H59620210119AQZNNXSID-1,319.40,ADMINISTRATIVE SUPPLIES-MATERIALS,MISCELLANEOUS AND SPECIALTY RETAIL STORES,GPC
WALSALL COUNCIL,http://opendatacommunities.org/id/metropolitan-district-council/walsall,31/03/2021,RESOURCES & TRANSFORMATION,ARTHUR BRETT CATER,15/01/2021,H59620210119BPVULMWAX-1,3640.60,CATERING - MANAGEMENT-FOOD & DRINK SUPPLIES,MISCELLANEOUS FOOD STORES & CONVENIENCE STORES,GPC
WALSALL COUNCIL,http://opendatacommunities.org/id/metropolitan-district-council/walsall,31/03/2021,CHILDRENS SERVICES,WWW.SECURE-PAYMENT-SER,15/01/2021,H59620210119DDYBAVMOQ-1,5.00,TRANSITION AND LEAVING CARE PL-FEES & LICENCES,"COMPUTER PROGRAM, SYSTEM DESIGN",GPC
WALSALL COUNCIL,http://opendatacommunities.org/id/metropolitan-district-council/walsall,31/03/2021,CHILDRENS SERVICES,ASDA SUPERSTORE,15/01/2021,H59620210119DGZVKWHTS-1,150.00,SPECIAL FACILITIES-MATERIALS,GROCERY STORES AND SUPERMARKETS,GPC
WALSALL COUNCIL,http://opendatacommunities.org/id/metropolitan-district-council/walsall,31/03/2021,RESOURCES & TRANSFORMATION,NOBISCO LIMITED,15/01/2021,H59620210119EAPRBSMQW-1,44.03,CATERING - SCHOOLS-FOOD & DRINK SUPPLIES,OTHER INDUSTRIAL SUPPLIES,GPC
WALSALL COUNCIL,http://opendatacommunities.org/id/metropolitan-district-council/walsall,31/03/2021,CHILDRENS SERVICES,SPS RATE MARK LTD,15/01/2021,H59620210119ECOJMDRGE-1,30.00,TENANCY SERVICE-CRISIS SUPPORT PAYMENTS,MISCELLANEOUS FOOD STORES & CONVENIENCE STORES,GPC
WALSALL COUNCIL,http://opendatacommunities.org/id/metropolitan-district-council/walsall,31/03/2021,RESOURCES & TRANSFORMATION,ARTHUR BRETT CATER,15/01/2021,H59620210119EGATBLZMN-1,41.08,CATERING - SCHOOLS-FOOD & DRINK SUPPLIES,MISCELLANEOUS FOOD STORES & CONVENIENCE STORES,GPC
WALSALL COUNCIL,http://opendatacommunities.org/id/metropolitan-district-council/walsall,31/03/2021,RESOURCES & TRANSFORMATION,JAM SOFTWARE GMBH,15/01/2021,H59620210119EJZUWJOOS-1,133.17,DATA CENTRES-COMPUTER EQUIPMENT,COMPUTER SOFTWARE STORES,GPC
WALSALL COUNCIL,http://opendatacommunities.org/id/metropolitan-district-council/walsall,31/03/2021,CHILDRENS SERVICES,ASDA SUPERSTORE,15/01/2021,H59620210119ERPEYJVKX-1,100.00,SPECIAL FACILITIES-MATERIALS,GROCERY STORES AND SUPERMARKETS,GPC
WALSALL COUNCIL,http://opendatacommunities.org/id/metropolitan-district-council/walsall,31/03/2021,CHILDRENS SERVICES,REDBUBBLE.COM,15/01/2021,H59620210119EXOYCEIJY-1,63.27,CREATIVE CURRICULUM-MATERIALS,MENS AND WOMENS CLOTHING STORES,GPC
WALSALL COUNCIL,http://opendatacommunities.org/id/metropolitan-district-council/walsall,31/03/2021,CHILDRENS SERVICES,REDBUBBLE.COM,15/01/2021,H59620210119EXOYCEIJY-2,5.56,CREATIVE CURRICULUM-POSTAGES & COURIER SERVICES,MENS AND WOMENS CLOTHING STORES,GPC
WALSALL COUNCIL,http://opendatacommunities.org/id/metropolitan-district-council/walsall,31/03/2021,RESOURCES & TRANSFORMATION,ASDA STORES,15/01/2021,H59620210119FOXUVVDSM-1,87.40,CATERING - MANAGEMENT-FOOD & DRINK SUPPLIES,GROCERY STORES AND SUPERMARKETS,GPC
WALSALL COUNCIL,http://opendatacommunities.org/id/metropolitan-district-council/walsall,31/03/2021,CHILDRENS SERVICES,WALSALL STN SST,15/01/2021,H59620210119FQCAXDDQN-1,39.60,BED & BREAKFAST PAYMENTS-BED & BREAKFAST PAYMENTS,PASSENGER RAILWAYS,GPC
WALSALL COUNCIL,http://opendatacommunities.org/id/metropolitan-district-council/walsall,31/03/2021,ECONOMY & ENVIRONMENT,AMZNMKTPLACE,15/01/2021,H59620210119HOHYBUQMH-1,38.39,FLEET-MATERIALS,MISCELLANEOUS AND SPECIALTY RETAIL STORES,GPC
WALSALL COUNCIL,http://opendatacommunities.org/id/metropolitan-district-council/walsall,31/03/2021,CHILDRENS SERVICES,W M MORRISONS.COM,15/01/2021,H59620210119ISNPDOYBN-1,44.94,BLUEBELLS-FOOD & DRINK SUPPLIES,GROCERY STORES AND SUPERMARKETS,GPC
WALSALL COUNCIL,http://opendatacommunities.org/id/metropolitan-district-council/walsall,31/03/2021,CHILDRENS SERVICES,W M MORRISONS.COM,15/01/2021,H59620210119ISNPDOYBN-2,92.13,BLUEBELLS-FOOD & DRINK SUPPLIES,GROCERY STORES AND SUPERMARKETS,GPC
WALSALL COUNCIL,http://opendatacommunities.org/id/metropolitan-district-council/walsall,31/03/2021,CHILDRENS SERVICES,ROYAL MAIL GROUP LTD,15/01/2021,H59620210119JSGSPKLQY-1,2.39,ADMINISTRATIVE SUPPLIES-POSTAGES & COURIER SERVICES,POSTAL SERVICES - GOVERNMENT ONLY,GPC
WALSALL COUNCIL,http://opendatacommunities.org/id/metropolitan-district-council/walsall,31/03/2021,RESOURCES & TRANSFORMATION,NOBISCO LIMITED,15/01/2021,H59620210119KJGBHTILE-1,77.70,CATERING - SCHOOLS-FOOD & DRINK SUPPLIES,OTHER INDUSTRIAL SUPPLIES,GPC
WALSALL COUNCIL,http://opendatacommunities.org/id/metropolitan-district-council/walsall,31/03/2021,CHILDRENS SERVICES,LIDL GB WALSALL,15/01/2021,H59620210119KKSXXDRUY-1,39.72,REDRUTH ROAD-FOOD & DRINK SUPPLIES,GROCERY STORES AND SUPERMARKETS,GPC
WALSALL COUNCIL,http://opendatacommunities.org/id/metropolitan-district-council/walsall,31/03/2021,RESOURCES & TRANSFORMATION,NOBISCO LIMITED,15/01/2021,H59620210119KNBFYKIAQ-1,318.92,CATERING - SCHOOLS-FOOD & DRINK SUPPLIES,OTHER INDUSTRIAL SUPPLIES,GPC
WALSALL COUNCIL,http://opendatacommunities.org/id/metropolitan-district-council/walsall,31/03/2021,ECONOMY & ENVIRONMENT,AMZNMKTPLACE,15/01/2021,H59620210119LXKTWIITT-1,71.90,PREVENT GRANT-STATIONERY & GENERAL OFFICE SU,MISCELLANEOUS AND SPECIALTY RETAIL STORES,GPC
WALSALL COUNCIL,http://opendatacommunities.org/id/metropolitan-district-council/walsall,31/03/2021,CHILDRENS SERVICES,POST OFFICE COUNTER,15/01/2021,H59620210119MBMOARCVJ-1,7.65,LOOKED AFTER CHILDRENS SOCIAL -POSTAGES & COURIER SERVICES,POSTAL SERVICES - GOVERNMENT ONLY,GPC
WALSALL COUNCIL,http://opendatacommunities.org/id/metropolitan-district-council/walsall,31/03/2021,CHILDRENS SERVICES,POST OFFICE COUNTER,15/01/2021,H59620210119NDBOBMQCH-1,39.60,ACCOMMODATION SERVICES MANAGEM-STATIONERY & GENERAL OFFICE SU,POSTAL SERVICES - GOVERNMENT ONLY,GPC
WALSALL COUNCIL,http://opendatacommunities.org/id/metropolitan-district-council/walsall,31/03/2021,CHILDRENS SERVICES,GEN REGISTER OFFICE,15/01/2021,H59620210119NFKVDPYJI-1,35.00,SAFEGUARDING & FAMILY SUPPORT-FEES & LICENCES,GOVERNMENT SERVICES,GPC
WALSALL COUNCIL,http://opendatacommunities.org/id/metropolitan-district-council/walsall,31/03/2021,RESOURCES & TRANSFORMATION,ARTHUR BRETT CATER,15/01/2021,H59620210119NQCDTRNGU-1,24.55,CATERING - SCHOOLS-FOOD & DRINK SUPPLIES,MISCELLANEOUS FOOD STORES & CONVENIENCE STORES,GPC
WALSALL COUNCIL,http://opendatacommunities.org/id/metropolitan-district-council/walsall,31/03/2021,CHILDRENS SERVICES,ARGOS LTD,15/01/2021,H59620210119NRLAEGHBW-1,85.45,TRANSITION AND LEAVING CARE PL-CARE LEAVERS MTCE PAYMENTS,DISCOUNT STORES,GPC
WALSALL COUNCIL,http://opendatacommunities.org/id/metropolitan-district-council/walsall,31/03/2021,CHILDRENS SERVICES,ASDA,15/01/2021,H59620210119NSDISEHOH-1,95.00,WALSALL CRISIS SUPPORT SCHEME-FOOD & DRINK SUPPLIES,GROCERY STORES AND SUPERMARKETS,GPC
WALSALL COUNCIL,http://opendatacommunities.org/id/metropolitan-district-council/walsall,31/03/2021,CHILDRENS SERVICES,WWW.ICO.ORG.UK,15/01/2021,H59620210119PEVIJFYIH-1,40.00,ADMINISTRATIVE SUPPLIES-SUBSCRIPTIONS,GOVERNMENT SERVICES,GPC
WALSALL COUNCIL,http://opendatacommunities.org/id/metropolitan-district-council/walsall,31/03/2021,CHILDRENS SERVICES,AMZNMKTPLACE,15/01/2021,H59620210119PYYZRMKDM-1,4.32,CONTACT SESSIONAL STAFF-STATIONERY & GENERAL OFFICE SU,MISCELLANEOUS AND SPECIALTY RETAIL STORES,GPC
WALSALL COUNCIL,http://opendatacommunities.org/id/metropolitan-district-council/walsall,31/03/2021,CHILDRENS SERVICES,EURASIA CARPETS,15/01/2021,H59620210119QFXBIWUAQ-1,488.00,TRANSITION AND LEAVING CARE PL-PURCHASE OF FURNITURE & EQUIPM,FLOOR COVERING STORES,GPC
WALSALL COUNCIL,http://opendatacommunities.org/id/metropolitan-district-council/walsall,31/03/2021,CHILDRENS SERVICES,W M MORRISON STORE,15/01/2021,H59620210119TPFHHWJIC-1,120.00,SPECIAL FACILITIES-MATERIALS,GROCERY STORES AND SUPERMARKETS,GPC
WALSALL COUNCIL,http://opendatacommunities.org/id/metropolitan-district-council/walsall,31/03/2021,CHILDRENS SERVICES,VIDAXL UK,15/01/2021,H59620210119TTDAMTUUD-1,347.97,E19-PURCHASE OF FURNITURE & EQUIPM,OTHER DURABLE GOODS,GPC
WALSALL COUNCIL,http://opendatacommunities.org/id/metropolitan-district-council/walsall,31/03/2021,CHILDRENS SERVICES,ASDA SUPERSTORE,15/01/2021,H59620210119UFUUXSDLE-1,20.00,SPECIAL FACILITIES-MATERIALS,GROCERY STORES AND SUPERMARKETS,GPC
WALSALL COUNCIL,http://opendatacommunities.org/id/metropolitan-district-council/walsall,31/03/2021,CHILDRENS SERVICES,AMZNMKTPLACE AMAZON.CO.UK,15/01/2021,H59620210119WBSXONBXT-1,14.92,WALSALL WOOD PRIMARY SCHOOL-OPERATIONAL MAINTENANCE,MISCELLANEOUS AND SPECIALTY RETAIL STORES,GPC
WALSALL COUNCIL,http://opendatacommunities.org/id/metropolitan-district-council/walsall,31/03/2021,CHILDRENS SERVICES,AMZNMKTPLACE AMAZON.CO.UK,15/01/2021,H59620210119WBSXONBXT-2,25.98,SPECIAL FACILITIES-MATERIALS,MISCELLANEOUS AND SPECIALTY RETAIL STORES,GPC
WALSALL COUNCIL,http://opendatacommunities.org/id/metropolitan-district-council/walsall,31/03/2021,CHILDRENS SERVICES,WWW.BRISTOL-CITY.GOV.U,15/01/2021,H59620210119WJLSCYVTO-1,11.00,LOOKED AFTER CHILDRENS SOCIAL -STATIONERY & GENERAL OFFICE SU,"CARD, GIFT, NOVELTY, AND SOUVENIR SHOPS",GPC
WALSALL COUNCIL,http://opendatacommunities.org/id/metropolitan-district-council/walsall,31/03/2021,RESOURCES & TRANSFORMATION,WWW.ERS-ONLINE.CO.UK,15/01/2021,H59620210119WNGNKTXTT-1,129.58,CENTRALISED STATIONARY-STATIONERY & GENERAL OFFICE SU,"OFFICE, SCHOOL SUPPLY, AND STATIONERY STORES",GPC
WALSALL COUNCIL,http://opendatacommunities.org/id/metropolitan-district-council/walsall,31/03/2021,CHILDRENS SERVICES,ALDI 772 129,15/01/2021,H59620210119WTCQFRMAQ-1,7.92,"43A HILTON ROAD, WILLENHALL-FOOD & DRINK SUPPLIES",GROCERY STORES AND SUPERMARKETS,GPC
WALSALL COUNCIL,http://opendatacommunities.org/id/metropolitan-district-council/walsall,31/03/2021,CHILDRENS SERVICES,ALDI 772 129,15/01/2021,H59620210119WTCQFRMAQ-2,58.65,"43A HILTON ROAD, WILLENHALL-FOOD & DRINK SUPPLIES",GROCERY STORES AND SUPERMARKETS,GPC
WALSALL COUNCIL,http://opendatacommunities.org/id/metropolitan-district-council/walsall,31/03/2021,CHILDRENS SERVICES,ARGOS LTD,15/01/2021,H59620210119WUNEPNNWR-1,103.94,TRANSITION AND LEAVING CARE PL-CARE LEAVERS MTCE PAYMENTS,DISCOUNT STORES,GPC
WALSALL COUNCIL,http://opendatacommunities.org/id/metropolitan-district-council/walsall,31/03/2021,RESOURCES & TRANSFORMATION,ARTHUR BRETT CATER,15/01/2021,H59620210119WUWWYDBOH-1,32.97,CATERING - SCHOOLS-FOOD & DRINK SUPPLIES,MISCELLANEOUS FOOD STORES & CONVENIENCE STORES,GPC
WALSALL COUNCIL,http://opendatacommunities.org/id/metropolitan-district-council/walsall,31/03/2021,CHILDRENS SERVICES,METRO WALSALL,15/01/2021,H59620210119XPVYDHRPE-1,114.00,ACCOMMODATION SERVICES MANAGEM-BED & BREAKFAST PAYMENTS,"HOTELS, MOTELS, RESORTS",GPC
WALSALL COUNCIL,http://opendatacommunities.org/id/metropolitan-district-council/walsall,31/03/2021,RESOURCES & TRANSFORMATION,NOBISCO LIMITED,15/01/2021,H59620210119YFHJCFGUX-1,47.28,CATERING - SCHOOLS-FOOD & DRINK SUPPLIES,OTHER INDUSTRIAL SUPPLIES,GPC
WALSALL COUNCIL,http://opendatacommunities.org/id/metropolitan-district-council/walsall,31/03/2021,CHILDRENS SERVICES,J9 ACCOMODATION,15/01/2021,H59620210119YFXBZKXSU-1,303.33,YOUNG PERSONS HOMELESS SERVICE-RENTS,REAL ESTATE MANAGERS - RENTALS,GPC
WALSALL COUNCIL,http://opendatacommunities.org/id/metropolitan-district-council/walsall,31/03/2021,CHILDRENS SERVICES,WWW.TRIMEXUK.COM,15/01/2021,H59620210119YKVGFTOVM-1,115.99,OUTDOOR LEARNING-MATERIALS,"GAME, TOY, AND HOBBY SHOPS",GPC
WALSALL COUNCIL,http://opendatacommunities.org/id/metropolitan-district-council/walsall,31/03/2021,CHILDRENS SERVICES,EXPRESS & STAR,15/01/2021,H59620210119ZCJXNIEJB-1,2818.80,FAMILY PLACEMENTS-SUBSCRIPTIONS,NEWS DEALERS AND NEWSSTANDS,GPC
WALSALL COUNCIL,http://opendatacommunities.org/id/metropolitan-district-council/walsall,31/03/2021,RESOURCES & TRANSFORMATION,NOBISCO LIMITED,15/01/2021,H59620210119ZRYBPEZJB-1,77.15,CATERING - SCHOOLS-FOOD & DRINK SUPPLIES,OTHER INDUSTRIAL SUPPLIES,GPC
WALSALL COUNCIL,http://opendatacommunities.org/id/metropolitan-district-council/walsall,31/03/2021,ECONOMY & ENVIRONMENT,WIX.COM,15/01/2021,H59620210120DHJZBLETU-1,122.40,INTEGRATED COMMUNITIES PROGRAM-COMPUTER EQUIPMENT,DIGITAL GOODS - APPLICATIONS (EXCLUDES GAMES),GPC
WALSALL COUNCIL,http://opendatacommunities.org/id/metropolitan-district-council/walsall,31/03/2021,CHILDRENS SERVICES,GLOS COUNTY COUNCIL,15/01/2021,H59620210120OMWPSILHM-1,-11.00,LOOKED AFTER CHILDRENS SOCIAL -FEES & LICENCES,GOVERNMENT SERVICES,GPC
WALSALL COUNCIL,http://opendatacommunities.org/id/metropolitan-district-council/walsall,31/03/2021,CHILDRENS SERVICES,WWW.BRISTOL-CITY.GOV.U,15/01/2021,H59620210121RJYWWNCVR-1,-11.00,LOOKED AFTER CHILDRENS SOCIAL -STATIONERY & GENERAL OFFICE SU,"CARD, GIFT, NOVELTY, AND SOUVENIR SHOPS",GPC
WALSALL COUNCIL,http://opendatacommunities.org/id/metropolitan-district-council/walsall,31/03/2021,CHILDRENS SERVICES,AMZNMKTPLACE,16/01/2021,H59620210119APTOCYASL-1,24.50,OUTDOOR LEARNING-MATERIALS,MISCELLANEOUS AND SPECIALTY RETAIL STORES,GPC
WALSALL COUNCIL,http://opendatacommunities.org/id/metropolitan-district-council/walsall,31/03/2021,CHILDRENS SERVICES,WM MORRISONS STORE,16/01/2021,H59620210119CFFJDODVL-1,13.90,PELSALL VILLAGE SCHOOL-FOOD & DRINK SUPPLIES,GROCERY STORES AND SUPERMARKETS,GPC
WALSALL COUNCIL,http://opendatacommunities.org/id/metropolitan-district-council/walsall,31/03/2021,CHILDRENS SERVICES,WM MORRISONS STORE,16/01/2021,H59620210119CFFJDODVL-2,8.95,PELSALL VILLAGE SCHOOL-FOOD & DRINK SUPPLIES,GROCERY STORES AND SUPERMARKETS,GPC
WALSALL COUNCIL,http://opendatacommunities.org/id/metropolitan-district-council/walsall,31/03/2021,CHILDRENS SERVICES,CS* TESCO STORES GC,16/01/2021,H59620210119FQFNTBILZ-1,1041.00,SPECIAL FACILITIES-MATERIALS,OTHER BUSINESS SERVICES,GPC
WALSALL COUNCIL,http://opendatacommunities.org/id/metropolitan-district-council/walsall,31/03/2021,CHILDRENS SERVICES,B&M 419 - HS REEDSWOOD,16/01/2021,H59620210119FRPTKUZQY-1,20.00,ELMWOOD SCHOOL-CLEANING MATERIALS,MISCELLANEOUS GENERAL MERCHANDISE,GPC
WALSALL COUNCIL,http://opendatacommunities.org/id/metropolitan-district-council/walsall,31/03/2021,CHILDRENS SERVICES,CS* TESCO STORES GC,16/01/2021,H59620210119GXYYVPFFH-1,411.00,SPECIAL FACILITIES-MATERIALS,OTHER BUSINESS SERVICES,GPC
WALSALL COUNCIL,http://opendatacommunities.org/id/metropolitan-district-council/walsall,31/03/2021,CHILDRENS SERVICES,GIFFGAFF,16/01/2021,H59620210119MVBHDDTWD-1,10.00,ADMINISTRATIVE SUPPLIES-LANDLINE PHONES,TELECOMMUNICATION SERVICES,GPC
WALSALL COUNCIL,http://opendatacommunities.org/id/metropolitan-district-council/walsall,31/03/2021,CHILDRENS SERVICES,STEELROOFSHEETS.CO,16/01/2021,H59620210119OVPFILWVM-1,154.01,E19-PURCHASE OF FURNITURE & EQUIPM,METAL SERVICE CENTERS AND OFFICES,GPC
WALSALL COUNCIL,http://opendatacommunities.org/id/metropolitan-district-council/walsall,31/03/2021,CHILDRENS SERVICES,METRO WALSALL,16/01/2021,H59620210119OXEOFFJFD-1,76.00,BED & BREAKFAST PAYMENTS-BED & BREAKFAST PAYMENTS,"HOTELS, MOTELS, RESORTS",GPC
WALSALL COUNCIL,http://opendatacommunities.org/id/metropolitan-district-council/walsall,31/03/2021,CHILDRENS SERVICES,AMZNMKTPLACE AMAZON.CO.UK,16/01/2021,H59620210119XSCMDSVFU-1,59.95,ICT LEARNING RESOURCES-PURCHASE OF FURNITURE & EQUIPM,MISCELLANEOUS AND SPECIALTY RETAIL STORES,GPC
WALSALL COUNCIL,http://opendatacommunities.org/id/metropolitan-district-council/walsall,31/03/2021,CHILDRENS SERVICES,AMZNMKTPLACE AMAZON.CO.UK,16/01/2021,H59620210119XSCMDSVFU-2,59.95,ICT LEARNING RESOURCES-PURCHASE OF FURNITURE & EQUIPM,MISCELLANEOUS AND SPECIALTY RETAIL STORES,GPC
WALSALL COUNCIL,http://opendatacommunities.org/id/metropolitan-district-council/walsall,31/03/2021,CHILDRENS SERVICES,AMAZON.CO.UK*MV79I13P4,17/01/2021,H59620210119GXIGWKLBY-1,9.25,ADMINISTRATIVE SUPPLIES-STATIONERY & GENERAL OFFICE SU,OTHER DIRECT MARKETING-OTHER DIRECT MARKETERS,GPC
WALSALL COUNCIL,http://opendatacommunities.org/id/metropolitan-district-council/walsall,31/03/2021,CHILDRENS SERVICES,AMAZON.CO.UK*MV6H29NM4,17/01/2021,H59620210119HJXSWRCYB-1,6.98,PRIVATE SECTOR HOUSING-STATIONERY & GENERAL OFFICE SU,OTHER DIRECT MARKETING-OTHER DIRECT MARKETERS,GPC
WALSALL COUNCIL,http://opendatacommunities.org/id/metropolitan-district-council/walsall,31/03/2021,ECONOMY & ENVIRONMENT,AMZNMKTPLACE,17/01/2021,H59620210119ISTFGXMBV-1,47.96,AREA PARTNERSHIPS-STATIONERY & GENERAL OFFICE SU,MISCELLANEOUS AND SPECIALTY RETAIL STORES,GPC
WALSALL COUNCIL,http://opendatacommunities.org/id/metropolitan-district-council/walsall,31/03/2021,ADULT SOCIAL CARE,AMZ*WECKEW UK,17/01/2021,H59620210119POPVHXQRQ-1,-16.06,EDUCATION MANAGEMENT - OUTBREA-PURCHASE OF FURNITURE & EQUIPM,MISCELLANEOUS AND SPECIALTY RETAIL STORES,GPC
WALSALL COUNCIL,http://opendatacommunities.org/id/metropolitan-district-council/walsall,31/03/2021,ECONOMY & ENVIRONMENT,B & Q 1145,17/01/2021,H59620210119QMLCTSFMI-1,63.64,COMMUNITY LIASON-MATERIALS,HOME SUPPLY WAREHOUSE STORES,GPC
WALSALL COUNCIL,http://opendatacommunities.org/id/metropolitan-district-council/walsall,31/03/2021,RESOURCES & TRANSFORMATION,WM MORRISONS STORE,17/01/2021,H59620210119UCGSTIVHF-1,6.90,CATERING - MANAGEMENT-FOOD & DRINK SUPPLIES,GROCERY STORES AND SUPERMARKETS,GPC
WALSALL COUNCIL,http://opendatacommunities.org/id/metropolitan-district-council/walsall,31/03/2021,CHILDRENS SERVICES,AMZNMKTPLACE,17/01/2021,H59620210119YJIKCHDKM-1,23.99,LEIGHSWOOD PRIMARY SCHOOL-PERSONAL REQUISITES-MATERIALS,MISCELLANEOUS AND SPECIALTY RETAIL STORES,GPC
WALSALL COUNCIL,http://opendatacommunities.org/id/metropolitan-district-council/walsall,31/03/2021,CHILDRENS SERVICES,AMZNMKTPLACE AMAZON.CO.UK,17/01/2021,H59620210120XVGYSDBHC-1,10.50,SPECIAL FACILITIES-MATERIALS,MISCELLANEOUS AND SPECIALTY RETAIL STORES,GPC
WALSALL COUNCIL,http://opendatacommunities.org/id/metropolitan-district-council/walsall,31/03/2021,RESOURCES & TRANSFORMATION,FOREIGN EXCHANGE FEE,18/01/2021,H59620210119PMXTNAGLN-1,3.66,DATA CENTRES-COMPUTER EQUIPMENT,,GPC
WALSALL COUNCIL,http://opendatacommunities.org/id/metropolitan-district-council/walsall,31/03/2021,CHILDRENS SERVICES,AMZNMKTPLACE,18/01/2021,H59620210120ANUDUTWGM-1,6.99,ACCOMMODATION SERVICES MANAGEM-STATIONERY & GENERAL OFFICE SU,MISCELLANEOUS AND SPECIALTY RETAIL STORES,GPC
WALSALL COUNCIL,http://opendatacommunities.org/id/metropolitan-district-council/walsall,31/03/2021,RESOURCES & TRANSFORMATION,NOBISCO LIMITED,18/01/2021,H59620210120BJYRYWZNK-1,219.86,CATERING - SCHOOLS-FOOD & DRINK SUPPLIES,OTHER INDUSTRIAL SUPPLIES,GPC
WALSALL COUNCIL,http://opendatacommunities.org/id/metropolitan-district-council/walsall,31/03/2021,RESOURCES & TRANSFORMATION,BLAKEMORE FOODSERVICE,18/01/2021,H59620210120CCOKPSDGP-1,284.01,CATERING - SCHOOLS-FOOD & DRINK SUPPLIES,CATERERS,GPC
WALSALL COUNCIL,http://opendatacommunities.org/id/metropolitan-district-council/walsall,31/03/2021,RESOURCES & TRANSFORMATION,BLAKEMORE FOODSERVICE,18/01/2021,H59620210120CCOKPSDGP-2,9.92,CATERING - SCHOOLS-FOOD & DRINK SUPPLIES,CATERERS,GPC
WALSALL COUNCIL,http://opendatacommunities.org/id/metropolitan-district-council/walsall,31/03/2021,CHILDRENS SERVICES,ALDI 772 129,18/01/2021,H59620210120CJLQVOVCM-1,15.08,ACCOMMODATION SERVICES MANAGEM-CLEANING MATERIALS,GROCERY STORES AND SUPERMARKETS,GPC
WALSALL COUNCIL,http://opendatacommunities.org/id/metropolitan-district-council/walsall,31/03/2021,CHILDRENS SERVICES,ROYAL MAIL GROUP LTD,18/01/2021,H59620210120CTHSJMKKY-1,5.47,ADMINISTRATIVE SUPPLIES-POSTAGES & COURIER SERVICES,POSTAL SERVICES - GOVERNMENT ONLY,GPC
WALSALL COUNCIL,http://opendatacommunities.org/id/metropolitan-district-council/walsall,31/03/2021,RESOURCES & TRANSFORMATION,WWW.BANNERUK.COM,18/01/2021,H59620210120CUMNHZCXV-1,46.66,CENTRALISED STATIONARY-STATIONERY & GENERAL OFFICE SU,"STATIONERY, OFFICE SUPPLIES AND WRITING PAPER",GPC
WALSALL COUNCIL,http://opendatacommunities.org/id/metropolitan-district-council/walsall,31/03/2021,CHILDRENS SERVICES,SP * BOOKS2DOOR,18/01/2021,H59620210120DIEACEPLG-1,39.58,E19-LIBRARY BOOKS,COMPUTER SOFTWARE STORES,GPC
WALSALL COUNCIL,http://opendatacommunities.org/id/metropolitan-district-council/walsall,31/03/2021,CHILDRENS SERVICES,ASDA SUPERSTORE,18/01/2021,H59620210120DLSFDNJDY-1,8.96,"43A HILTON ROAD, WILLENHALL-FOOD & DRINK SUPPLIES",GROCERY STORES AND SUPERMARKETS,GPC
WALSALL COUNCIL,http://opendatacommunities.org/id/metropolitan-district-council/walsall,31/03/2021,CHILDRENS SERVICES,AMZNMKTPLACE,18/01/2021,H59620210120DMYBQMKBG-1,47.94,CONTACT SESSIONAL STAFF-STATIONERY & GENERAL OFFICE SU,MISCELLANEOUS AND SPECIALTY RETAIL STORES,GPC
WALSALL COUNCIL,http://opendatacommunities.org/id/metropolitan-district-council/walsall,31/03/2021,CHILDRENS SERVICES,WWW.TTS-GROUPS.CO.UK,18/01/2021,H59620210120DQGMITEVK-1,161.83,VIRTUAL SCHOOL - CENTRAL PUPIL-OTHER EXPENSES,"OFFICE, SCHOOL SUPPLY, AND STATIONERY STORES",GPC
WALSALL COUNCIL,http://opendatacommunities.org/id/metropolitan-district-council/walsall,31/03/2021,CHILDRENS SERVICES,WWW.TTS-GROUPS.CO.UK,18/01/2021,H59620210120DQGMITEVK-2,4.99,VIRTUAL SCHOOL - CENTRAL PUPIL-OTHER EXPENSES,"OFFICE, SCHOOL SUPPLY, AND STATIONERY STORES",GPC
WALSALL COUNCIL,http://opendatacommunities.org/id/metropolitan-district-council/walsall,31/03/2021,ADULT SOCIAL CARE,HOME BARGAINS WOLVERHA,18/01/2021,H59620210120EBNWDHTMM-1,25.80,EDUCATION MANAGEMENT - OUTBREA-PURCHASE OF FURNITURE & EQUIPM,HARDWARE STORES,GPC
WALSALL COUNCIL,http://opendatacommunities.org/id/metropolitan-district-council/walsall,31/03/2021,RESOURCES & TRANSFORMATION,BLAKEMORE FOODSERVICE,18/01/2021,H59620210120ETKDCENEJ-1,72.23,CATERING - SCHOOLS-FOOD & DRINK SUPPLIES,CATERERS,GPC
WALSALL COUNCIL,http://opendatacommunities.org/id/metropolitan-district-council/walsall,31/03/2021,RESOURCES & TRANSFORMATION,BLAKEMORE FOODSERVICE,18/01/2021,H59620210120FHSDTBXYD-1,110.21,CATERING - SCHOOLS-FOOD & DRINK SUPPLIES,CATERERS,GPC
WALSALL COUNCIL,http://opendatacommunities.org/id/metropolitan-district-council/walsall,31/03/2021,ECONOMY & ENVIRONMENT,MYFOREST,18/01/2021,H59620210120FNYJCJSUB-1,24.00,COUNTRYSIDE MANAGEMENT - OTHER-CLOTHING & LAUNDRY,COMPUTER SOFTWARE STORES,GPC
WALSALL COUNCIL,http://opendatacommunities.org/id/metropolitan-district-council/walsall,31/03/2021,ADULT SOCIAL CARE,B&M 497 - HS WOLVES,18/01/2021,H59620210120GTMXDKIMW-1,54.93,EDUCATION MANAGEMENT - OUTBREA-PURCHASE OF FURNITURE & EQUIPM,MISCELLANEOUS GENERAL MERCHANDISE,GPC
WALSALL COUNCIL,http://opendatacommunities.org/id/metropolitan-district-council/walsall,31/03/2021,ECONOMY & ENVIRONMENT,S B COMPONENTS INT LTD,18/01/2021,H59620210120HCKCBPWFB-1,1218.60,FLEET-PROFESSIONAL SERVICES-PRIV CON,OTHER DURABLE GOODS,GPC
WALSALL COUNCIL,http://opendatacommunities.org/id/metropolitan-district-council/walsall,31/03/2021,RESOURCES & TRANSFORMATION,BLAKEMORE FOODSERVICE,18/01/2021,H59620210120HKOFVTVKU-1,776.49,CATERING - MANAGEMENT-FOOD & DRINK SUPPLIES,CATERERS,GPC
WALSALL COUNCIL,http://opendatacommunities.org/id/metropolitan-district-council/walsall,31/03/2021,RESOURCES & TRANSFORMATION,ARTHUR BRETT CATER,18/01/2021,H59620210120HQVLFJZDR-1,330.40,CATERING - MANAGEMENT-FOOD & DRINK SUPPLIES,MISCELLANEOUS FOOD STORES & CONVENIENCE STORES,GPC
WALSALL COUNCIL,http://opendatacommunities.org/id/metropolitan-district-council/walsall,31/03/2021,RESOURCES & TRANSFORMATION,BLAKEMORE FOODSERVICE,18/01/2021,H59620210120HTGHMUZCS-1,100.62,CATERING - SCHOOLS-FOOD & DRINK SUPPLIES,CATERERS,GPC
WALSALL COUNCIL,http://opendatacommunities.org/id/metropolitan-district-council/walsall,31/03/2021,RESOURCES & TRANSFORMATION,BLAKEMORE FOODSERVICE,18/01/2021,H59620210120HTGHMUZCS-2,15.06,CATERING - SCHOOLS-FOOD & DRINK SUPPLIES,CATERERS,GPC
WALSALL COUNCIL,http://opendatacommunities.org/id/metropolitan-district-council/walsall,31/03/2021,CHILDRENS SERVICES,ASDA STORES,18/01/2021,H59620210120IKZEKNQJD-1,1.70,ADOLESCENT SERVICE-FOOD & DRINK SUPPLIES,GROCERY STORES AND SUPERMARKETS,GPC
WALSALL COUNCIL,http://opendatacommunities.org/id/metropolitan-district-council/walsall,31/03/2021,CHILDRENS SERVICES,ASDA,18/01/2021,H59620210120ITUABZROQ-1,41.87,REDRUTH ROAD-RESIDENTS PERSONAL EXPENSES-AL,GROCERY STORES AND SUPERMARKETS,GPC
WALSALL COUNCIL,http://opendatacommunities.org/id/metropolitan-district-council/walsall,31/03/2021,CHILDRENS SERVICES,AIRSERVER,18/01/2021,H59620210120JFDNJWOSF-1,8.87,ICT LEARNING RESOURCES-MATERIALS,"COMPUTERS, COMPUTER PERIPHERAL EQUIPMENT, SOFTWARE",GPC
WALSALL COUNCIL,http://opendatacommunities.org/id/metropolitan-district-council/walsall,31/03/2021,RESOURCES & TRANSFORMATION,BLAKEMORE FOODSERVICE,18/01/2021,H59620210120JSBPKKTFO-1,55.31,CATERING - SCHOOLS-FOOD & DRINK SUPPLIES,CATERERS,GPC
WALSALL COUNCIL,http://opendatacommunities.org/id/metropolitan-district-council/walsall,31/03/2021,CHILDRENS SERVICES,ALLPAY *WHG,18/01/2021,H59620210120JWJDBUJTV-1,94.03,HOMELESSNESS PREVENTION STRATE-RENTS,"ORGANIZATIONS, CHARITABLE AND SOCIAL SERVICE",GPC
WALSALL COUNCIL,http://opendatacommunities.org/id/metropolitan-district-council/walsall,31/03/2021,ADULT SOCIAL CARE,ASDA SUPERSTORE,18/01/2021,H59620210120JWULXFLNL-1,35.00,EDUCATION MANAGEMENT - OUTBREA-PURCHASE OF FURNITURE & EQUIPM,GROCERY STORES AND SUPERMARKETS,GPC
WALSALL COUNCIL,http://opendatacommunities.org/id/metropolitan-district-council/walsall,31/03/2021,RESOURCES & TRANSFORMATION,NOBISCO LIMITED,18/01/2021,H59620210120KPPYNDNHX-1,39.18,CATERING - SCHOOLS-FOOD & DRINK SUPPLIES,OTHER INDUSTRIAL SUPPLIES,GPC
WALSALL COUNCIL,http://opendatacommunities.org/id/metropolitan-district-council/walsall,31/03/2021,RESOURCES & TRANSFORMATION,BLAKEMORE FOODSERVICE,18/01/2021,H59620210120LDIRFLSCA-1,206.11,CATERING - SCHOOLS-FOOD & DRINK SUPPLIES,CATERERS,GPC
WALSALL COUNCIL,http://opendatacommunities.org/id/metropolitan-district-council/walsall,31/03/2021,RESOURCES & TRANSFORMATION,BLAKEMORE FOODSERVICE,18/01/2021,H59620210120LDIRFLSCA-2,30.12,CATERING - SCHOOLS-FOOD & DRINK SUPPLIES,CATERERS,GPC
WALSALL COUNCIL,http://opendatacommunities.org/id/metropolitan-district-council/walsall,31/03/2021,CHILDRENS SERVICES,ASDA,18/01/2021,H59620210120LFGETPULK-1,22.18,REDRUTH ROAD-FOOD & DRINK SUPPLIES,GROCERY STORES AND SUPERMARKETS,GPC
WALSALL COUNCIL,http://opendatacommunities.org/id/metropolitan-district-council/walsall,31/03/2021,CHILDRENS SERVICES,ASDA,18/01/2021,H59620210120LFGETPULK-2,4.50,REDRUTH ROAD-FOOD & DRINK SUPPLIES,GROCERY STORES AND SUPERMARKETS,GPC
WALSALL COUNCIL,http://opendatacommunities.org/id/metropolitan-district-council/walsall,31/03/2021,RESOURCES & TRANSFORMATION,BLAKEMORE FOODSERVICE,18/01/2021,H59620210120LGFIDQEJN-1,858.08,CATERING - MANAGEMENT-FOOD & DRINK SUPPLIES,CATERERS,GPC
WALSALL COUNCIL,http://opendatacommunities.org/id/metropolitan-district-council/walsall,31/03/2021,CHILDRENS SERVICES,WALSALL COUNCIL,18/01/2021,H59620210120LLBVNGQSO-1,1.10,FAMILY PLACEMENTS-OTHER TRAVEL ALLOWANCES,AUTOMOBILE PARKING LOTS AND GARAGES,GPC
WALSALL COUNCIL,http://opendatacommunities.org/id/metropolitan-district-council/walsall,31/03/2021,CHILDRENS SERVICES,METRO WALSALL,18/01/2021,H59620210120LOQXRBEKT-1,76.00,ACCOMMODATION SERVICES MANAGEM-BED & BREAKFAST PAYMENTS,"HOTELS, MOTELS, RESORTS",GPC
WALSALL COUNCIL,http://opendatacommunities.org/id/metropolitan-district-council/walsall,31/03/2021,RESOURCES & TRANSFORMATION,BLAKEMORE FOODSERVICE,18/01/2021,H59620210120LVGINVIBE-1,19.66,CATERING - SCHOOLS-FOOD & DRINK SUPPLIES,CATERERS,GPC
WALSALL COUNCIL,http://opendatacommunities.org/id/metropolitan-district-council/walsall,31/03/2021,CHILDRENS SERVICES,ASDA,18/01/2021,H59620210120MBNQEMXOO-1,19.19,REDRUTH ROAD-FOOD & DRINK SUPPLIES,GROCERY STORES AND SUPERMARKETS,GPC
WALSALL COUNCIL,http://opendatacommunities.org/id/metropolitan-district-council/walsall,31/03/2021,CHILDRENS SERVICES,ASDA,18/01/2021,H59620210120MBNQEMXOO-2,128.91,REDRUTH ROAD-FOOD & DRINK SUPPLIES,GROCERY STORES AND SUPERMARKETS,GPC
WALSALL COUNCIL,http://opendatacommunities.org/id/metropolitan-district-council/walsall,31/03/2021,CHILDRENS SERVICES,ASDA STORES,18/01/2021,H59620210120MYLBMBEMV-1,3.70,ADOLESCENT SERVICE-FOOD & DRINK SUPPLIES,GROCERY STORES AND SUPERMARKETS,GPC
WALSALL COUNCIL,http://opendatacommunities.org/id/metropolitan-district-council/walsall,31/03/2021,RESOURCES & TRANSFORMATION,BLAKEMORE FOODSERVICE,18/01/2021,H59620210120NUGHXBHLY-1,77.82,CATERING - SCHOOLS-FOOD & DRINK SUPPLIES,CATERERS,GPC
WALSALL COUNCIL,http://opendatacommunities.org/id/metropolitan-district-council/walsall,31/03/2021,CHILDRENS SERVICES,TWINKL LIMITED,18/01/2021,H59620210120OIXOHXYXU-1,48.48,SEN-EXTERNAL TRAINING,OTHER SCHOOLS AND EDUCATIONAL SERVICES,GPC
WALSALL COUNCIL,http://opendatacommunities.org/id/metropolitan-district-council/walsall,31/03/2021,ADULT SOCIAL CARE,ASDA SUPERSTORE,18/01/2021,H59620210120PBUNJFWQN-1,95.00,EDUCATION MANAGEMENT - OUTBREA-PURCHASE OF FURNITURE & EQUIPM,GROCERY STORES AND SUPERMARKETS,GPC
WALSALL COUNCIL,http://opendatacommunities.org/id/metropolitan-district-council/walsall,31/03/2021,CHILDRENS SERVICES,ROYAL MAIL GROUP LTD,18/01/2021,H59620210120PHXBBKYLO-1,3.30,ADMINISTRATIVE SUPPLIES-POSTAGES & COURIER SERVICES,POSTAL SERVICES - GOVERNMENT ONLY,GPC
WALSALL COUNCIL,http://opendatacommunities.org/id/metropolitan-district-council/walsall,31/03/2021,RESOURCES & TRANSFORMATION,BLAKEMORE FOODSERVICE,18/01/2021,H59620210120PXQCIDMMX-1,93.94,CATERING - MANAGEMENT-FOOD & DRINK SUPPLIES,CATERERS,GPC
WALSALL COUNCIL,http://opendatacommunities.org/id/metropolitan-district-council/walsall,31/03/2021,RESOURCES & TRANSFORMATION,NOBISCO LIMITED,18/01/2021,H59620210120QSBJPVPXU-1,89.18,CATERING - SCHOOLS-FOOD & DRINK SUPPLIES,OTHER INDUSTRIAL SUPPLIES,GPC
WALSALL COUNCIL,http://opendatacommunities.org/id/metropolitan-district-council/walsall,31/03/2021,CHILDRENS SERVICES,POST OFFICE COUNTER,18/01/2021,H59620210120QVPQBPIXG-1,36.00,SPECIAL FACILITIES-MATERIALS,POSTAL SERVICES - GOVERNMENT ONLY,GPC
WALSALL COUNCIL,http://opendatacommunities.org/id/metropolitan-district-council/walsall,31/03/2021,CHILDRENS SERVICES,GEN REGISTER OFFICE,18/01/2021,H59620210120RCNNXSNFC-1,38.00,SAFEGUARDING & FAMILY SUPPORT-FEES & LICENCES,GOVERNMENT SERVICES,GPC
WALSALL COUNCIL,http://opendatacommunities.org/id/metropolitan-district-council/walsall,31/03/2021,RESOURCES & TRANSFORMATION,NOBISCO LIMITED,18/01/2021,H59620210120RYOAVKLQU-1,77.74,CATERING - SCHOOLS-FOOD & DRINK SUPPLIES,OTHER INDUSTRIAL SUPPLIES,GPC
WALSALL COUNCIL,http://opendatacommunities.org/id/metropolitan-district-council/walsall,31/03/2021,RESOURCES & TRANSFORMATION,NOBISCO LIMITED,18/01/2021,H59620210120SQNPSWLXD-1,28.91,CATERING - SCHOOLS-FOOD & DRINK SUPPLIES,OTHER INDUSTRIAL SUPPLIES,GPC
WALSALL COUNCIL,http://opendatacommunities.org/id/metropolitan-district-council/walsall,31/03/2021,RESOURCES & TRANSFORMATION,BLAKEMORE FOODSERVICE,18/01/2021,H59620210120SSIWWIERJ-1,123.61,CATERING - SCHOOLS-FOOD & DRINK SUPPLIES,CATERERS,GPC
WALSALL COUNCIL,http://opendatacommunities.org/id/metropolitan-district-council/walsall,31/03/2021,RESOURCES & TRANSFORMATION,BLAKEMORE FOODSERVICE,18/01/2021,H59620210120TMJOXRPBN-1,1166.80,CATERING - MANAGEMENT-FOOD & DRINK SUPPLIES,CATERERS,GPC
WALSALL COUNCIL,http://opendatacommunities.org/id/metropolitan-district-council/walsall,31/03/2021,RESOURCES & TRANSFORMATION,BLAKEMORE FOODSERVICE,18/01/2021,H59620210120TSCVVULTS-1,127.82,CATERING - SCHOOLS-FOOD & DRINK SUPPLIES,CATERERS,GPC
WALSALL COUNCIL,http://opendatacommunities.org/id/metropolitan-district-council/walsall,31/03/2021,CHILDRENS SERVICES,WWW.PARENTMAIL.CO.,18/01/2021,H59620210120UMNDEFMHS-1,8.40,REDRUTH ROAD-FOOD & DRINK SUPPLIES,OTHER SCHOOLS AND EDUCATIONAL SERVICES,GPC
WALSALL COUNCIL,http://opendatacommunities.org/id/metropolitan-district-council/walsall,31/03/2021,ADULT SOCIAL CARE,B&M 333 - AN BENTLEY BRID,18/01/2021,H59620210120UNADRIFBY-1,36.00,EDUCATION MANAGEMENT - OUTBREA-PURCHASE OF FURNITURE & EQUIPM,MISCELLANEOUS GENERAL MERCHANDISE,GPC
WALSALL COUNCIL,http://opendatacommunities.org/id/metropolitan-district-council/walsall,31/03/2021,RESOURCES & TRANSFORMATION,NOBISCO LIMITED,18/01/2021,H59620210120UYGCXXYHL-1,47.76,CATERING - SCHOOLS-FOOD & DRINK SUPPLIES,OTHER INDUSTRIAL SUPPLIES,GPC
